Publisher Label,Publisher URI,Body Name,Service Area Categorisation,Service Division Categorisation,Expenses Type,Date,Transaction Number,Amount,Capital or Revenue,Supplier Name,Merchant Category
Peterborough,http://opendatacommunities.org/id/unitary-authority/peterborough,Peterborough City Council,Special Educational Needs / Inclusion,,Services,01/03/2017 00:00,30066928,18057.5,Revenue,Phonak UK Ltd,Education
Peterborough,http://opendatacommunities.org/id/unitary-authority/peterborough,Peterborough City Council,HR,,Services,01/03/2017 00:00,30077152,500,Revenue,MKR Consultancy Ltd,HR
Peterborough,http://opendatacommunities.org/id/unitary-authority/peterborough,Peterborough City Council,Business Management and Commercial Operations - Public Health,,Third Party Payments,01/03/2017 00:00,30102878,581.18,Revenue,Royal Free London NHS FT,Public Health
Peterborough,http://opendatacommunities.org/id/unitary-authority/peterborough,Peterborough City Council,PFI,,Services,01/03/2017 00:00,30104434,-67277.47,Revenue,IIC by Education (P'boro) Ltd,Education
Peterborough,http://opendatacommunities.org/id/unitary-authority/peterborough,Peterborough City Council,Corporate,,Non Revenue,01/03/2017 00:00,30105427,3387.22,Capital,Serco Ltd,Corporate
Peterborough,http://opendatacommunities.org/id/unitary-authority/peterborough,Peterborough City Council,Business Management and Commercial Operations - Public Health,,Third Party Payments,01/03/2017 00:00,30109933,659134.13,Revenue,"CGL - Change, Grow, Live",Public Health
Peterborough,http://opendatacommunities.org/id/unitary-authority/peterborough,Peterborough City Council,Pupil Referral Unit,,Agency Staff,01/03/2017 00:00,30111187,820,Revenue,Vision for Education Ltd,Education
Peterborough,http://opendatacommunities.org/id/unitary-authority/peterborough,Peterborough City Council,Access to Resources & Specialist Commissioning,,Services,01/03/2017 00:00,30112275,2853.48,Revenue,Fostering Options Ltd,Children's & Safeguarding
Peterborough,http://opendatacommunities.org/id/unitary-authority/peterborough,Peterborough City Council,Access to Resources & Specialist Commissioning,,Services,01/03/2017 00:00,30112278,2853.48,Revenue,Fostering Options Ltd,Children's & Safeguarding
Peterborough,http://opendatacommunities.org/id/unitary-authority/peterborough,Peterborough City Council,Access to Resources & Specialist Commissioning,,Services,01/03/2017 00:00,30112279,3053.4,Revenue,Fostering Options Ltd,Children's & Safeguarding
Peterborough,http://opendatacommunities.org/id/unitary-authority/peterborough,Peterborough City Council,Access to Resources & Specialist Commissioning,,Services,01/03/2017 00:00,30112924,-4034.34,Revenue,Five Rivers,Children's & Safeguarding
Peterborough,http://opendatacommunities.org/id/unitary-authority/peterborough,Peterborough City Council,Corporate,,Non Revenue,01/03/2017 00:00,30112966,1828.67,Capital,Enterprise Managed Services Limited,Corporate
Peterborough,http://opendatacommunities.org/id/unitary-authority/peterborough,Peterborough City Council,PFI,,Services,01/03/2017 00:00,30113183,708854.6,Revenue,IIC by Education (P'boro) Ltd,Education
Peterborough,http://opendatacommunities.org/id/unitary-authority/peterborough,Peterborough City Council,Access to Resources & Specialist Commissioning,,Services,01/03/2017 00:00,30113202,3643.92,Revenue,Five Rivers,Children's & Safeguarding
Peterborough,http://opendatacommunities.org/id/unitary-authority/peterborough,Peterborough City Council,Block Contracts,,Third Party Payments,01/03/2017 00:00,30113225,1821.88,Revenue,Park Vista Care Home,Adult Services & Communities - Adults
Peterborough,http://opendatacommunities.org/id/unitary-authority/peterborough,Peterborough City Council,Block Contracts,,Third Party Payments,01/03/2017 00:00,30113226,2305.92,Revenue,Park Vista Care Home,Adult Services & Communities - Adults
Peterborough,http://opendatacommunities.org/id/unitary-authority/peterborough,Peterborough City Council,Block Contracts,,Third Party Payments,01/03/2017 00:00,30113227,2460,Revenue,Park Vista Care Home,Adult Services & Communities - Adults
Peterborough,http://opendatacommunities.org/id/unitary-authority/peterborough,Peterborough City Council,Block Contracts,,Third Party Payments,01/03/2017 00:00,30113228,2305.92,Revenue,Park Vista Care Home,Adult Services & Communities - Adults
Peterborough,http://opendatacommunities.org/id/unitary-authority/peterborough,Peterborough City Council,Block Contracts,,Third Party Payments,01/03/2017 00:00,30113229,2460,Revenue,Park Vista Care Home,Adult Services & Communities - Adults
Peterborough,http://opendatacommunities.org/id/unitary-authority/peterborough,Peterborough City Council,Block Contracts,,Third Party Payments,01/03/2017 00:00,30113230,1821.88,Revenue,Park Vista Care Home,Adult Services & Communities - Adults
Peterborough,http://opendatacommunities.org/id/unitary-authority/peterborough,Peterborough City Council,Block Contracts,,Third Party Payments,01/03/2017 00:00,30113231,2200,Revenue,Park Vista Care Home,Adult Services & Communities - Adults
Peterborough,http://opendatacommunities.org/id/unitary-authority/peterborough,Peterborough City Council,Performance & Information,,Agency Staff,01/03/2017 00:00,30113417,606.83,Revenue,Reed Specialist Recruitment,Performance & Information
Peterborough,http://opendatacommunities.org/id/unitary-authority/peterborough,Peterborough City Council,Independent Sector Placements,,Services,01/03/2017 00:00,30113556,1256.6,Revenue,LAVENDER HOUSE RESIDENTIAL HOME,Adult Services & Communities - Adults
Peterborough,http://opendatacommunities.org/id/unitary-authority/peterborough,Peterborough City Council,Independent Sector Placements,,Services,01/03/2017 00:00,30113560,1822.76,Revenue,LAVENDER HOUSE RESIDENTIAL HOME,Adult Services & Communities - Adults
Peterborough,http://opendatacommunities.org/id/unitary-authority/peterborough,Peterborough City Council,Independent Sector Placements,,Services,01/03/2017 00:00,30113562,1677.2,Revenue,LAVENDER HOUSE RESIDENTIAL HOME,Adult Services & Communities - Adults
Peterborough,http://opendatacommunities.org/id/unitary-authority/peterborough,Peterborough City Council,Independent Sector Placements,,Services,01/03/2017 00:00,30113629,2105.73,Revenue,LAVENDER HOUSE RESIDENTIAL HOME,Adult Services & Communities - Adults
Peterborough,http://opendatacommunities.org/id/unitary-authority/peterborough,Peterborough City Council,Independent Sector Placements,,Services,01/03/2017 00:00,30113630,822.84,Revenue,LAVENDER HOUSE RESIDENTIAL HOME,Adult Services & Communities - Adults
Peterborough,http://opendatacommunities.org/id/unitary-authority/peterborough,Peterborough City Council,Independent Sector Placements,,Services,01/03/2017 00:00,30113632,2520,Revenue,LAVENDER HOUSE RESIDENTIAL HOME,Adult Services & Communities - Adults
Peterborough,http://opendatacommunities.org/id/unitary-authority/peterborough,Peterborough City Council,Independent Sector Placements,,Services,01/03/2017 00:00,30113634,927.88,Revenue,BROADLEIGH NURSING HOME,Adult Services & Communities - Adults
Peterborough,http://opendatacommunities.org/id/unitary-authority/peterborough,Peterborough City Council,Independent Sector Placements,,Services,01/03/2017 00:00,30113635,1773.92,Revenue,BROADLEIGH NURSING HOME,Adult Services & Communities - Adults
Peterborough,http://opendatacommunities.org/id/unitary-authority/peterborough,Peterborough City Council,Independent Sector Placements,,Services,01/03/2017 00:00,30113636,1986.52,Revenue,BROADLEIGH NURSING HOME,Adult Services & Communities - Adults
Peterborough,http://opendatacommunities.org/id/unitary-authority/peterborough,Peterborough City Council,Independent Sector Placements,,Services,01/03/2017 00:00,30113638,625,Revenue,BROADLEIGH NURSING HOME,Adult Services & Communities - Adults
Peterborough,http://opendatacommunities.org/id/unitary-authority/peterborough,Peterborough City Council,Independent Sector Placements,,Services,01/03/2017 00:00,30113640,2788.04,Revenue,BROADLEIGH NURSING HOME,Adult Services & Communities - Adults
Peterborough,http://opendatacommunities.org/id/unitary-authority/peterborough,Peterborough City Council,Independent Sector Placements,,Services,01/03/2017 00:00,30113642,2229.2,Revenue,BROADLEIGH NURSING HOME,Adult Services & Communities - Adults
Peterborough,http://opendatacommunities.org/id/unitary-authority/peterborough,Peterborough City Council,Independent Sector Placements,,Services,01/03/2017 00:00,30113645,2123.6,Revenue,BROADLEIGH NURSING HOME,Adult Services & Communities - Adults
Peterborough,http://opendatacommunities.org/id/unitary-authority/peterborough,Peterborough City Council,Independent Sector Placements,,Services,01/03/2017 00:00,30113646,601,Revenue,BROADLEIGH NURSING HOME,Adult Services & Communities - Adults
Peterborough,http://opendatacommunities.org/id/unitary-authority/peterborough,Peterborough City Council,Independent Sector Placements,,Services,01/03/2017 00:00,30113811,2328,Revenue,Pride Care Homes,Adult Services & Communities - Adults
Peterborough,http://opendatacommunities.org/id/unitary-authority/peterborough,Peterborough City Council,Independent Sector Placements,,Services,01/03/2017 00:00,30113812,2578.32,Revenue,The Regard Partnership Limited,Adult Services & Communities - Adults
Peterborough,http://opendatacommunities.org/id/unitary-authority/peterborough,Peterborough City Council,Independent Sector Placements,,Services,01/03/2017 00:00,30113815,2405.4,Revenue,Pride Care Homes,Adult Services & Communities - Adults
Peterborough,http://opendatacommunities.org/id/unitary-authority/peterborough,Peterborough City Council,Independent Sector Placements,,Services,01/03/2017 00:00,30113817,1455.6,Revenue,Pride Care Homes,Adult Services & Communities - Adults
Peterborough,http://opendatacommunities.org/id/unitary-authority/peterborough,Peterborough City Council,Independent Sector Placements,,Services,01/03/2017 00:00,30113818,2499.44,Revenue,Pride Care Homes,Adult Services & Communities - Adults
Peterborough,http://opendatacommunities.org/id/unitary-authority/peterborough,Peterborough City Council,Independent Sector Placements,,Services,01/03/2017 00:00,30113819,1267.24,Revenue,The Regard Partnership Limited,Adult Services & Communities - Adults
Peterborough,http://opendatacommunities.org/id/unitary-authority/peterborough,Peterborough City Council,Independent Sector Placements,,Services,01/03/2017 00:00,30113820,4062.48,Revenue,Voyage,Adult Services & Communities - Adults
Peterborough,http://opendatacommunities.org/id/unitary-authority/peterborough,Peterborough City Council,Independent Sector Placements,,Services,01/03/2017 00:00,30113821,4235.44,Revenue,Voyage,Adult Services & Communities - Adults
Peterborough,http://opendatacommunities.org/id/unitary-authority/peterborough,Peterborough City Council,Independent Sector Placements,,Services,01/03/2017 00:00,30113822,6421.6,Revenue,Voyage,Adult Services & Communities - Adults
Peterborough,http://opendatacommunities.org/id/unitary-authority/peterborough,Peterborough City Council,Independent Sector Placements,,Services,01/03/2017 00:00,30113823,625,Revenue,Park Vista Care Home,Adult Services & Communities - Adults
Peterborough,http://opendatacommunities.org/id/unitary-authority/peterborough,Peterborough City Council,Independent Sector Placements,,Services,01/03/2017 00:00,30113824,858.24,Revenue,Park Vista Care Home,Adult Services & Communities - Adults
Peterborough,http://opendatacommunities.org/id/unitary-authority/peterborough,Peterborough City Council,Independent Sector Placements,,Services,01/03/2017 00:00,30113825,5326.4,Revenue,Voyage,Adult Services & Communities - Adults
Peterborough,http://opendatacommunities.org/id/unitary-authority/peterborough,Peterborough City Council,Independent Sector Placements,,Services,01/03/2017 00:00,30113826,625,Revenue,Park Vista Care Home,Adult Services & Communities - Adults
Peterborough,http://opendatacommunities.org/id/unitary-authority/peterborough,Peterborough City Council,Independent Sector Placements,,Services,01/03/2017 00:00,30113827,539.28,Revenue,Park Vista Care Home,Adult Services & Communities - Adults
Peterborough,http://opendatacommunities.org/id/unitary-authority/peterborough,Peterborough City Council,Independent Sector Placements,,Services,01/03/2017 00:00,30113828,3734.2,Revenue,Voyage,Adult Services & Communities - Adults
Peterborough,http://opendatacommunities.org/id/unitary-authority/peterborough,Peterborough City Council,Independent Sector Placements,,Services,01/03/2017 00:00,30113829,1287.08,Revenue,Park Vista Care Home,Adult Services & Communities - Adults
Peterborough,http://opendatacommunities.org/id/unitary-authority/peterborough,Peterborough City Council,Independent Sector Placements,,Services,01/03/2017 00:00,30113830,4415.2,Revenue,Voyage,Adult Services & Communities - Adults
Peterborough,http://opendatacommunities.org/id/unitary-authority/peterborough,Peterborough City Council,Independent Sector Placements,,Services,01/03/2017 00:00,30113831,1821.88,Revenue,Park Vista Care Home,Adult Services & Communities - Adults
Peterborough,http://opendatacommunities.org/id/unitary-authority/peterborough,Peterborough City Council,Independent Sector Placements,,Services,01/03/2017 00:00,30113833,4222.4,Revenue,Voyage,Adult Services & Communities - Adults
Peterborough,http://opendatacommunities.org/id/unitary-authority/peterborough,Peterborough City Council,Independent Sector Placements,,Services,01/03/2017 00:00,30113835,1821.88,Revenue,Park Vista Care Home,Adult Services & Communities - Adults
Peterborough,http://opendatacommunities.org/id/unitary-authority/peterborough,Peterborough City Council,Independent Sector Placements,,Services,01/03/2017 00:00,30113836,3655.76,Revenue,Voyage,Adult Services & Communities - Adults
Peterborough,http://opendatacommunities.org/id/unitary-authority/peterborough,Peterborough City Council,Independent Sector Placements,,Services,01/03/2017 00:00,30113837,922.16,Revenue,Park Vista Care Home,Adult Services & Communities - Adults
Peterborough,http://opendatacommunities.org/id/unitary-authority/peterborough,Peterborough City Council,Independent Sector Placements,,Services,01/03/2017 00:00,30113838,821.48,Revenue,Park Vista Care Home,Adult Services & Communities - Adults
Peterborough,http://opendatacommunities.org/id/unitary-authority/peterborough,Peterborough City Council,Independent Sector Placements,,Services,01/03/2017 00:00,30113840,868.36,Revenue,Park Vista Care Home,Adult Services & Communities - Adults
Peterborough,http://opendatacommunities.org/id/unitary-authority/peterborough,Peterborough City Council,Independent Sector Placements,,Services,01/03/2017 00:00,30113841,1326.96,Revenue,Park Vista Care Home,Adult Services & Communities - Adults
Peterborough,http://opendatacommunities.org/id/unitary-authority/peterborough,Peterborough City Council,Independent Sector Placements,,Services,01/03/2017 00:00,30113842,952.68,Revenue,Park Vista Care Home,Adult Services & Communities - Adults
Peterborough,http://opendatacommunities.org/id/unitary-authority/peterborough,Peterborough City Council,Independent Sector Placements,,Services,01/03/2017 00:00,30113843,924.68,Revenue,Park Vista Care Home,Adult Services & Communities - Adults
Peterborough,http://opendatacommunities.org/id/unitary-authority/peterborough,Peterborough City Council,Independent Sector Placements,,Services,01/03/2017 00:00,30113844,1296.44,Revenue,Park Vista Care Home,Adult Services & Communities - Adults
Peterborough,http://opendatacommunities.org/id/unitary-authority/peterborough,Peterborough City Council,Independent Sector Placements,,Services,01/03/2017 00:00,30113845,4235.44,Revenue,Voyage,Adult Services & Communities - Adults
Peterborough,http://opendatacommunities.org/id/unitary-authority/peterborough,Peterborough City Council,Independent Sector Placements,,Services,01/03/2017 00:00,30113846,1299.08,Revenue,Park Vista Care Home,Adult Services & Communities - Adults
Peterborough,http://opendatacommunities.org/id/unitary-authority/peterborough,Peterborough City Council,Independent Sector Placements,,Services,01/03/2017 00:00,30113847,2305.92,Revenue,Park Vista Care Home,Adult Services & Communities - Adults
Peterborough,http://opendatacommunities.org/id/unitary-authority/peterborough,Peterborough City Council,Independent Sector Placements,,Services,01/03/2017 00:00,30113848,2990.04,Revenue,Voyage,Adult Services & Communities - Adults
Peterborough,http://opendatacommunities.org/id/unitary-authority/peterborough,Peterborough City Council,Independent Sector Placements,,Services,01/03/2017 00:00,30113849,1356.12,Revenue,Park Vista Care Home,Adult Services & Communities - Adults
Peterborough,http://opendatacommunities.org/id/unitary-authority/peterborough,Peterborough City Council,Independent Sector Placements,,Services,01/03/2017 00:00,30113850,1196.76,Revenue,Park Vista Care Home,Adult Services & Communities - Adults
Peterborough,http://opendatacommunities.org/id/unitary-authority/peterborough,Peterborough City Council,Independent Sector Placements,,Services,01/03/2017 00:00,30113853,1421.72,Revenue,Park Vista Care Home,Adult Services & Communities - Adults
Peterborough,http://opendatacommunities.org/id/unitary-authority/peterborough,Peterborough City Council,Independent Sector Placements,,Services,01/03/2017 00:00,30113854,1142.4,Revenue,Park Vista Care Home,Adult Services & Communities - Adults
Peterborough,http://opendatacommunities.org/id/unitary-authority/peterborough,Peterborough City Council,Independent Sector Placements,,Services,01/03/2017 00:00,30113856,1053.44,Revenue,Park Vista Care Home,Adult Services & Communities - Adults
Peterborough,http://opendatacommunities.org/id/unitary-authority/peterborough,Peterborough City Council,Independent Sector Placements,,Services,01/03/2017 00:00,30113857,1299.08,Revenue,Park Vista Care Home,Adult Services & Communities - Adults
Peterborough,http://opendatacommunities.org/id/unitary-authority/peterborough,Peterborough City Council,Independent Sector Placements,,Services,01/03/2017 00:00,30113859,997.8,Revenue,Park Vista Care Home,Adult Services & Communities - Adults
Peterborough,http://opendatacommunities.org/id/unitary-authority/peterborough,Peterborough City Council,Independent Sector Placements,,Services,01/03/2017 00:00,30113860,625,Revenue,Park Vista Care Home,Adult Services & Communities - Adults
Peterborough,http://opendatacommunities.org/id/unitary-authority/peterborough,Peterborough City Council,Independent Sector Placements,,Services,01/03/2017 00:00,30113862,625,Revenue,Park Vista Care Home,Adult Services & Communities - Adults
Peterborough,http://opendatacommunities.org/id/unitary-authority/peterborough,Peterborough City Council,Independent Sector Placements,,Services,01/03/2017 00:00,30113863,1106.44,Revenue,Park Vista Care Home,Adult Services & Communities - Adults
Peterborough,http://opendatacommunities.org/id/unitary-authority/peterborough,Peterborough City Council,Independent Sector Placements,,Services,01/03/2017 00:00,30113865,1053.44,Revenue,Park Vista Care Home,Adult Services & Communities - Adults
Peterborough,http://opendatacommunities.org/id/unitary-authority/peterborough,Peterborough City Council,ICT,,Services,01/03/2017 00:00,30113911,2624.89,Revenue,Serco Ltd,ICT
Peterborough,http://opendatacommunities.org/id/unitary-authority/peterborough,Peterborough City Council,Pupil Referral Unit,,Services,01/03/2017 00:00,30113918,1194,Revenue,Serco Ltd,Education
Peterborough,http://opendatacommunities.org/id/unitary-authority/peterborough,Peterborough City Council,Access to Resources & Specialist Commissioning,,Services,01/03/2017 00:00,30114162,803.21,Revenue,Fostering Solutions,Children's & Safeguarding
Peterborough,http://opendatacommunities.org/id/unitary-authority/peterborough,Peterborough City Council,Access to Resources & Specialist Commissioning,,Services,01/03/2017 00:00,30114244,4172,Revenue,By The Bridge,Children's & Safeguarding
Peterborough,http://opendatacommunities.org/id/unitary-authority/peterborough,Peterborough City Council,Access to Resources & Specialist Commissioning,,Services,01/03/2017 00:00,30114245,4172,Revenue,By The Bridge,Children's & Safeguarding
Peterborough,http://opendatacommunities.org/id/unitary-authority/peterborough,Peterborough City Council,Access to Resources & Specialist Commissioning,,Services,01/03/2017 00:00,30114282,12771.92,Revenue,Horizon Care & Education Group,Children's & Safeguarding
Peterborough,http://opendatacommunities.org/id/unitary-authority/peterborough,Peterborough City Council,Access to Resources & Specialist Commissioning,,Services,01/03/2017 00:00,30114323,5750.5,Revenue,Foster Care Associates Ltd FCA,Children's & Safeguarding
Peterborough,http://opendatacommunities.org/id/unitary-authority/peterborough,Peterborough City Council,Legal Services,,Agency Staff,01/03/2017 00:00,30114403,1591,Revenue,Venn Group Ltd,Legal & Democratic
Peterborough,http://opendatacommunities.org/id/unitary-authority/peterborough,Peterborough City Council,Access to Resources & Specialist Commissioning,,Services,01/03/2017 00:00,30114409,6040.71,Revenue,Sixteen Plus Limited,Children's & Safeguarding
Peterborough,http://opendatacommunities.org/id/unitary-authority/peterborough,Peterborough City Council,Development Management,,Services,01/03/2017 00:00,30114508,946,Revenue,Johnston Press Midlands Division,Development and Construction
Peterborough,http://opendatacommunities.org/id/unitary-authority/peterborough,Peterborough City Council,Other Services,,Third Party Payments,01/03/2017 00:00,30114534,12750,Revenue,Healthwatch,Adult Services & Communities - Adults
Peterborough,http://opendatacommunities.org/id/unitary-authority/peterborough,Peterborough City Council,Access to Resources & Specialist Commissioning,,Services,01/03/2017 00:00,30114536,4034.34,Revenue,Five Rivers,Children's & Safeguarding
Peterborough,http://opendatacommunities.org/id/unitary-authority/peterborough,Peterborough City Council,HR,,Services,01/03/2017 00:00,30114549,10400,Revenue,Green Park Interim and Exec Ltd,HR
Peterborough,http://opendatacommunities.org/id/unitary-authority/peterborough,Peterborough City Council,Access to Resources & Specialist Commissioning,,Services,01/03/2017 00:00,30114567,11980,Revenue,Unique Care Homes Support Limited,Children's & Safeguarding
Peterborough,http://opendatacommunities.org/id/unitary-authority/peterborough,Peterborough City Council,Housing and Health - Public Health,,Third Party Payments,01/03/2017 00:00,30114568,5000,Revenue,Futuwwa Initiative,Public Health
Peterborough,http://opendatacommunities.org/id/unitary-authority/peterborough,Peterborough City Council,Access to Resources & Specialist Commissioning,,Services,01/03/2017 00:00,30114630,3528,Revenue,Fosterplus Ltd,Children's & Safeguarding
Peterborough,http://opendatacommunities.org/id/unitary-authority/peterborough,Peterborough City Council,Access to Resources & Specialist Commissioning,,Services,01/03/2017 00:00,30114631,4012.12,Revenue,Fosterplus Ltd,Children's & Safeguarding
Peterborough,http://opendatacommunities.org/id/unitary-authority/peterborough,Peterborough City Council,Independent Sector Placements,,Services,01/03/2017 00:00,30114754,5686.8,Revenue,WYCAR LEYS,Adult Services & Communities - Adults
Peterborough,http://opendatacommunities.org/id/unitary-authority/peterborough,Peterborough City Council,Independent Sector Placements,,Services,01/03/2017 00:00,30114767,7395.92,Revenue,Affinity Trust,Adult Services & Communities - Adults
Peterborough,http://opendatacommunities.org/id/unitary-authority/peterborough,Peterborough City Council,Independent Sector Placements,,Services,01/03/2017 00:00,30114768,1153.56,Revenue,Country Court Care Homes Ltd (St Johns),Adult Services & Communities - Adults
Peterborough,http://opendatacommunities.org/id/unitary-authority/peterborough,Peterborough City Council,Access to Resources & Specialist Commissioning,,Services,01/03/2017 00:00,30114786,845,Revenue,Sixteen Plus Limited,Children's & Safeguarding
Peterborough,http://opendatacommunities.org/id/unitary-authority/peterborough,Peterborough City Council,Housing and Health,,Services,01/03/2017 00:00,30114815,1500,Revenue,Axiom Housing Association,Adults and Communities - Communities
Peterborough,http://opendatacommunities.org/id/unitary-authority/peterborough,Peterborough City Council,Housing and Health,,Third Party Payments,01/03/2017 00:00,30114816,44166.66,Revenue,Axiom Housing Association,Adults and Communities - Communities
Peterborough,http://opendatacommunities.org/id/unitary-authority/peterborough,Peterborough City Council,Block Contracts,,Third Party Payments,01/03/2017 00:00,30114818,4031.46,Revenue,Axiom Housing Association,Adult Services & Communities - Adults
Peterborough,http://opendatacommunities.org/id/unitary-authority/peterborough,Peterborough City Council,Block Contracts,,Third Party Payments,01/03/2017 00:00,30114820,3910.86,Revenue,Axiom Housing Association,Adult Services & Communities - Adults
Peterborough,http://opendatacommunities.org/id/unitary-authority/peterborough,Peterborough City Council,Block Contracts,,Third Party Payments,01/03/2017 00:00,30114822,1523.68,Revenue,Axiom Housing Association,Adult Services & Communities - Adults
Peterborough,http://opendatacommunities.org/id/unitary-authority/peterborough,Peterborough City Council,Access to Resources & Specialist Commissioning,,Services,01/03/2017 00:00,30114869,5400,Revenue,Options Fostering,Children's & Safeguarding
Peterborough,http://opendatacommunities.org/id/unitary-authority/peterborough,Peterborough City Council,Therapy/Reablement/Community Equipment,,Agency Staff,01/03/2017 00:00,30114878,1258,Revenue,SWP Consulting,Adult Services & Communities - Adults
Peterborough,http://opendatacommunities.org/id/unitary-authority/peterborough,Peterborough City Council,Access to Resources & Specialist Commissioning,,Services,01/03/2017 00:00,30114882,2940,Revenue,Compass Fostering Central Limited,Children's & Safeguarding
Peterborough,http://opendatacommunities.org/id/unitary-authority/peterborough,Peterborough City Council,Access to Resources & Specialist Commissioning,,Services,01/03/2017 00:00,30114883,3024,Revenue,Compass Fostering Central Limited,Children's & Safeguarding
Peterborough,http://opendatacommunities.org/id/unitary-authority/peterborough,Peterborough City Council,Corporate,,Non Revenue,01/03/2017 00:00,30114888,12988.22,Capital,Virgin Media Business,Corporate
Peterborough,http://opendatacommunities.org/id/unitary-authority/peterborough,Peterborough City Council,Day Opportunities / In House,,Agency Staff,01/03/2017 00:00,30114897,710.4,Revenue,Medicare First,Adult Services & Communities - Adults
Peterborough,http://opendatacommunities.org/id/unitary-authority/peterborough,Peterborough City Council,Access to Resources & Specialist Commissioning,,Services,01/03/2017 00:00,30114904,2133.99,Revenue,Kirkstone House School,Children's & Safeguarding
Peterborough,http://opendatacommunities.org/id/unitary-authority/peterborough,Peterborough City Council,Access to Resources & Specialist Commissioning,,Services,01/03/2017 00:00,30114905,2123.99,Revenue,Kirkstone House School,Children's & Safeguarding
Peterborough,http://opendatacommunities.org/id/unitary-authority/peterborough,Peterborough City Council,Access to Resources & Specialist Commissioning,,Services,01/03/2017 00:00,30114906,3000,Revenue,Kirkstone House School,Children's & Safeguarding
Peterborough,http://opendatacommunities.org/id/unitary-authority/peterborough,Peterborough City Council,Access to Resources & Specialist Commissioning,,Services,01/03/2017 00:00,30114907,2817.49,Revenue,Kirkstone House School,Children's & Safeguarding
Peterborough,http://opendatacommunities.org/id/unitary-authority/peterborough,Peterborough City Council,Access to Resources & Specialist Commissioning,,Services,01/03/2017 00:00,30114908,2817.49,Revenue,Kirkstone House School,Children's & Safeguarding
Peterborough,http://opendatacommunities.org/id/unitary-authority/peterborough,Peterborough City Council,Access to Resources & Specialist Commissioning,,Services,01/03/2017 00:00,30114912,3943.66,Revenue,Kirkstone House School,Children's & Safeguarding
Peterborough,http://opendatacommunities.org/id/unitary-authority/peterborough,Peterborough City Council,Clare Lodge,,Interview & Training Expenses,01/03/2017 00:00,30114919,669.5,Revenue,SG Training Ltd,Business Management and Commercial Operations
Peterborough,http://opendatacommunities.org/id/unitary-authority/peterborough,Peterborough City Council,Access to Resources & Specialist Commissioning,,Services,01/03/2017 00:00,30114932,9399.88,Revenue,Acorn Homes UK Ltd,Children's & Safeguarding
Peterborough,http://opendatacommunities.org/id/unitary-authority/peterborough,Peterborough City Council,Housing and Health,,Third Party Payments,01/03/2017 00:00,30114934,20838.28,Revenue,YMCA Cambridge & Peterborough,Adults and Communities - Communities
Peterborough,http://opendatacommunities.org/id/unitary-authority/peterborough,Peterborough City Council,Performance & Information,,Agency Staff,01/03/2017 00:00,30114953,4725,Revenue,Number 10 Interim Ltd,Performance & Information
Peterborough,http://opendatacommunities.org/id/unitary-authority/peterborough,Peterborough City Council,Youth / Youth Offending,,Services,01/03/2017 00:00,30114966,3076.92,Revenue,The Froglife Trust,Adults and Communities - Communities
Peterborough,http://opendatacommunities.org/id/unitary-authority/peterborough,Peterborough City Council,Access to Resources & Specialist Commissioning,,Services,01/03/2017 00:00,30115011,5409.88,Revenue,Kasper Fostering,Children's & Safeguarding
Peterborough,http://opendatacommunities.org/id/unitary-authority/peterborough,Peterborough City Council,Parking Services,,"Tools, Equipment, Furniture & Materials",01/03/2017 00:00,30115012,6048,Revenue,Parkeon Transit Ltd,City Servs & Communications
Peterborough,http://opendatacommunities.org/id/unitary-authority/peterborough,Peterborough City Council,Performance & Information,,Agency Staff,01/03/2017 00:00,30115013,7875,Revenue,Number 10 Interim Ltd,Performance & Information
Peterborough,http://opendatacommunities.org/id/unitary-authority/peterborough,Peterborough City Council,Access to Resources & Specialist Commissioning,,Services,01/03/2017 00:00,30115014,5092.36,Revenue,I S P,Children's & Safeguarding
Peterborough,http://opendatacommunities.org/id/unitary-authority/peterborough,Peterborough City Council,Business Management and Commercial Operations - Public Health,,Third Party Payments,01/03/2017 00:00,30115017,63250,Revenue,Cambs & P'boro NHS Foundation Trust,Public Health
Peterborough,http://opendatacommunities.org/id/unitary-authority/peterborough,Peterborough City Council,ICT,,Services,01/03/2017 00:00,30115018,2294.13,Revenue,Capita Business Services Ltd,ICT
Peterborough,http://opendatacommunities.org/id/unitary-authority/peterborough,Peterborough City Council,Public Health,,Third Party Payments,01/03/2017 00:00,30115020,244685.5,Revenue,Cambs & P'boro NHS Foundation Trust,Public Health
Peterborough,http://opendatacommunities.org/id/unitary-authority/peterborough,Peterborough City Council,Mental Health,,Third Party Payments,01/03/2017 00:00,30115021,103447.16,Revenue,Cambs & P'boro NHS Foundation Trust,Adult Services & Communities - Adults
Peterborough,http://opendatacommunities.org/id/unitary-authority/peterborough,Peterborough City Council,Commissioning,,Interview & Training Expenses,01/03/2017 00:00,30115032,2550,Revenue,The University Of Birmingham,Business Management and Commercial Operations
Peterborough,http://opendatacommunities.org/id/unitary-authority/peterborough,Peterborough City Council,Pupil Referral Unit,,Agency Staff,01/03/2017 00:00,30115041,1136.4,Revenue,Teaching Personnel Ltd,Education
Peterborough,http://opendatacommunities.org/id/unitary-authority/peterborough,Peterborough City Council,Natural & Historic Environment,,Services,01/03/2017 00:00,30115044,2395,Revenue,Wildlife Conservation Partnership,Sustainable Growth Strategy
Peterborough,http://opendatacommunities.org/id/unitary-authority/peterborough,Peterborough City Council,Access to Resources & Specialist Commissioning,,Services,01/03/2017 00:00,30115113,2847.88,Revenue,Jay Fostering,Children's & Safeguarding
Peterborough,http://opendatacommunities.org/id/unitary-authority/peterborough,Peterborough City Council,Finance,,Agency Staff,01/03/2017 00:00,30115114,3325,Revenue,Willowmead Consultants Ltd,Adult Services & Communities - Adults
Peterborough,http://opendatacommunities.org/id/unitary-authority/peterborough,Peterborough City Council,Access to Resources & Specialist Commissioning,,Services,01/03/2017 00:00,30115125,15200,Revenue,Acorn Childrens Home (Burton) Ltd,Children's & Safeguarding
Peterborough,http://opendatacommunities.org/id/unitary-authority/peterborough,Peterborough City Council,Strategic Client Services,,Agency Staff,01/03/2017 00:00,30115129,1471.43,Revenue,Hays Specialist Recruitment Ltd,Commercial Group
Peterborough,http://opendatacommunities.org/id/unitary-authority/peterborough,Peterborough City Council,Special Educational Needs / Inclusion,,Services,01/03/2017 00:00,30115136,970,Revenue,Sonova UK Ltd,Education
Peterborough,http://opendatacommunities.org/id/unitary-authority/peterborough,Peterborough City Council,Commercial Propety,,Repair & Maintenance of Buildings,01/03/2017 00:00,30115149,2824.49,Revenue,Opportunity Peterborough,Corporate Property
Peterborough,http://opendatacommunities.org/id/unitary-authority/peterborough,Peterborough City Council,Block Contracts,,Third Party Payments,01/03/2017 00:00,30115216,3479.44,Revenue,Longueville Court (Barchester),Adult Services & Communities - Adults
Peterborough,http://opendatacommunities.org/id/unitary-authority/peterborough,Peterborough City Council,Independent Sector Placements,,Services,01/03/2017 00:00,30115217,3508.4,Revenue,Longueville Court (Barchester),Adult Services & Communities - Adults
Peterborough,http://opendatacommunities.org/id/unitary-authority/peterborough,Peterborough City Council,Independent Sector Placements,,Services,01/03/2017 00:00,30115218,6028,Revenue,Longueville Court (Barchester),Adult Services & Communities - Adults
Peterborough,http://opendatacommunities.org/id/unitary-authority/peterborough,Peterborough City Council,Independent Sector Placements,,Services,01/03/2017 00:00,30115219,2605.08,Revenue,Longueville Court (Barchester),Adult Services & Communities - Adults
Peterborough,http://opendatacommunities.org/id/unitary-authority/peterborough,Peterborough City Council,Independent Sector Placements,,Services,01/03/2017 00:00,30115220,4777,Revenue,Longueville Court (Barchester),Adult Services & Communities - Adults
Peterborough,http://opendatacommunities.org/id/unitary-authority/peterborough,Peterborough City Council,Independent Sector Placements,,Services,01/03/2017 00:00,30115221,2952,Revenue,Longueville Court (Barchester),Adult Services & Communities - Adults
Peterborough,http://opendatacommunities.org/id/unitary-authority/peterborough,Peterborough City Council,Independent Sector Placements,,Services,01/03/2017 00:00,30115222,4236.4,Revenue,Longueville Court (Barchester),Adult Services & Communities - Adults
Peterborough,http://opendatacommunities.org/id/unitary-authority/peterborough,Peterborough City Council,Independent Sector Placements,,Services,01/03/2017 00:00,30115223,3576.4,Revenue,Longueville Court (Barchester),Adult Services & Communities - Adults
Peterborough,http://opendatacommunities.org/id/unitary-authority/peterborough,Peterborough City Council,Independent Sector Placements,,Services,01/03/2017 00:00,30115224,3717.4,Revenue,Longueville Court (Barchester),Adult Services & Communities - Adults
Peterborough,http://opendatacommunities.org/id/unitary-authority/peterborough,Peterborough City Council,Independent Sector Placements,,Services,01/03/2017 00:00,30115226,2817.2,Revenue,Longueville Court (Barchester),Adult Services & Communities - Adults
Peterborough,http://opendatacommunities.org/id/unitary-authority/peterborough,Peterborough City Council,Independent Sector Placements,,Services,01/03/2017 00:00,30115227,2172.6,Revenue,Longueville Court (Barchester),Adult Services & Communities - Adults
Peterborough,http://opendatacommunities.org/id/unitary-authority/peterborough,Peterborough City Council,Independent Sector Placements,,Services,01/03/2017 00:00,30115229,1783.12,Revenue,Longueville Court (Barchester),Adult Services & Communities - Adults
Peterborough,http://opendatacommunities.org/id/unitary-authority/peterborough,Peterborough City Council,Independent Sector Placements,,Services,01/03/2017 00:00,30115231,4262.4,Revenue,Longueville Court (Barchester),Adult Services & Communities - Adults
Peterborough,http://opendatacommunities.org/id/unitary-authority/peterborough,Peterborough City Council,Independent Sector Placements,,Services,01/03/2017 00:00,30115233,4376.4,Revenue,Longueville Court (Barchester),Adult Services & Communities - Adults
Peterborough,http://opendatacommunities.org/id/unitary-authority/peterborough,Peterborough City Council,Independent Sector Placements,,Services,01/03/2017 00:00,30115235,3210.4,Revenue,Longueville Court (Barchester),Adult Services & Communities - Adults
Peterborough,http://opendatacommunities.org/id/unitary-authority/peterborough,Peterborough City Council,Independent Sector Placements,,Services,01/03/2017 00:00,30115237,2033.56,Revenue,Longueville Court (Barchester),Adult Services & Communities - Adults
Peterborough,http://opendatacommunities.org/id/unitary-authority/peterborough,Peterborough City Council,Independent Sector Placements,,Services,01/03/2017 00:00,30115239,3396.08,Revenue,Longueville Court (Barchester),Adult Services & Communities - Adults
Peterborough,http://opendatacommunities.org/id/unitary-authority/peterborough,Peterborough City Council,Independent Sector Placements,,Services,01/03/2017 00:00,30115248,1058.6,Revenue,THE TUDORS,Adult Services & Communities - Adults
Peterborough,http://opendatacommunities.org/id/unitary-authority/peterborough,Peterborough City Council,Independent Sector Placements,,Services,01/03/2017 00:00,30115249,1053.44,Revenue,THE TUDORS,Adult Services & Communities - Adults
Peterborough,http://opendatacommunities.org/id/unitary-authority/peterborough,Peterborough City Council,Independent Sector Placements,,Services,01/03/2017 00:00,30115250,1821.88,Revenue,THE TUDORS,Adult Services & Communities - Adults
Peterborough,http://opendatacommunities.org/id/unitary-authority/peterborough,Peterborough City Council,Independent Sector Placements,,Services,01/03/2017 00:00,30115251,1275.92,Revenue,THE TUDORS,Adult Services & Communities - Adults
Peterborough,http://opendatacommunities.org/id/unitary-authority/peterborough,Peterborough City Council,Independent Sector Placements,,Services,01/03/2017 00:00,30115252,1159.76,Revenue,THE TUDORS,Adult Services & Communities - Adults
Peterborough,http://opendatacommunities.org/id/unitary-authority/peterborough,Peterborough City Council,Independent Sector Placements,,Services,01/03/2017 00:00,30115253,1299.08,Revenue,THE TUDORS,Adult Services & Communities - Adults
Peterborough,http://opendatacommunities.org/id/unitary-authority/peterborough,Peterborough City Council,Independent Sector Placements,,Services,01/03/2017 00:00,30115254,956.08,Revenue,THE TUDORS,Adult Services & Communities - Adults
Peterborough,http://opendatacommunities.org/id/unitary-authority/peterborough,Peterborough City Council,Independent Sector Placements,,Services,01/03/2017 00:00,30115255,1053.44,Revenue,THE TUDORS,Adult Services & Communities - Adults
Peterborough,http://opendatacommunities.org/id/unitary-authority/peterborough,Peterborough City Council,Independent Sector Placements,,Services,01/03/2017 00:00,30115256,1399.08,Revenue,THE TUDORS,Adult Services & Communities - Adults
Peterborough,http://opendatacommunities.org/id/unitary-authority/peterborough,Peterborough City Council,Independent Sector Placements,,Services,01/03/2017 00:00,30115257,718.64,Revenue,THE TUDORS,Adult Services & Communities - Adults
Peterborough,http://opendatacommunities.org/id/unitary-authority/peterborough,Peterborough City Council,Independent Sector Placements,,Services,01/03/2017 00:00,30115258,1188.2,Revenue,THE TUDORS,Adult Services & Communities - Adults
Peterborough,http://opendatacommunities.org/id/unitary-authority/peterborough,Peterborough City Council,Independent Sector Placements,,Services,01/03/2017 00:00,30115259,990,Revenue,THE TUDORS,Adult Services & Communities - Adults
Peterborough,http://opendatacommunities.org/id/unitary-authority/peterborough,Peterborough City Council,Independent Sector Placements,,Services,01/03/2017 00:00,30115260,1239.92,Revenue,THE TUDORS,Adult Services & Communities - Adults
Peterborough,http://opendatacommunities.org/id/unitary-authority/peterborough,Peterborough City Council,Independent Sector Placements,,Services,01/03/2017 00:00,30115261,1224.08,Revenue,THE TUDORS,Adult Services & Communities - Adults
Peterborough,http://opendatacommunities.org/id/unitary-authority/peterborough,Peterborough City Council,Independent Sector Placements,,Services,01/03/2017 00:00,30115262,1319.08,Revenue,THE TUDORS,Adult Services & Communities - Adults
Peterborough,http://opendatacommunities.org/id/unitary-authority/peterborough,Peterborough City Council,Independent Sector Placements,,Services,01/03/2017 00:00,30115284,1300.44,Revenue,Red House Nursing Home,Adult Services & Communities - Adults
Peterborough,http://opendatacommunities.org/id/unitary-authority/peterborough,Peterborough City Council,Independent Sector Placements,,Services,01/03/2017 00:00,30115285,1004.2,Revenue,Red House Nursing Home,Adult Services & Communities - Adults
Peterborough,http://opendatacommunities.org/id/unitary-authority/peterborough,Peterborough City Council,Independent Sector Placements,,Services,01/03/2017 00:00,30115286,1327.56,Revenue,Red House Nursing Home,Adult Services & Communities - Adults
Peterborough,http://opendatacommunities.org/id/unitary-authority/peterborough,Peterborough City Council,Independent Sector Placements,,Services,01/03/2017 00:00,30115288,2188.36,Revenue,Longueville Court (Barchester),Adult Services & Communities - Adults
Peterborough,http://opendatacommunities.org/id/unitary-authority/peterborough,Peterborough City Council,Independent Sector Placements,,Services,01/03/2017 00:00,30115289,2882.56,Revenue,Longueville Court (Barchester),Adult Services & Communities - Adults
Peterborough,http://opendatacommunities.org/id/unitary-authority/peterborough,Peterborough City Council,Housing and Health,,Services,01/03/2017 00:00,30115304,655.06,Revenue,DA Rosalia Hotel,Adults and Communities - Communities
Peterborough,http://opendatacommunities.org/id/unitary-authority/peterborough,Peterborough City Council,Housing and Health,,Services,01/03/2017 00:00,30115309,655.06,Revenue,DA Rosalia Hotel,Adults and Communities - Communities
Peterborough,http://opendatacommunities.org/id/unitary-authority/peterborough,Peterborough City Council,Housing and Health,,Services,01/03/2017 00:00,30115312,655.06,Revenue,DA Rosalia Hotel,Adults and Communities - Communities
Peterborough,http://opendatacommunities.org/id/unitary-authority/peterborough,Peterborough City Council,Housing and Health,,Services,01/03/2017 00:00,30115314,595.56,Revenue,DA Rosalia Hotel,Adults and Communities - Communities
Peterborough,http://opendatacommunities.org/id/unitary-authority/peterborough,Peterborough City Council,Housing and Health,,Services,01/03/2017 00:00,30115316,595.56,Revenue,DA Rosalia Hotel,Adults and Communities - Communities
Peterborough,http://opendatacommunities.org/id/unitary-authority/peterborough,Peterborough City Council,Housing and Health,,Services,01/03/2017 00:00,30115324,714.56,Revenue,DA Rosalia Hotel,Adults and Communities - Communities
Peterborough,http://opendatacommunities.org/id/unitary-authority/peterborough,Peterborough City Council,Corporate,,Non Revenue,01/03/2017 00:00,30115368,2040,Capital,M J Greaves,Corporate
Peterborough,http://opendatacommunities.org/id/unitary-authority/peterborough,Peterborough City Council,Corporate,,Non Revenue,01/03/2017 00:00,30115369,504,Capital,M J Greaves,Corporate
Peterborough,http://opendatacommunities.org/id/unitary-authority/peterborough,Peterborough City Council,Independent Sector Placements,,Services,01/03/2017 00:00,30115401,2045.88,Revenue,Barchester Newton House Care Home,Adult Services & Communities - Adults
Peterborough,http://opendatacommunities.org/id/unitary-authority/peterborough,Peterborough City Council,Independent Sector Placements,,Services,01/03/2017 00:00,30115404,1728.4,Revenue,Kemps Place Ltd,Adult Services & Communities - Adults
Peterborough,http://opendatacommunities.org/id/unitary-authority/peterborough,Peterborough City Council,Independent Sector Placements,,Services,01/03/2017 00:00,30115406,2480,Revenue,Kemps Place Ltd,Adult Services & Communities - Adults
Peterborough,http://opendatacommunities.org/id/unitary-authority/peterborough,Peterborough City Council,Independent Sector Placements,,Services,01/03/2017 00:00,30115407,2680,Revenue,Kemps Place Ltd,Adult Services & Communities - Adults
Peterborough,http://opendatacommunities.org/id/unitary-authority/peterborough,Peterborough City Council,Independent Sector Placements,,Services,01/03/2017 00:00,30115433,1024.04,Revenue,Oakhouse Homecare Cambs Ltd,Adult Services & Communities - Adults
Peterborough,http://opendatacommunities.org/id/unitary-authority/peterborough,Peterborough City Council,Independent Sector Placements,,Services,01/03/2017 00:00,30115434,1167.08,Revenue,Oakhouse Homecare Cambs Ltd,Adult Services & Communities - Adults
Peterborough,http://opendatacommunities.org/id/unitary-authority/peterborough,Peterborough City Council,Independent Sector Placements,,Services,01/03/2017 00:00,30115435,1240,Revenue,Oakhouse Homecare Cambs Ltd,Adult Services & Communities - Adults
Peterborough,http://opendatacommunities.org/id/unitary-authority/peterborough,Peterborough City Council,Access to Resources & Specialist Commissioning,,Services,01/03/2017 00:00,30115442,3559.92,Revenue,Byrne House Ltd,Children's & Safeguarding
Peterborough,http://opendatacommunities.org/id/unitary-authority/peterborough,Peterborough City Council,Cultural Services,,Services,01/03/2017 00:00,30115461,2280,Revenue,Redacted Personal Information,Vivacity/Cultural Services
Peterborough,http://opendatacommunities.org/id/unitary-authority/peterborough,Peterborough City Council,Pupil Referral Unit,,Services,01/03/2017 00:00,30115501,4068.5,Revenue,NACRO,Education
Peterborough,http://opendatacommunities.org/id/unitary-authority/peterborough,Peterborough City Council,Independent Sector Placements,,Services,01/03/2017 00:00,30115585,1299.08,Revenue,Maxey House Res Home,Adult Services & Communities - Adults
Peterborough,http://opendatacommunities.org/id/unitary-authority/peterborough,Peterborough City Council,Finance,,Agency Staff,01/03/2017 00:00,30115598,1341.25,Revenue,Reed Specialist Recruitment,Financial Services
Peterborough,http://opendatacommunities.org/id/unitary-authority/peterborough,Peterborough City Council,Independent Sector Placements,,Services,01/03/2017 00:00,30115611,3365.44,Revenue,Voyage,Adult Services & Communities - Adults
Peterborough,http://opendatacommunities.org/id/unitary-authority/peterborough,Peterborough City Council,Independent Sector Placements,,Services,01/03/2017 00:00,30115613,4147.2,Revenue,Voyage,Adult Services & Communities - Adults
Peterborough,http://opendatacommunities.org/id/unitary-authority/peterborough,Peterborough City Council,Pupil Referral Unit,,Services,01/03/2017 00:00,30115654,4030,Revenue,Stagecoach in Peterborough,Education
Peterborough,http://opendatacommunities.org/id/unitary-authority/peterborough,Peterborough City Council,Therapy/Reablement/Community Equipment,,"Tools, Equipment, Furniture & Materials",01/03/2017 00:00,30115662,17272.51,Revenue,Cambridgeshire County Council,Adult Services & Communities - Adults
Peterborough,http://opendatacommunities.org/id/unitary-authority/peterborough,Peterborough City Council,Transport & Infrastructure Commissioning,,Services,01/03/2017 00:00,30115731,26448,Revenue,Stagecoach in Peterborough,Peterborough Highway Services
Peterborough,http://opendatacommunities.org/id/unitary-authority/peterborough,Peterborough City Council,Access to Resources & Specialist Commissioning,,Services,01/03/2017 00:00,30115769,1452,Revenue,PC Homes,Children's & Safeguarding
Peterborough,http://opendatacommunities.org/id/unitary-authority/peterborough,Peterborough City Council,Block Contracts,,Third Party Payments,01/03/2017 00:00,30115807,1821.96,Revenue,Fins Care Ltd t/a St Margarets Rest Home,Adult Services & Communities - Adults
Peterborough,http://opendatacommunities.org/id/unitary-authority/peterborough,Peterborough City Council,Independent Sector Placements,,Services,01/03/2017 00:00,30115826,1255.36,Revenue,POLEBROOK NURSING HOME,Adult Services & Communities - Adults
Peterborough,http://opendatacommunities.org/id/unitary-authority/peterborough,Peterborough City Council,Pupil Referral Unit,,Agency Staff,01/03/2017 00:00,30115842,895,Revenue,Mana Resourcing Ltd,Education
Peterborough,http://opendatacommunities.org/id/unitary-authority/peterborough,Peterborough City Council,Independent Sector Placements,,Services,01/03/2017 00:00,30115910,1053.44,Revenue,Park Vista Care Home,Adult Services & Communities - Adults
Peterborough,http://opendatacommunities.org/id/unitary-authority/peterborough,Peterborough City Council,Independent Sector Placements,,Services,01/03/2017 00:00,30115912,6012.41,Revenue,PJ Care Ltd,Adult Services & Communities - Adults
Peterborough,http://opendatacommunities.org/id/unitary-authority/peterborough,Peterborough City Council,Independent Sector Placements,,Services,01/03/2017 00:00,30115913,2015,Revenue,Klair House Residential Care Homes,Adult Services & Communities - Adults
Peterborough,http://opendatacommunities.org/id/unitary-authority/peterborough,Peterborough City Council,Independent Sector Placements,,Services,01/03/2017 00:00,30115941,1951.7,Revenue,Thera East Anglia,Adult Services & Communities - Adults
Peterborough,http://opendatacommunities.org/id/unitary-authority/peterborough,Peterborough City Council,Independent Sector Placements,,Services,01/03/2017 00:00,30115942,767.25,Revenue,Thera East Anglia,Adult Services & Communities - Adults
Peterborough,http://opendatacommunities.org/id/unitary-authority/peterborough,Peterborough City Council,Independent Sector Placements,,Services,01/03/2017 00:00,30115943,767.25,Revenue,Thera East Anglia,Adult Services & Communities - Adults
Peterborough,http://opendatacommunities.org/id/unitary-authority/peterborough,Peterborough City Council,Independent Sector Placements,,Services,01/03/2017 00:00,30115944,1951.7,Revenue,Thera East Anglia,Adult Services & Communities - Adults
Peterborough,http://opendatacommunities.org/id/unitary-authority/peterborough,Peterborough City Council,Independent Sector Placements,,Services,01/03/2017 00:00,30115945,767.25,Revenue,Thera East Anglia,Adult Services & Communities - Adults
Peterborough,http://opendatacommunities.org/id/unitary-authority/peterborough,Peterborough City Council,Independent Sector Placements,,Services,01/03/2017 00:00,30115946,1767,Revenue,Thera East Anglia,Adult Services & Communities - Adults
Peterborough,http://opendatacommunities.org/id/unitary-authority/peterborough,Peterborough City Council,Independent Sector Placements,,Services,01/03/2017 00:00,30115948,723.34,Revenue,Thera East Anglia,Adult Services & Communities - Adults
Peterborough,http://opendatacommunities.org/id/unitary-authority/peterborough,Peterborough City Council,Independent Sector Placements,,Services,01/03/2017 00:00,30115949,767.25,Revenue,Thera East Anglia,Adult Services & Communities - Adults
Peterborough,http://opendatacommunities.org/id/unitary-authority/peterborough,Peterborough City Council,Independent Sector Placements,,Services,01/03/2017 00:00,30115951,680.71,Revenue,Thera East Anglia,Adult Services & Communities - Adults
Peterborough,http://opendatacommunities.org/id/unitary-authority/peterborough,Peterborough City Council,Independent Sector Placements,,Services,01/03/2017 00:00,30115953,2246.2,Revenue,Thera East Anglia,Adult Services & Communities - Adults
Peterborough,http://opendatacommunities.org/id/unitary-authority/peterborough,Peterborough City Council,Independent Sector Placements,,Services,01/03/2017 00:00,30115954,680.71,Revenue,Thera East Anglia,Adult Services & Communities - Adults
Peterborough,http://opendatacommunities.org/id/unitary-authority/peterborough,Peterborough City Council,Independent Sector Placements,,Services,01/03/2017 00:00,30115956,3534,Revenue,Thera East Anglia,Adult Services & Communities - Adults
Peterborough,http://opendatacommunities.org/id/unitary-authority/peterborough,Peterborough City Council,Independent Sector Placements,,Services,01/03/2017 00:00,30116031,957,Revenue,FIELD HOUSE (EYE) LTD,Adult Services & Communities - Adults
Peterborough,http://opendatacommunities.org/id/unitary-authority/peterborough,Peterborough City Council,Transport & Infrastructure Commissioning,,Services,01/03/2017 00:00,30116051,1055,Revenue,ITSO Ltd,Peterborough Highway Services
Peterborough,http://opendatacommunities.org/id/unitary-authority/peterborough,Peterborough City Council,Pupil Referral Unit,,Agency Staff,01/03/2017 00:00,30116076,5957,Revenue,Vision for Education Ltd,Education
Peterborough,http://opendatacommunities.org/id/unitary-authority/peterborough,Peterborough City Council,Independent Sector Placements,,Services,01/03/2017 00:00,30116168,3496.44,Revenue,Voyage,Adult Services & Communities - Adults
Peterborough,http://opendatacommunities.org/id/unitary-authority/peterborough,Peterborough City Council,Independent Sector Placements,,Services,01/03/2017 00:00,30116171,6125.84,Revenue,Voyage,Adult Services & Communities - Adults
Peterborough,http://opendatacommunities.org/id/unitary-authority/peterborough,Peterborough City Council,Independent Sector Placements,,Services,01/03/2017 00:00,30116177,2388.84,Revenue,Axiom Housing Association,Adult Services & Communities - Adults
Peterborough,http://opendatacommunities.org/id/unitary-authority/peterborough,Peterborough City Council,Legal Services,,Services,01/03/2017 00:00,30116242,875,Revenue,Mr Jonathan Auburn,Legal & Democratic
Peterborough,http://opendatacommunities.org/id/unitary-authority/peterborough,Peterborough City Council,Independent Sector Placements,,Services,01/03/2017 00:00,30116247,1132.7,Revenue,Fins Care Ltd t/a St Margarets Rest Home,Adult Services & Communities - Adults
Peterborough,http://opendatacommunities.org/id/unitary-authority/peterborough,Peterborough City Council,Independent Sector Placements,,Services,01/03/2017 00:00,30116248,1055.44,Revenue,Fins Care Ltd t/a St Margarets Rest Home,Adult Services & Communities - Adults
Peterborough,http://opendatacommunities.org/id/unitary-authority/peterborough,Peterborough City Council,Independent Sector Placements,,Services,01/03/2017 00:00,30116252,1486.41,Revenue,Fins Care Ltd t/a St Margarets Rest Home,Adult Services & Communities - Adults
Peterborough,http://opendatacommunities.org/id/unitary-authority/peterborough,Peterborough City Council,Independent Sector Placements,,Services,01/03/2017 00:00,30116256,3751.42,Revenue,Fins Care Ltd t/a St Margarets Rest Home,Adult Services & Communities - Adults
Peterborough,http://opendatacommunities.org/id/unitary-authority/peterborough,Peterborough City Council,Independent Sector Placements,,Services,01/03/2017 00:00,30116257,1288.36,Revenue,Fins Care Ltd t/a St Margarets Rest Home,Adult Services & Communities - Adults
Peterborough,http://opendatacommunities.org/id/unitary-authority/peterborough,Peterborough City Council,Independent Sector Placements,,Services,01/03/2017 00:00,30116258,1053.44,Revenue,Fins Care Ltd t/a St Margarets Rest Home,Adult Services & Communities - Adults
Peterborough,http://opendatacommunities.org/id/unitary-authority/peterborough,Peterborough City Council,Housing and Health,,Services,01/03/2017 00:00,30116292,655.06,Revenue,DA Rosalia Hotel,Adults and Communities - Communities
Peterborough,http://opendatacommunities.org/id/unitary-authority/peterborough,Peterborough City Council,Housing and Health,,Services,01/03/2017 00:00,30116295,655.06,Revenue,DA Rosalia Hotel,Adults and Communities - Communities
Peterborough,http://opendatacommunities.org/id/unitary-authority/peterborough,Peterborough City Council,Housing and Health,,Services,01/03/2017 00:00,30116320,714.56,Revenue,DA Rosalia Hotel,Adults and Communities - Communities
Peterborough,http://opendatacommunities.org/id/unitary-authority/peterborough,Peterborough City Council,Housing and Health,,Services,01/03/2017 00:00,30116350,655.06,Revenue,DA Rosalia Hotel,Adults and Communities - Communities
Peterborough,http://opendatacommunities.org/id/unitary-authority/peterborough,Peterborough City Council,Housing and Health,,Services,01/03/2017 00:00,30116357,655.06,Revenue,DA Rosalia Hotel,Adults and Communities - Communities
Peterborough,http://opendatacommunities.org/id/unitary-authority/peterborough,Peterborough City Council,Housing and Health,,Services,01/03/2017 00:00,30116400,595.56,Revenue,DA Rosalia Hotel,Adults and Communities - Communities
Peterborough,http://opendatacommunities.org/id/unitary-authority/peterborough,Peterborough City Council,Finance,,Agency Staff,01/03/2017 00:00,30116490,1410,Revenue,Penna Plc,Financial Services
Peterborough,http://opendatacommunities.org/id/unitary-authority/peterborough,Peterborough City Council,Access to Resources & Specialist Commissioning,,Services,01/03/2017 00:00,30116604,3984.52,Revenue,By The Bridge,Children's & Safeguarding
Peterborough,http://opendatacommunities.org/id/unitary-authority/peterborough,Peterborough City Council,Various,,Services,01/03/2017 00:00,30116688,1155.31,Revenue,Whistl UK Ltd,Various
Peterborough,http://opendatacommunities.org/id/unitary-authority/peterborough,Peterborough City Council,Various,,Services,01/03/2017 00:00,30116698,1948.28,Revenue,Whistl UK Ltd,Various
Peterborough,http://opendatacommunities.org/id/unitary-authority/peterborough,Peterborough City Council,Independent Sector Placements,,Services,01/03/2017 00:00,30116754,14440,Revenue,Exclusive Secure Care Services,Adult Services & Communities - Adults
Peterborough,http://opendatacommunities.org/id/unitary-authority/peterborough,Peterborough City Council,Democratic Services,,Services,01/03/2017 00:00,30116776,9758,Revenue,Penna Plc,Legal & Democratic
Peterborough,http://opendatacommunities.org/id/unitary-authority/peterborough,Peterborough City Council,Westcombe Engineering,,Services,01/03/2017 00:00,30116855,906.8,Revenue,Barron Clark Castings Ltd,Westcombe Engineering
Peterborough,http://opendatacommunities.org/id/unitary-authority/peterborough,Peterborough City Council,Westcombe Engineering,,Services,01/03/2017 00:00,30116863,644,Revenue,Barron Clark Castings Ltd,Westcombe Engineering
Peterborough,http://opendatacommunities.org/id/unitary-authority/peterborough,Peterborough City Council,Independent Sector Placements,,Services,01/03/2017 00:00,30116907,4892,Revenue,PSYCARE LIMITED,Adult Services & Communities - Adults
Peterborough,http://opendatacommunities.org/id/unitary-authority/peterborough,Peterborough City Council,Independent Sector Placements,,Services,01/03/2017 00:00,30116910,5000,Revenue,PSYCARE LIMITED,Adult Services & Communities - Adults
Peterborough,http://opendatacommunities.org/id/unitary-authority/peterborough,Peterborough City Council,Clare Lodge,,Agency Staff,01/03/2017 00:00,30116952,1256,Revenue,Wrixon Care Services,Business Management and Commercial Operations
Peterborough,http://opendatacommunities.org/id/unitary-authority/peterborough,Peterborough City Council,Clare Lodge,,Agency Staff,01/03/2017 00:00,30116953,1024,Revenue,Wrixon Care Services,Business Management and Commercial Operations
Peterborough,http://opendatacommunities.org/id/unitary-authority/peterborough,Peterborough City Council,Transport & Infrastructure Commissioning,,Energy Costs,01/03/2017 00:00,30116967,4846.9,Revenue,E.ON Energy,Peterborough Highway Services
Peterborough,http://opendatacommunities.org/id/unitary-authority/peterborough,Peterborough City Council,Clare Lodge,,Agency Staff,01/03/2017 00:00,30116973,1568,Revenue,Wrixon Care Services,Business Management and Commercial Operations
Peterborough,http://opendatacommunities.org/id/unitary-authority/peterborough,Peterborough City Council,Transport & Infrastructure Commissioning,,Services,01/03/2017 00:00,30116975,15384.62,Revenue,Stagecoach in Peterborough,Peterborough Highway Services
Peterborough,http://opendatacommunities.org/id/unitary-authority/peterborough,Peterborough City Council,Corporate,,Non Revenue,01/03/2017 00:00,30117018,-7531,Capital,IIC by Education (P'boro) Ltd,Corporate
Peterborough,http://opendatacommunities.org/id/unitary-authority/peterborough,Peterborough City Council,Housing and Health,,Services,01/03/2017 00:00,30117028,1283.5,Revenue,Fletton Electrics Ltd,Adults and Communities - Communities
Peterborough,http://opendatacommunities.org/id/unitary-authority/peterborough,Peterborough City Council,Commissioning,,Services,01/03/2017 00:00,30117044,3925,Revenue,121 Social Care Limited,Business Management and Commercial Operations
Peterborough,http://opendatacommunities.org/id/unitary-authority/peterborough,Peterborough City Council,PFI,,Employers Superannuation Contributions,01/03/2017 00:00,30117116,-838.62,Revenue,IIC by Education (P'boro) Ltd,Education
Peterborough,http://opendatacommunities.org/id/unitary-authority/peterborough,Peterborough City Council,Early Years & Quality Improvement,,Services,01/03/2017 00:00,30117202,18616.77,Revenue,SDN Ltd t/a Stars Day Nursery Bushfield,Business Management and Commercial Operations
Peterborough,http://opendatacommunities.org/id/unitary-authority/peterborough,Peterborough City Council,Early Years & Quality Improvement,,Services,01/03/2017 00:00,30117204,631.25,Revenue,Redacted Personal Information,Business Management and Commercial Operations
Peterborough,http://opendatacommunities.org/id/unitary-authority/peterborough,Peterborough City Council,Early Years & Quality Improvement,,Services,01/03/2017 00:00,30117209,638.68,Revenue,Redacted Personal Information,Business Management and Commercial Operations
Peterborough,http://opendatacommunities.org/id/unitary-authority/peterborough,Peterborough City Council,Early Years & Quality Improvement,,Services,01/03/2017 00:00,30117210,10497.42,Revenue,Little Owls Day Nursery,Business Management and Commercial Operations
Peterborough,http://opendatacommunities.org/id/unitary-authority/peterborough,Peterborough City Council,Early Years & Quality Improvement,,Services,01/03/2017 00:00,30117214,26326.99,Revenue,Peterborough Regional College,Business Management and Commercial Operations
Peterborough,http://opendatacommunities.org/id/unitary-authority/peterborough,Peterborough City Council,Early Years & Quality Improvement,,Services,01/03/2017 00:00,30117220,12079.17,Revenue,The Voyager Nursery,Business Management and Commercial Operations
Peterborough,http://opendatacommunities.org/id/unitary-authority/peterborough,Peterborough City Council,Block Contracts,,Third Party Payments,01/03/2017 00:00,30117372,91453,Revenue,Stonham Housing Association,Adult Services & Communities - Adults
Peterborough,http://opendatacommunities.org/id/unitary-authority/peterborough,Peterborough City Council,Clare Lodge,,Agency Staff,01/03/2017 00:00,30117397,1488,Revenue,Engage Education,Business Management and Commercial Operations
Peterborough,http://opendatacommunities.org/id/unitary-authority/peterborough,Peterborough City Council,Commercial Propety,,Services,01/03/2017 00:00,30117408,8500,Revenue,G V A Grimley,Corporate Property
Peterborough,http://opendatacommunities.org/id/unitary-authority/peterborough,Peterborough City Council,Business Management and Commercial Operations - Public Health,,Third Party Payments,01/03/2017 00:00,30117545,1394,Revenue,Paston Health Centre,Public Health
Peterborough,http://opendatacommunities.org/id/unitary-authority/peterborough,Peterborough City Council,Registration Service,,Services,01/03/2017 00:00,30117546,513.68,Revenue,Peterborough Registrars Office Imprest,"Cemeteries, Cremation & Registrars"
Peterborough,http://opendatacommunities.org/id/unitary-authority/peterborough,Peterborough City Council,Transport & Infrastructure Commissioning,,Services,01/03/2017 00:00,30117568,879.3,Revenue,Unicard Ltd,Peterborough Highway Services
Peterborough,http://opendatacommunities.org/id/unitary-authority/peterborough,Peterborough City Council,Special Educational Needs / Inclusion,,Services,01/03/2017 00:00,30117569,1785,Revenue,Families First Peterborough,Education
Peterborough,http://opendatacommunities.org/id/unitary-authority/peterborough,Peterborough City Council,Special Educational Needs / Inclusion,,Services,01/03/2017 00:00,30117571,1500,Revenue,Families First Peterborough,Education
Peterborough,http://opendatacommunities.org/id/unitary-authority/peterborough,Peterborough City Council,Special Educational Needs / Inclusion,,Services,01/03/2017 00:00,30117572,3465,Revenue,Families First Peterborough,Education
Peterborough,http://opendatacommunities.org/id/unitary-authority/peterborough,Peterborough City Council,Special Educational Needs / Inclusion,,Services,01/03/2017 00:00,30117574,1665,Revenue,Families First Peterborough,Education
Peterborough,http://opendatacommunities.org/id/unitary-authority/peterborough,Peterborough City Council,Independent Sector Placements,,Services,01/03/2017 00:00,30117595,805.2,Revenue,Sahara Community Care Services,Adult Services & Communities - Adults
Peterborough,http://opendatacommunities.org/id/unitary-authority/peterborough,Peterborough City Council,Independent Sector Placements,,Services,01/03/2017 00:00,30117599,937.2,Revenue,Sahara Community Care Services,Adult Services & Communities - Adults
Peterborough,http://opendatacommunities.org/id/unitary-authority/peterborough,Peterborough City Council,Independent Sector Placements,,Services,01/03/2017 00:00,30117600,627,Revenue,Sahara Community Care Services,Adult Services & Communities - Adults
Peterborough,http://opendatacommunities.org/id/unitary-authority/peterborough,Peterborough City Council,Independent Sector Placements,,Services,01/03/2017 00:00,30117606,514.8,Revenue,Sahara Community Care Services,Adult Services & Communities - Adults
Peterborough,http://opendatacommunities.org/id/unitary-authority/peterborough,Peterborough City Council,Independent Sector Placements,,Services,01/03/2017 00:00,30117610,831.6,Revenue,Sahara Community Care Services,Adult Services & Communities - Adults
Peterborough,http://opendatacommunities.org/id/unitary-authority/peterborough,Peterborough City Council,Independent Sector Placements,,Services,01/03/2017 00:00,30117611,541.2,Revenue,Sahara Community Care Services,Adult Services & Communities - Adults
Peterborough,http://opendatacommunities.org/id/unitary-authority/peterborough,Peterborough City Council,Independent Sector Placements,,Services,01/03/2017 00:00,30117612,963.6,Revenue,Sahara Community Care Services,Adult Services & Communities - Adults
Peterborough,http://opendatacommunities.org/id/unitary-authority/peterborough,Peterborough City Council,Independent Sector Placements,,Services,01/03/2017 00:00,30117613,1108.8,Revenue,Sahara Community Care Services,Adult Services & Communities - Adults
Peterborough,http://opendatacommunities.org/id/unitary-authority/peterborough,Peterborough City Council,Independent Sector Placements,,Services,01/03/2017 00:00,30117614,1848,Revenue,Sahara Community Care Services,Adult Services & Communities - Adults
Peterborough,http://opendatacommunities.org/id/unitary-authority/peterborough,Peterborough City Council,Independent Sector Placements,,Services,01/03/2017 00:00,30117619,646.8,Revenue,Sahara Community Care Services,Adult Services & Communities - Adults
Peterborough,http://opendatacommunities.org/id/unitary-authority/peterborough,Peterborough City Council,Independent Sector Placements,,Services,01/03/2017 00:00,30117622,1003.2,Revenue,Sahara Community Care Services,Adult Services & Communities - Adults
Peterborough,http://opendatacommunities.org/id/unitary-authority/peterborough,Peterborough City Council,Independent Sector Placements,,Services,01/03/2017 00:00,30117626,1487.32,Revenue,PHILIA LODGE REST HOME,Adult Services & Communities - Adults
Peterborough,http://opendatacommunities.org/id/unitary-authority/peterborough,Peterborough City Council,Independent Sector Placements,,Services,01/03/2017 00:00,30117627,2063.48,Revenue,PHILIA LODGE REST HOME,Adult Services & Communities - Adults
Peterborough,http://opendatacommunities.org/id/unitary-authority/peterborough,Peterborough City Council,Independent Sector Placements,,Services,01/03/2017 00:00,30117634,650,Revenue,Headway East Northants Ltd,Adult Services & Communities - Adults
Peterborough,http://opendatacommunities.org/id/unitary-authority/peterborough,Peterborough City Council,Special Educational Needs / Inclusion,,Services,01/03/2017 00:00,30117647,819,Revenue,The National Teaching & Advisory Service,Education
Peterborough,http://opendatacommunities.org/id/unitary-authority/peterborough,Peterborough City Council,Early Help ASC/CSC,,Services,01/03/2017 00:00,30117656,150000,Revenue,Success For All Foundation UK,Adults and Communities - Communities
Peterborough,http://opendatacommunities.org/id/unitary-authority/peterborough,Peterborough City Council,Independent Sector Placements,,Services,01/03/2017 00:00,30117669,1277.49,Revenue,Mencap,Adult Services & Communities - Adults
Peterborough,http://opendatacommunities.org/id/unitary-authority/peterborough,Peterborough City Council,Independent Sector Placements,,Services,01/03/2017 00:00,30117671,739.2,Revenue,Mencap,Adult Services & Communities - Adults
Peterborough,http://opendatacommunities.org/id/unitary-authority/peterborough,Peterborough City Council,Independent Sector Placements,,Services,01/03/2017 00:00,30117672,4704.49,Revenue,Fins Care Ltd t/a St Margarets Rest Home,Adult Services & Communities - Adults
Peterborough,http://opendatacommunities.org/id/unitary-authority/peterborough,Peterborough City Council,Independent Sector Placements,,Services,01/03/2017 00:00,30117673,1811.24,Revenue,Excelcare Aliwal Manor,Adult Services & Communities - Adults
Peterborough,http://opendatacommunities.org/id/unitary-authority/peterborough,Peterborough City Council,Independent Sector Placements,,Services,01/03/2017 00:00,30117685,4290,Revenue,Select Support Partnerships Limited,Adult Services & Communities - Adults
Peterborough,http://opendatacommunities.org/id/unitary-authority/peterborough,Peterborough City Council,Independent Sector Placements,,Services,01/03/2017 00:00,30117686,4290,Revenue,Select Support Partnerships Limited,Adult Services & Communities - Adults
Peterborough,http://opendatacommunities.org/id/unitary-authority/peterborough,Peterborough City Council,Independent Sector Placements,,Services,01/03/2017 00:00,30117687,3633.5,Revenue,Select Support Partnerships Limited,Adult Services & Communities - Adults
Peterborough,http://opendatacommunities.org/id/unitary-authority/peterborough,Peterborough City Council,Independent Sector Placements,,Services,01/03/2017 00:00,30117688,4023.8,Revenue,Select Support Partnerships Limited,Adult Services & Communities - Adults
Peterborough,http://opendatacommunities.org/id/unitary-authority/peterborough,Peterborough City Council,Independent Sector Placements,,Services,01/03/2017 00:00,30117689,4092,Revenue,Select Support Partnerships Limited,Adult Services & Communities - Adults
Peterborough,http://opendatacommunities.org/id/unitary-authority/peterborough,Peterborough City Council,Independent Sector Placements,,Services,01/03/2017 00:00,30117690,4092,Revenue,Select Support Partnerships Limited,Adult Services & Communities - Adults
Peterborough,http://opendatacommunities.org/id/unitary-authority/peterborough,Peterborough City Council,Independent Sector Placements,,Services,01/03/2017 00:00,30117691,4092,Revenue,Select Support Partnerships Limited,Adult Services & Communities - Adults
Peterborough,http://opendatacommunities.org/id/unitary-authority/peterborough,Peterborough City Council,Independent Sector Placements,,Services,01/03/2017 00:00,30117692,4092,Revenue,Select Support Partnerships Limited,Adult Services & Communities - Adults
Peterborough,http://opendatacommunities.org/id/unitary-authority/peterborough,Peterborough City Council,Independent Sector Placements,,Services,01/03/2017 00:00,30117693,4085.8,Revenue,Select Support Partnerships Limited,Adult Services & Communities - Adults
Peterborough,http://opendatacommunities.org/id/unitary-authority/peterborough,Peterborough City Council,Independent Sector Placements,,Services,01/03/2017 00:00,30117694,4092,Revenue,Select Support Partnerships Limited,Adult Services & Communities - Adults
Peterborough,http://opendatacommunities.org/id/unitary-authority/peterborough,Peterborough City Council,Independent Sector Placements,,Services,01/03/2017 00:00,30117695,4290,Revenue,Select Support Partnerships Limited,Adult Services & Communities - Adults
Peterborough,http://opendatacommunities.org/id/unitary-authority/peterborough,Peterborough City Council,Independent Sector Placements,,Services,01/03/2017 00:00,30117696,4290,Revenue,Select Support Partnerships Limited,Adult Services & Communities - Adults
Peterborough,http://opendatacommunities.org/id/unitary-authority/peterborough,Peterborough City Council,Bereavement Service,,Services,01/03/2017 00:00,30117701,1478,Revenue,Anglia Co-operative Funerals,"Cemeteries, Cremation & Registrars"
Peterborough,http://opendatacommunities.org/id/unitary-authority/peterborough,Peterborough City Council,Youth / Youth Offending,,Services,01/03/2017 00:00,30117716,7500,Revenue,Healthwatch Cambridgeshire CIC,Adults and Communities - Communities
Peterborough,http://opendatacommunities.org/id/unitary-authority/peterborough,Peterborough City Council,School Improvement,,Rents,01/03/2017 00:00,30117720,1030,Revenue,Kingsgate Trading Ltd,Education
Peterborough,http://opendatacommunities.org/id/unitary-authority/peterborough,Peterborough City Council,School Improvement,,Catering,01/03/2017 00:00,30117720,1990,Revenue,Kingsgate Trading Ltd,Education
Peterborough,http://opendatacommunities.org/id/unitary-authority/peterborough,Peterborough City Council,Independent Sector Placements,,Services,01/03/2017 00:00,30117728,2935.44,Revenue,Boulevard Care Limited,Adult Services & Communities - Adults
Peterborough,http://opendatacommunities.org/id/unitary-authority/peterborough,Peterborough City Council,Independent Sector Placements,,Services,01/03/2017 00:00,30117729,3669.3,Revenue,Boulevard Care Limited,Adult Services & Communities - Adults
Peterborough,http://opendatacommunities.org/id/unitary-authority/peterborough,Peterborough City Council,Access to Resources & Specialist Commissioning,,Services,01/03/2017 00:00,30117730,3210.71,Revenue,Pride Fostering,Children's & Safeguarding
Peterborough,http://opendatacommunities.org/id/unitary-authority/peterborough,Peterborough City Council,Independent Sector Placements,,Services,01/03/2017 00:00,30117735,1768.92,Revenue,Ashmere,Adult Services & Communities - Adults
Peterborough,http://opendatacommunities.org/id/unitary-authority/peterborough,Peterborough City Council,Waste & Operational Svs Mgmt,,Third Party Payments,01/03/2017 00:00,30117767,277812.68,Revenue,Enterprise Managed Services Limited,Amey Peterborough & Waste Management
Peterborough,http://opendatacommunities.org/id/unitary-authority/peterborough,Peterborough City Council,Independent Sector Placements,,Services,01/03/2017 00:00,30117782,4840,Revenue,SOCIAL CARE SOLUTIONS LTD,Adult Services & Communities - Adults
Peterborough,http://opendatacommunities.org/id/unitary-authority/peterborough,Peterborough City Council,Independent Sector Placements,,Services,01/03/2017 00:00,30117788,4840,Revenue,SOCIAL CARE SOLUTIONS LTD,Adult Services & Communities - Adults
Peterborough,http://opendatacommunities.org/id/unitary-authority/peterborough,Peterborough City Council,Mental Capacity Act & DoLs,,Agency Staff,01/03/2017 00:00,30117789,6840,Revenue,Sanctuary Personnel Ltd,Adult Services & Communities - Adults
Peterborough,http://opendatacommunities.org/id/unitary-authority/peterborough,Peterborough City Council,Corporate,,Non Revenue,01/03/2017 00:00,30117790,500,Capital,Redacted Personal Information,Corporate
Peterborough,http://opendatacommunities.org/id/unitary-authority/peterborough,Peterborough City Council,Independent Sector Placements,,Services,01/03/2017 00:00,30117791,4840,Revenue,SOCIAL CARE SOLUTIONS LTD,Adult Services & Communities - Adults
Peterborough,http://opendatacommunities.org/id/unitary-authority/peterborough,Peterborough City Council,Independent Sector Placements,,Services,01/03/2017 00:00,8000083351,930.04,Revenue,Sagecare,Adult Services & Communities - Adults
Peterborough,http://opendatacommunities.org/id/unitary-authority/peterborough,Peterborough City Council,Independent Sector Placements,,Services,01/03/2017 00:00,8000083353,663.27,Revenue,Sagecare,Adult Services & Communities - Adults
Peterborough,http://opendatacommunities.org/id/unitary-authority/peterborough,Peterborough City Council,Independent Sector Placements,,Services,01/03/2017 00:00,8000083354,553.94,Revenue,Sagecare,Adult Services & Communities - Adults
Peterborough,http://opendatacommunities.org/id/unitary-authority/peterborough,Peterborough City Council,Independent Sector Placements,,Services,01/03/2017 00:00,8000083357,665.05,Revenue,Sagecare,Adult Services & Communities - Adults
Peterborough,http://opendatacommunities.org/id/unitary-authority/peterborough,Peterborough City Council,Independent Sector Placements,,Services,01/03/2017 00:00,8000083358,799.21,Revenue,Axiom Care Ltd,Adult Services & Communities - Adults
Peterborough,http://opendatacommunities.org/id/unitary-authority/peterborough,Peterborough City Council,Independent Sector Placements,,Services,01/03/2017 00:00,8000083425,2026.64,Revenue,Cozy Care,Adult Services & Communities - Adults
Peterborough,http://opendatacommunities.org/id/unitary-authority/peterborough,Peterborough City Council,Independent Sector Placements,,Services,01/03/2017 00:00,8000083429,924,Revenue,Cozy Care,Adult Services & Communities - Adults
Peterborough,http://opendatacommunities.org/id/unitary-authority/peterborough,Peterborough City Council,Independent Sector Placements,,Services,01/03/2017 00:00,8000083430,1857.02,Revenue,Cozy Care,Adult Services & Communities - Adults
Peterborough,http://opendatacommunities.org/id/unitary-authority/peterborough,Peterborough City Council,Independent Sector Placements,,Services,01/03/2017 00:00,8000083433,554.4,Revenue,Cozy Care,Adult Services & Communities - Adults
Peterborough,http://opendatacommunities.org/id/unitary-authority/peterborough,Peterborough City Council,Independent Sector Placements,,Services,01/03/2017 00:00,8000083434,534.6,Revenue,Cozy Care,Adult Services & Communities - Adults
Peterborough,http://opendatacommunities.org/id/unitary-authority/peterborough,Peterborough City Council,Independent Sector Placements,,Services,01/03/2017 00:00,8000083441,561,Revenue,Cozy Care,Adult Services & Communities - Adults
Peterborough,http://opendatacommunities.org/id/unitary-authority/peterborough,Peterborough City Council,Independent Sector Placements,,Services,01/03/2017 00:00,8000083442,1198.78,Revenue,Cozy Care,Adult Services & Communities - Adults
Peterborough,http://opendatacommunities.org/id/unitary-authority/peterborough,Peterborough City Council,Independent Sector Placements,,Services,01/03/2017 00:00,8000083446,952.6,Revenue,Cozy Care,Adult Services & Communities - Adults
Peterborough,http://opendatacommunities.org/id/unitary-authority/peterborough,Peterborough City Council,Independent Sector Placements,,Services,01/03/2017 00:00,8000083447,646.8,Revenue,Cozy Care,Adult Services & Communities - Adults
Peterborough,http://opendatacommunities.org/id/unitary-authority/peterborough,Peterborough City Council,Independent Sector Placements,,Services,01/03/2017 00:00,8000083453,785.4,Revenue,Cozy Care,Adult Services & Communities - Adults
Peterborough,http://opendatacommunities.org/id/unitary-authority/peterborough,Peterborough City Council,Independent Sector Placements,,Services,01/03/2017 00:00,8000083455,1782,Revenue,Cozy Care,Adult Services & Communities - Adults
Peterborough,http://opendatacommunities.org/id/unitary-authority/peterborough,Peterborough City Council,Independent Sector Placements,,Services,01/03/2017 00:00,8000083456,657.8,Revenue,Cozy Care,Adult Services & Communities - Adults
Peterborough,http://opendatacommunities.org/id/unitary-authority/peterborough,Peterborough City Council,Independent Sector Placements,,Services,01/03/2017 00:00,8000083457,528,Revenue,Cozy Care,Adult Services & Communities - Adults
Peterborough,http://opendatacommunities.org/id/unitary-authority/peterborough,Peterborough City Council,Independent Sector Placements,,Services,01/03/2017 00:00,8000083460,554.4,Revenue,Cozy Care,Adult Services & Communities - Adults
Peterborough,http://opendatacommunities.org/id/unitary-authority/peterborough,Peterborough City Council,Independent Sector Placements,,Services,01/03/2017 00:00,8000083461,1287,Revenue,Cozy Care,Adult Services & Communities - Adults
Peterborough,http://opendatacommunities.org/id/unitary-authority/peterborough,Peterborough City Council,Independent Sector Placements,,Services,01/03/2017 00:00,8000083463,739.2,Revenue,Cozy Care,Adult Services & Communities - Adults
Peterborough,http://opendatacommunities.org/id/unitary-authority/peterborough,Peterborough City Council,Independent Sector Placements,,Services,01/03/2017 00:00,8000083467,679.14,Revenue,Sagecare,Adult Services & Communities - Adults
Peterborough,http://opendatacommunities.org/id/unitary-authority/peterborough,Peterborough City Council,Independent Sector Placements,,Services,01/03/2017 00:00,8000083468,797.19,Revenue,Sagecare,Adult Services & Communities - Adults
Peterborough,http://opendatacommunities.org/id/unitary-authority/peterborough,Peterborough City Council,Independent Sector Placements,,Services,01/03/2017 00:00,8000083469,668.9,Revenue,Sagecare,Adult Services & Communities - Adults
Peterborough,http://opendatacommunities.org/id/unitary-authority/peterborough,Peterborough City Council,Independent Sector Placements,,Services,01/03/2017 00:00,8000083470,675.82,Revenue,Sagecare,Adult Services & Communities - Adults
Peterborough,http://opendatacommunities.org/id/unitary-authority/peterborough,Peterborough City Council,Independent Sector Placements,,Services,01/03/2017 00:00,8000083471,509.46,Revenue,Sagecare,Adult Services & Communities - Adults
Peterborough,http://opendatacommunities.org/id/unitary-authority/peterborough,Peterborough City Council,Independent Sector Placements,,Services,01/03/2017 00:00,8000083473,679.28,Revenue,Sagecare,Adult Services & Communities - Adults
Peterborough,http://opendatacommunities.org/id/unitary-authority/peterborough,Peterborough City Council,Independent Sector Placements,,Services,01/03/2017 00:00,8000083474,679.28,Revenue,Sagecare,Adult Services & Communities - Adults
Peterborough,http://opendatacommunities.org/id/unitary-authority/peterborough,Peterborough City Council,Independent Sector Placements,,Services,01/03/2017 00:00,8000083475,672.35,Revenue,Sagecare,Adult Services & Communities - Adults
Peterborough,http://opendatacommunities.org/id/unitary-authority/peterborough,Peterborough City Council,Highway & Drainage Control,,Services,03/03/2017 00:00,30110828,2400,Revenue,Peterborough Environment City Trust,Peterborough Highway Services
Peterborough,http://opendatacommunities.org/id/unitary-authority/peterborough,Peterborough City Council,Independent Sector Placements,,Services,03/03/2017 00:00,30114765,8752,Revenue,Autism Care (UK) Ltd,Adult Services & Communities - Adults
Peterborough,http://opendatacommunities.org/id/unitary-authority/peterborough,Peterborough City Council,Children's Social Care,,Agency Staff,03/03/2017 00:00,30114893,1221,Revenue,SWP Consulting,Children's & Safeguarding
Peterborough,http://opendatacommunities.org/id/unitary-authority/peterborough,Peterborough City Council,Day Opportunities / In House,,Agency Staff,03/03/2017 00:00,30114895,1258,Revenue,SWP Consulting,Adult Services & Communities - Adults
Peterborough,http://opendatacommunities.org/id/unitary-authority/peterborough,Peterborough City Council,Day Opportunities / In House,,Agency Staff,03/03/2017 00:00,30114898,976.8,Revenue,Medicare First,Adult Services & Communities - Adults
Peterborough,http://opendatacommunities.org/id/unitary-authority/peterborough,Peterborough City Council,Clare Lodge,,Services,03/03/2017 00:00,30114910,585,Revenue,SLB Securing School Improvement Ltd,Business Management and Commercial Operations
Peterborough,http://opendatacommunities.org/id/unitary-authority/peterborough,Peterborough City Council,Legal Services,,Agency Staff,03/03/2017 00:00,30115005,1668,Revenue,Sellick Partnership Group Limited,Legal & Democratic
Peterborough,http://opendatacommunities.org/id/unitary-authority/peterborough,Peterborough City Council,Regulatory Services,,Agency Staff,03/03/2017 00:00,30115010,1110,Revenue,Osborne Richardson,City Servs & Communications
Peterborough,http://opendatacommunities.org/id/unitary-authority/peterborough,Peterborough City Council,Special Educational Needs / Inclusion,,Agency Staff,03/03/2017 00:00,30115109,4875,Revenue,Applied Psychologies,Education
Peterborough,http://opendatacommunities.org/id/unitary-authority/peterborough,Peterborough City Council,Independent Sector Placements,,Services,03/03/2017 00:00,30115287,2600,Revenue,Longueville Court (Barchester),Adult Services & Communities - Adults
Peterborough,http://opendatacommunities.org/id/unitary-authority/peterborough,Peterborough City Council,Child Health,,Repair & Maintenance of Buildings,03/03/2017 00:00,30115422,4186.17,Revenue,RWS Ltd,Children's & Safeguarding
Peterborough,http://opendatacommunities.org/id/unitary-authority/peterborough,Peterborough City Council,Independent Sector Placements,,Services,03/03/2017 00:00,30115428,4078.2,Revenue,Mencap,Adult Services & Communities - Adults
Peterborough,http://opendatacommunities.org/id/unitary-authority/peterborough,Peterborough City Council,Independent Sector Placements,,Services,03/03/2017 00:00,30115429,4854.4,Revenue,Mencap,Adult Services & Communities - Adults
Peterborough,http://opendatacommunities.org/id/unitary-authority/peterborough,Peterborough City Council,Independent Sector Placements,,Services,03/03/2017 00:00,30115431,4981.2,Revenue,Mencap,Adult Services & Communities - Adults
Peterborough,http://opendatacommunities.org/id/unitary-authority/peterborough,Peterborough City Council,Independent Sector Placements,,Services,03/03/2017 00:00,30115432,4621.2,Revenue,Mencap,Adult Services & Communities - Adults
Peterborough,http://opendatacommunities.org/id/unitary-authority/peterborough,Peterborough City Council,HR WFD & Training,,Services,03/03/2017 00:00,30115466,1600,Revenue,In-Trac Training & Consultancy Services,HR
Peterborough,http://opendatacommunities.org/id/unitary-authority/peterborough,Peterborough City Council,Special Educational Needs / Inclusion,,Services,03/03/2017 00:00,30115636,800,Revenue,Redacted Personal Information,Education
Peterborough,http://opendatacommunities.org/id/unitary-authority/peterborough,Peterborough City Council,Waste Management,,Rents,03/03/2017 00:00,30115640,10000,Revenue,FCC Recycling (UK) Limited,Amey Peterborough & Waste Management
Peterborough,http://opendatacommunities.org/id/unitary-authority/peterborough,Peterborough City Council,Special Educational Needs / Inclusion,,Agency Staff,03/03/2017 00:00,30115685,3240,Revenue,Baltimore Consulting,Education
Peterborough,http://opendatacommunities.org/id/unitary-authority/peterborough,Peterborough City Council,Therapy/Reablement/Community Equipment,,"Tools, Equipment, Furniture & Materials",03/03/2017 00:00,30115718,1945.74,Revenue,NRS Healthcare,Adult Services & Communities - Adults
Peterborough,http://opendatacommunities.org/id/unitary-authority/peterborough,Peterborough City Council,Therapy/Reablement/Community Equipment,,"Tools, Equipment, Furniture & Materials",03/03/2017 00:00,30115719,58399.8,Revenue,NRS Healthcare,Adult Services & Communities - Adults
Peterborough,http://opendatacommunities.org/id/unitary-authority/peterborough,Peterborough City Council,Access to Resources & Specialist Commissioning,,Services,03/03/2017 00:00,30115762,1260,Revenue,PC Homes,Children's & Safeguarding
Peterborough,http://opendatacommunities.org/id/unitary-authority/peterborough,Peterborough City Council,Access to Resources & Specialist Commissioning,,Services,03/03/2017 00:00,30115765,1452,Revenue,PC Homes,Children's & Safeguarding
Peterborough,http://opendatacommunities.org/id/unitary-authority/peterborough,Peterborough City Council,Access to Resources & Specialist Commissioning,,Services,03/03/2017 00:00,30115767,2100,Revenue,PC Homes,Children's & Safeguarding
Peterborough,http://opendatacommunities.org/id/unitary-authority/peterborough,Peterborough City Council,Access to Resources & Specialist Commissioning,,Services,03/03/2017 00:00,30115768,1356,Revenue,PC Homes,Children's & Safeguarding
Peterborough,http://opendatacommunities.org/id/unitary-authority/peterborough,Peterborough City Council,Access to Resources & Specialist Commissioning,,Services,03/03/2017 00:00,30115774,1872,Revenue,PC Homes,Children's & Safeguarding
Peterborough,http://opendatacommunities.org/id/unitary-authority/peterborough,Peterborough City Council,Access to Resources & Specialist Commissioning,,Services,03/03/2017 00:00,30115775,894,Revenue,PC Homes,Children's & Safeguarding
Peterborough,http://opendatacommunities.org/id/unitary-authority/peterborough,Peterborough City Council,Access to Resources & Specialist Commissioning,,Services,03/03/2017 00:00,30115776,1452,Revenue,PC Homes,Children's & Safeguarding
Peterborough,http://opendatacommunities.org/id/unitary-authority/peterborough,Peterborough City Council,Independent Sector Placements,,Services,03/03/2017 00:00,30115823,1207.08,Revenue,Stonehaven (Healthcare) Ltd TA The Manor Exminster,Adult Services & Communities - Adults
Peterborough,http://opendatacommunities.org/id/unitary-authority/peterborough,Peterborough City Council,Independent Sector Placements,,Services,03/03/2017 00:00,30115923,3292,Revenue,Richmond Fellowship,Adult Services & Communities - Adults
Peterborough,http://opendatacommunities.org/id/unitary-authority/peterborough,Peterborough City Council,Independent Sector Placements,,Services,03/03/2017 00:00,30115924,3244,Revenue,Richmond Fellowship,Adult Services & Communities - Adults
Peterborough,http://opendatacommunities.org/id/unitary-authority/peterborough,Peterborough City Council,Independent Sector Placements,,Services,03/03/2017 00:00,30116003,3400,Revenue,LESTER HALL APARTMENTS LTD,Adult Services & Communities - Adults
Peterborough,http://opendatacommunities.org/id/unitary-authority/peterborough,Peterborough City Council,Financing - Resources,,Services,03/03/2017 00:00,30116185,2556.72,Revenue,Sense,Education
Peterborough,http://opendatacommunities.org/id/unitary-authority/peterborough,Peterborough City Council,Financing - Resources,,Services,03/03/2017 00:00,30116188,2556.72,Revenue,Sense,Education
Peterborough,http://opendatacommunities.org/id/unitary-authority/peterborough,Peterborough City Council,Financing - Resources,,Services,03/03/2017 00:00,30116193,2740.88,Revenue,Sense,Education
Peterborough,http://opendatacommunities.org/id/unitary-authority/peterborough,Peterborough City Council,Financing - Resources,,Services,03/03/2017 00:00,30116194,2556.72,Revenue,Sense,Education
Peterborough,http://opendatacommunities.org/id/unitary-authority/peterborough,Peterborough City Council,Financing - Resources,,Services,03/03/2017 00:00,30116215,2740.88,Revenue,Sense,Education
Peterborough,http://opendatacommunities.org/id/unitary-authority/peterborough,Peterborough City Council,Financing - Resources,,Services,03/03/2017 00:00,30116222,2740.88,Revenue,Sense,Education
Peterborough,http://opendatacommunities.org/id/unitary-authority/peterborough,Peterborough City Council,Housing and Health,,Services,03/03/2017 00:00,30116456,688.5,Revenue,Dave Elms Building & Maintenance,Adults and Communities - Communities
Peterborough,http://opendatacommunities.org/id/unitary-authority/peterborough,Peterborough City Council,Clare Lodge,,Interview & Training Expenses,03/03/2017 00:00,30116478,2790,Revenue,St Andrew's Healthcare,Business Management and Commercial Operations
Peterborough,http://opendatacommunities.org/id/unitary-authority/peterborough,Peterborough City Council,Clare Lodge,,Agency Staff,03/03/2017 00:00,30116954,1472,Revenue,Wrixon Care Services,Business Management and Commercial Operations
Peterborough,http://opendatacommunities.org/id/unitary-authority/peterborough,Peterborough City Council,Clare Lodge,,Agency Staff,03/03/2017 00:00,30116958,2112,Revenue,Wrixon Care Services,Business Management and Commercial Operations
Peterborough,http://opendatacommunities.org/id/unitary-authority/peterborough,Peterborough City Council,Housing and Health,,Services,03/03/2017 00:00,30116988,500,Revenue,Redacted Personal Information,Adults and Communities - Communities
Peterborough,http://opendatacommunities.org/id/unitary-authority/peterborough,Peterborough City Council,Pupil Referral Unit,,"Tools, Equipment, Furniture & Materials",03/03/2017 00:00,30117095,518,Revenue,Eastern Shires Purchasing Organisation,Education
Peterborough,http://opendatacommunities.org/id/unitary-authority/peterborough,Peterborough City Council,Waste Management,,Services,03/03/2017 00:00,30117189,5148.39,Revenue,Material Change Ltd,Amey Peterborough & Waste Management
Peterborough,http://opendatacommunities.org/id/unitary-authority/peterborough,Peterborough City Council,Housing and Health,,Services,03/03/2017 00:00,30117381,507.5,Revenue,Eastfield Guesthouse,Adults and Communities - Communities
Peterborough,http://opendatacommunities.org/id/unitary-authority/peterborough,Peterborough City Council,Housing and Health,,Services,03/03/2017 00:00,30117382,507.5,Revenue,Eastfield Guesthouse,Adults and Communities - Communities
Peterborough,http://opendatacommunities.org/id/unitary-authority/peterborough,Peterborough City Council,Housing and Health,,Services,03/03/2017 00:00,30117385,507.5,Revenue,Eastfield Guesthouse,Adults and Communities - Communities
Peterborough,http://opendatacommunities.org/id/unitary-authority/peterborough,Peterborough City Council,Housing and Health,,Services,03/03/2017 00:00,30117389,507.5,Revenue,Eastfield Guesthouse,Adults and Communities - Communities
Peterborough,http://opendatacommunities.org/id/unitary-authority/peterborough,Peterborough City Council,Special Educational Needs / Inclusion,,Services,03/03/2017 00:00,30117422,1270,Revenue,Redacted Personal Information,Education
Peterborough,http://opendatacommunities.org/id/unitary-authority/peterborough,Peterborough City Council,Children's Social Care,,Services,03/03/2017 00:00,30117462,571.48,Revenue,Redacted Personal Information,Children's & Safeguarding
Peterborough,http://opendatacommunities.org/id/unitary-authority/peterborough,Peterborough City Council,Corporate,,Non Revenue,03/03/2017 00:00,30117705,87578.27,Capital,Carillion Building,Corporate
Peterborough,http://opendatacommunities.org/id/unitary-authority/peterborough,Peterborough City Council,Independent Sector Placements,,Services,03/03/2017 00:00,30117733,1768.92,Revenue,Ashmere,Adult Services & Communities - Adults
Peterborough,http://opendatacommunities.org/id/unitary-authority/peterborough,Peterborough City Council,Corporate,,Non Revenue,03/03/2017 00:00,30117778,2021.32,Capital,Lynch Healthcare,Corporate
Peterborough,http://opendatacommunities.org/id/unitary-authority/peterborough,Peterborough City Council,Pupil Referral Unit,,Energy Costs,03/03/2017 00:00,30117794,1604.7,Revenue,Southern Electric,Education
Peterborough,http://opendatacommunities.org/id/unitary-authority/peterborough,Peterborough City Council,Independent Sector Placements,,Services,03/03/2017 00:00,30117840,534,Revenue,HEADWAY CAMBRIDGESHIRE,Adult Services & Communities - Adults
Peterborough,http://opendatacommunities.org/id/unitary-authority/peterborough,Peterborough City Council,Independent Sector Placements,,Services,03/03/2017 00:00,30117841,4000,Revenue,Longueville Court (Barchester),Adult Services & Communities - Adults
Peterborough,http://opendatacommunities.org/id/unitary-authority/peterborough,Peterborough City Council,Independent Sector Placements,,Services,03/03/2017 00:00,30117851,2042.86,Revenue,FIELD HOUSE (EYE) LTD,Adult Services & Communities - Adults
Peterborough,http://opendatacommunities.org/id/unitary-authority/peterborough,Peterborough City Council,Independent Sector Placements,,Services,03/03/2017 00:00,30117854,4840,Revenue,SOCIAL CARE SOLUTIONS LTD,Adult Services & Communities - Adults
Peterborough,http://opendatacommunities.org/id/unitary-authority/peterborough,Peterborough City Council,Independent Sector Placements,,Services,03/03/2017 00:00,30117856,4840,Revenue,SOCIAL CARE SOLUTIONS LTD,Adult Services & Communities - Adults
Peterborough,http://opendatacommunities.org/id/unitary-authority/peterborough,Peterborough City Council,Independent Sector Placements,,Services,03/03/2017 00:00,30117857,4840,Revenue,SOCIAL CARE SOLUTIONS LTD,Adult Services & Communities - Adults
Peterborough,http://opendatacommunities.org/id/unitary-authority/peterborough,Peterborough City Council,Independent Sector Placements,,Services,03/03/2017 00:00,30117858,1932,Revenue,SOCIAL CARE SOLUTIONS LTD,Adult Services & Communities - Adults
Peterborough,http://opendatacommunities.org/id/unitary-authority/peterborough,Peterborough City Council,Independent Sector Placements,,Services,03/03/2017 00:00,30117895,2023.2,Revenue,Benell Care Services Ltd,Adult Services & Communities - Adults
Peterborough,http://opendatacommunities.org/id/unitary-authority/peterborough,Peterborough City Council,Independent Sector Placements,,Services,03/03/2017 00:00,30117898,924,Revenue,Cozy Care,Adult Services & Communities - Adults
Peterborough,http://opendatacommunities.org/id/unitary-authority/peterborough,Peterborough City Council,Independent Sector Placements,,Services,03/03/2017 00:00,30117899,916.96,Revenue,Cozy Care,Adult Services & Communities - Adults
Peterborough,http://opendatacommunities.org/id/unitary-authority/peterborough,Peterborough City Council,Independent Sector Placements,,Services,03/03/2017 00:00,30117900,848.1,Revenue,Cozy Care,Adult Services & Communities - Adults
Peterborough,http://opendatacommunities.org/id/unitary-authority/peterborough,Peterborough City Council,Independent Sector Placements,,Services,03/03/2017 00:00,30117909,1155.92,Revenue,Avery Homes (Nelson) Ltd,Adult Services & Communities - Adults
Peterborough,http://opendatacommunities.org/id/unitary-authority/peterborough,Peterborough City Council,Independent Sector Placements,,Services,03/03/2017 00:00,30117910,1217.2,Revenue,Avery Homes (Nelson) Ltd,Adult Services & Communities - Adults
Peterborough,http://opendatacommunities.org/id/unitary-authority/peterborough,Peterborough City Council,Independent Sector Placements,,Services,03/03/2017 00:00,30117919,1217.2,Revenue,Avery Homes (Nelson) Ltd,Adult Services & Communities - Adults
Peterborough,http://opendatacommunities.org/id/unitary-authority/peterborough,Peterborough City Council,Strategic Client Services,,Services,03/03/2017 00:00,30117920,15000,Revenue,Postage By Phone - Pitney Bowes Ltd,Commercial Group
Peterborough,http://opendatacommunities.org/id/unitary-authority/peterborough,Peterborough City Council,Independent Sector Placements,,Services,03/03/2017 00:00,30117981,2162.24,Revenue,"ATCHISON, MR ALAN",Adult Services & Communities - Adults
Peterborough,http://opendatacommunities.org/id/unitary-authority/peterborough,Peterborough City Council,Independent Sector Placements,,Services,03/03/2017 00:00,30117987,4288,Revenue,"ATCHISON, MR ALAN",Adult Services & Communities - Adults
Peterborough,http://opendatacommunities.org/id/unitary-authority/peterborough,Peterborough City Council,Independent Sector Placements,,Services,03/03/2017 00:00,30117989,2162.28,Revenue,"ATCHISON, MR ALAN",Adult Services & Communities - Adults
Peterborough,http://opendatacommunities.org/id/unitary-authority/peterborough,Peterborough City Council,Independent Sector Placements,,Services,03/03/2017 00:00,30117993,1954.32,Revenue,"ATCHISON, MR ALAN",Adult Services & Communities - Adults
Peterborough,http://opendatacommunities.org/id/unitary-authority/peterborough,Peterborough City Council,Independent Sector Placements,,Services,03/03/2017 00:00,30117996,3200,Revenue,"ATCHISON, MR ALAN",Adult Services & Communities - Adults
Peterborough,http://opendatacommunities.org/id/unitary-authority/peterborough,Peterborough City Council,Independent Sector Placements,,Services,03/03/2017 00:00,30117999,660,Revenue,"ATCHISON, MR ALAN",Adult Services & Communities - Adults
Peterborough,http://opendatacommunities.org/id/unitary-authority/peterborough,Peterborough City Council,Independent Sector Placements,,Services,03/03/2017 00:00,30118004,660,Revenue,"ATCHISON, MR ALAN",Adult Services & Communities - Adults
Peterborough,http://opendatacommunities.org/id/unitary-authority/peterborough,Peterborough City Council,Independent Sector Placements,,Services,03/03/2017 00:00,30118006,2345.2,Revenue,"ATCHISON, MR ALAN",Adult Services & Communities - Adults
Peterborough,http://opendatacommunities.org/id/unitary-authority/peterborough,Peterborough City Council,Independent Sector Placements,,Services,03/03/2017 00:00,30118007,2337.52,Revenue,"ATCHISON, MR ALAN",Adult Services & Communities - Adults
Peterborough,http://opendatacommunities.org/id/unitary-authority/peterborough,Peterborough City Council,Independent Sector Placements,,Services,03/03/2017 00:00,30118009,2794.32,Revenue,"ATCHISON, MR ALAN",Adult Services & Communities - Adults
Peterborough,http://opendatacommunities.org/id/unitary-authority/peterborough,Peterborough City Council,Independent Sector Placements,,Services,03/03/2017 00:00,30118010,3625.08,Revenue,"ATCHISON, MR ALAN",Adult Services & Communities - Adults
Peterborough,http://opendatacommunities.org/id/unitary-authority/peterborough,Peterborough City Council,Independent Sector Placements,,Services,03/03/2017 00:00,30118011,4391.48,Revenue,"ATCHISON, MR ALAN",Adult Services & Communities - Adults
Peterborough,http://opendatacommunities.org/id/unitary-authority/peterborough,Peterborough City Council,Independent Sector Placements,,Services,03/03/2017 00:00,30118012,3625.08,Revenue,"ATCHISON, MR ALAN",Adult Services & Communities - Adults
Peterborough,http://opendatacommunities.org/id/unitary-authority/peterborough,Peterborough City Council,Independent Sector Placements,,Services,03/03/2017 00:00,30118013,1954.32,Revenue,"ATCHISON, MR ALAN",Adult Services & Communities - Adults
Peterborough,http://opendatacommunities.org/id/unitary-authority/peterborough,Peterborough City Council,Independent Sector Placements,,Services,03/03/2017 00:00,30118016,5234.52,Revenue,"ATCHISON, MR ALAN",Adult Services & Communities - Adults
Peterborough,http://opendatacommunities.org/id/unitary-authority/peterborough,Peterborough City Council,Independent Sector Placements,,Services,03/03/2017 00:00,30118020,685.28,Revenue,"ATCHISON, MR ALAN",Adult Services & Communities - Adults
Peterborough,http://opendatacommunities.org/id/unitary-authority/peterborough,Peterborough City Council,Independent Sector Placements,,Services,03/03/2017 00:00,30118023,4904,Revenue,"ATCHISON, MR ALAN",Adult Services & Communities - Adults
Peterborough,http://opendatacommunities.org/id/unitary-authority/peterborough,Peterborough City Council,Independent Sector Placements,,Services,03/03/2017 00:00,30118034,3103.92,Revenue,"ATCHISON, MR ALAN",Adult Services & Communities - Adults
Peterborough,http://opendatacommunities.org/id/unitary-authority/peterborough,Peterborough City Council,Independent Sector Placements,,Services,03/03/2017 00:00,30118035,6121,Revenue,"ATCHISON, MR ALAN",Adult Services & Communities - Adults
Peterborough,http://opendatacommunities.org/id/unitary-authority/peterborough,Peterborough City Council,Independent Sector Placements,,Services,03/03/2017 00:00,30118037,3812.84,Revenue,"ATCHISON, MR ALAN",Adult Services & Communities - Adults
Peterborough,http://opendatacommunities.org/id/unitary-authority/peterborough,Peterborough City Council,Independent Sector Placements,,Services,03/03/2017 00:00,30118038,3065.6,Revenue,"ATCHISON, MR ALAN",Adult Services & Communities - Adults
Peterborough,http://opendatacommunities.org/id/unitary-authority/peterborough,Peterborough City Council,Community Safety,,Services,03/03/2017 00:00,30118039,3752,Revenue,24181-TEC-Bulk-Issue,Adults and Communities - Communities
Peterborough,http://opendatacommunities.org/id/unitary-authority/peterborough,Peterborough City Council,Independent Sector Placements,,Services,03/03/2017 00:00,30118040,1155.92,Revenue,Avery Homes (Nelson) Ltd,Adult Services & Communities - Adults
Peterborough,http://opendatacommunities.org/id/unitary-authority/peterborough,Peterborough City Council,Independent Sector Placements,,Services,03/03/2017 00:00,30118041,2277.35,Revenue,Fins Care Ltd t/a St Margarets Rest Home,Adult Services & Communities - Adults
Peterborough,http://opendatacommunities.org/id/unitary-authority/peterborough,Peterborough City Council,Independent Sector Placements,,Services,03/03/2017 00:00,30118044,1231.88,Revenue,Fins Care Ltd t/a St Margarets Rest Home,Adult Services & Communities - Adults
Peterborough,http://opendatacommunities.org/id/unitary-authority/peterborough,Peterborough City Council,Independent Sector Placements,,Services,03/03/2017 00:00,30118047,1811.24,Revenue,Excelcare Aliwal Manor,Adult Services & Communities - Adults
Peterborough,http://opendatacommunities.org/id/unitary-authority/peterborough,Peterborough City Council,Independent Sector Placements,,Services,03/03/2017 00:00,30118077,544.32,Revenue,Carers Trust Cambridgeshire,Adult Services & Communities - Adults
Peterborough,http://opendatacommunities.org/id/unitary-authority/peterborough,Peterborough City Council,Independent Sector Placements,,Services,03/03/2017 00:00,30118097,1231.88,Revenue,Fins Care Ltd t/a St Margarets Rest Home,Adult Services & Communities - Adults
Peterborough,http://opendatacommunities.org/id/unitary-authority/peterborough,Peterborough City Council,Independent Sector Placements,,Services,03/03/2017 00:00,30118101,1477.75,Revenue,Fins Care Ltd t/a St Margarets Rest Home,Adult Services & Communities - Adults
Peterborough,http://opendatacommunities.org/id/unitary-authority/peterborough,Peterborough City Council,Independent Sector Placements,,Services,03/03/2017 00:00,30118102,844.41,Revenue,Fins Care Ltd t/a St Margarets Rest Home,Adult Services & Communities - Adults
Peterborough,http://opendatacommunities.org/id/unitary-authority/peterborough,Peterborough City Council,Independent Sector Placements,,Services,03/03/2017 00:00,30118104,6604.24,Revenue,Fins Care Ltd t/a St Margarets Rest Home,Adult Services & Communities - Adults
Peterborough,http://opendatacommunities.org/id/unitary-authority/peterborough,Peterborough City Council,Independent Sector Placements,,Services,03/03/2017 00:00,30118105,1800,Revenue,LAVENDER HOUSE RESIDENTIAL HOME,Adult Services & Communities - Adults
Peterborough,http://opendatacommunities.org/id/unitary-authority/peterborough,Peterborough City Council,Independent Sector Placements,,Services,03/03/2017 00:00,30118106,2228.57,Revenue,LAVENDER HOUSE RESIDENTIAL HOME,Adult Services & Communities - Adults
Peterborough,http://opendatacommunities.org/id/unitary-authority/peterborough,Peterborough City Council,Pupil Referral Unit,,Agency Staff,03/03/2017 00:00,30118128,520,Revenue,Vision for Education Ltd,Education
Peterborough,http://opendatacommunities.org/id/unitary-authority/peterborough,Peterborough City Council,Pupil Referral Unit,,Agency Staff,03/03/2017 00:00,30118130,585,Revenue,Vision for Education Ltd,Education
Peterborough,http://opendatacommunities.org/id/unitary-authority/peterborough,Peterborough City Council,Pupil Referral Unit,,Agency Staff,03/03/2017 00:00,30118136,742.5,Revenue,Vision for Education Ltd,Education
Peterborough,http://opendatacommunities.org/id/unitary-authority/peterborough,Peterborough City Council,Pupil Referral Unit,,Agency Staff,03/03/2017 00:00,30118137,742.5,Revenue,Vision for Education Ltd,Education
Peterborough,http://opendatacommunities.org/id/unitary-authority/peterborough,Peterborough City Council,Pupil Referral Unit,,Agency Staff,03/03/2017 00:00,30118142,742.5,Revenue,Vision for Education Ltd,Education
Peterborough,http://opendatacommunities.org/id/unitary-authority/peterborough,Peterborough City Council,Corporate,,Non Revenue,03/03/2017 00:00,30118158,825649.83,Balance Sheet,Teachers Pensions,Corporate
Peterborough,http://opendatacommunities.org/id/unitary-authority/peterborough,Peterborough City Council,Service Director - Adults & Communities,,Services,03/03/2017 00:00,30118163,625,Revenue,Record Property Solutions,Adults and Communities - Communities
Peterborough,http://opendatacommunities.org/id/unitary-authority/peterborough,Peterborough City Council,Service Director - Adults & Communities,,Services,03/03/2017 00:00,30118164,625,Revenue,Rightroom Lettings Ltd,Adults and Communities - Communities
Peterborough,http://opendatacommunities.org/id/unitary-authority/peterborough,Peterborough City Council,Service Director - Adults & Communities,,Services,03/03/2017 00:00,30118165,575,Revenue,Record Property Solutions,Adults and Communities - Communities
Peterborough,http://opendatacommunities.org/id/unitary-authority/peterborough,Peterborough City Council,Building Control,,Services,03/03/2017 00:00,30118212,1309,Revenue,British Standards Institute,Development and Construction
Peterborough,http://opendatacommunities.org/id/unitary-authority/peterborough,Peterborough City Council,Access to Resources & Specialist Commissioning,,Services,03/03/2017 00:00,30118277,1413,Revenue,PC Homes,Children's & Safeguarding
Peterborough,http://opendatacommunities.org/id/unitary-authority/peterborough,Peterborough City Council,Access to Resources & Specialist Commissioning,,Services,03/03/2017 00:00,30118278,1413,Revenue,PC Homes,Children's & Safeguarding
Peterborough,http://opendatacommunities.org/id/unitary-authority/peterborough,Peterborough City Council,Independent Sector Placements,,Services,03/03/2017 00:00,8000083503,787.69,Revenue,Hales Group Ltd,Adult Services & Communities - Adults
Peterborough,http://opendatacommunities.org/id/unitary-authority/peterborough,Peterborough City Council,Independent Sector Placements,,Services,03/03/2017 00:00,8000083513,904.13,Revenue,Hales Group Ltd,Adult Services & Communities - Adults
Peterborough,http://opendatacommunities.org/id/unitary-authority/peterborough,Peterborough City Council,Independent Sector Placements,,Services,03/03/2017 00:00,8000083514,1819.15,Revenue,Hales Group Ltd,Adult Services & Communities - Adults
Peterborough,http://opendatacommunities.org/id/unitary-authority/peterborough,Peterborough City Council,Independent Sector Placements,,Services,03/03/2017 00:00,8000083517,1247.4,Revenue,Cozy Care,Adult Services & Communities - Adults
Peterborough,http://opendatacommunities.org/id/unitary-authority/peterborough,Peterborough City Council,Independent Sector Placements,,Services,03/03/2017 00:00,8000083520,811.8,Revenue,Cozy Care,Adult Services & Communities - Adults
Peterborough,http://opendatacommunities.org/id/unitary-authority/peterborough,Peterborough City Council,Independent Sector Placements,,Services,03/03/2017 00:00,8000083521,695.2,Revenue,Cozy Care,Adult Services & Communities - Adults
Peterborough,http://opendatacommunities.org/id/unitary-authority/peterborough,Peterborough City Council,School Improvement,,Interview & Training Expenses,06/03/2017 00:00,30094765,500,Revenue,Leicester City Council,Education
Peterborough,http://opendatacommunities.org/id/unitary-authority/peterborough,Peterborough City Council,Access to Resources & Specialist Commissioning,,Services,06/03/2017 00:00,30105924,12945.33,Revenue,Cambian Childcare Ltd,Children's & Safeguarding
Peterborough,http://opendatacommunities.org/id/unitary-authority/peterborough,Peterborough City Council,Access to Resources & Specialist Commissioning,,Services,06/03/2017 00:00,30109069,-12945.33,Revenue,Cambian Childcare Ltd,Children's & Safeguarding
Peterborough,http://opendatacommunities.org/id/unitary-authority/peterborough,Peterborough City Council,Access to Resources & Specialist Commissioning,,Services,06/03/2017 00:00,30109071,-12945.33,Revenue,Cambian Childcare Ltd,Children's & Safeguarding
Peterborough,http://opendatacommunities.org/id/unitary-authority/peterborough,Peterborough City Council,Access to Resources & Specialist Commissioning,,Services,06/03/2017 00:00,30109102,12666.66,Revenue,Cambian Childcare Ltd,Children's & Safeguarding
Peterborough,http://opendatacommunities.org/id/unitary-authority/peterborough,Peterborough City Council,Access to Resources & Specialist Commissioning,,Services,06/03/2017 00:00,30109103,12666.66,Revenue,Cambian Childcare Ltd,Children's & Safeguarding
Peterborough,http://opendatacommunities.org/id/unitary-authority/peterborough,Peterborough City Council,Pupil Referral Unit,,Agency Staff,06/03/2017 00:00,30111391,520,Revenue,Vision for Education Ltd,Education
Peterborough,http://opendatacommunities.org/id/unitary-authority/peterborough,Peterborough City Council,Corporate,,Non Revenue,06/03/2017 00:00,30113719,-1400,Capital,Barker Storey Matthews,Corporate
Peterborough,http://opendatacommunities.org/id/unitary-authority/peterborough,Peterborough City Council,Registration Service,,Services,06/03/2017 00:00,30113952,2364.04,Revenue,Serco Ltd,"Cemeteries, Cremation & Registrars"
Peterborough,http://opendatacommunities.org/id/unitary-authority/peterborough,Peterborough City Council,Performance & Information,,Agency Staff,06/03/2017 00:00,30114418,5000,Revenue,Arcus Global ltd,Performance & Information
Peterborough,http://opendatacommunities.org/id/unitary-authority/peterborough,Peterborough City Council,Legal Services,,Agency Staff,06/03/2017 00:00,30114894,1612.79,Revenue,Sellick Partnership Group Limited,Legal & Democratic
Peterborough,http://opendatacommunities.org/id/unitary-authority/peterborough,Peterborough City Council,Access to Resources & Specialist Commissioning,,Services,06/03/2017 00:00,30114921,3270.4,Revenue,Archway Care Ltd,Children's & Safeguarding
Peterborough,http://opendatacommunities.org/id/unitary-authority/peterborough,Peterborough City Council,Access to Resources & Specialist Commissioning,,Services,06/03/2017 00:00,30114929,3270.4,Revenue,Archway Care Ltd,Children's & Safeguarding
Peterborough,http://opendatacommunities.org/id/unitary-authority/peterborough,Peterborough City Council,Access to Resources & Specialist Commissioning,,Services,06/03/2017 00:00,30114930,3270.4,Revenue,Archway Care Ltd,Children's & Safeguarding
Peterborough,http://opendatacommunities.org/id/unitary-authority/peterborough,Peterborough City Council,Access to Resources & Specialist Commissioning,,Services,06/03/2017 00:00,30114937,3270.4,Revenue,Archway Care Ltd,Children's & Safeguarding
Peterborough,http://opendatacommunities.org/id/unitary-authority/peterborough,Peterborough City Council,Access to Resources & Specialist Commissioning,,Services,06/03/2017 00:00,30114938,3172.4,Revenue,Archway Care Ltd,Children's & Safeguarding
Peterborough,http://opendatacommunities.org/id/unitary-authority/peterborough,Peterborough City Council,Access to Resources & Specialist Commissioning,,Services,06/03/2017 00:00,30114939,3204.88,Revenue,Archway Care Ltd,Children's & Safeguarding
Peterborough,http://opendatacommunities.org/id/unitary-authority/peterborough,Peterborough City Council,Access to Resources & Specialist Commissioning,,Services,06/03/2017 00:00,30114940,2452.8,Revenue,Archway Care Ltd,Children's & Safeguarding
Peterborough,http://opendatacommunities.org/id/unitary-authority/peterborough,Peterborough City Council,School Improvement,,Services,06/03/2017 00:00,30114943,680,Revenue,Top Class Tutors,Education
Peterborough,http://opendatacommunities.org/id/unitary-authority/peterborough,Peterborough City Council,School Improvement,,Services,06/03/2017 00:00,30114944,800,Revenue,Top Class Tutors,Education
Peterborough,http://opendatacommunities.org/id/unitary-authority/peterborough,Peterborough City Council,Special Educational Needs / Inclusion,,Services,06/03/2017 00:00,30114951,1160,Revenue,Top Class Tutors,Education
Peterborough,http://opendatacommunities.org/id/unitary-authority/peterborough,Peterborough City Council,Access to Resources & Specialist Commissioning,,Services,06/03/2017 00:00,30114995,19042.99,Revenue,Cambian Childcare Ltd,Children's & Safeguarding
Peterborough,http://opendatacommunities.org/id/unitary-authority/peterborough,Peterborough City Council,Access to Resources & Specialist Commissioning,,Services,06/03/2017 00:00,30114999,18428.7,Revenue,Cambian Childcare Ltd,Children's & Safeguarding
Peterborough,http://opendatacommunities.org/id/unitary-authority/peterborough,Peterborough City Council,Corporate,,Non Revenue,06/03/2017 00:00,30115415,2510,Capital,Cyclehoop Ltd,Corporate
Peterborough,http://opendatacommunities.org/id/unitary-authority/peterborough,Peterborough City Council,Corporate,,Non Revenue,06/03/2017 00:00,30115464,7463.25,Capital,V4 Services Ltd,Corporate
Peterborough,http://opendatacommunities.org/id/unitary-authority/peterborough,Peterborough City Council,Performance & Information,,Agency Staff,06/03/2017 00:00,30115467,2675,Revenue,Number 10 Interim Ltd,Performance & Information
Peterborough,http://opendatacommunities.org/id/unitary-authority/peterborough,Peterborough City Council,Finance,,Interview & Training Expenses,06/03/2017 00:00,30115469,21239.17,Revenue,Scotwork UK Ltd,Adult Services & Communities - Adults
Peterborough,http://opendatacommunities.org/id/unitary-authority/peterborough,Peterborough City Council,Westcombe Engineering,,Repair & Maintenance of Buildings,06/03/2017 00:00,30115470,591.6,Revenue,RMS Engineers LTD,Westcombe Engineering
Peterborough,http://opendatacommunities.org/id/unitary-authority/peterborough,Peterborough City Council,Independent Sector Placements,,Services,06/03/2017 00:00,30115475,730,Revenue,Goldhay Arts,Adult Services & Communities - Adults
Peterborough,http://opendatacommunities.org/id/unitary-authority/peterborough,Peterborough City Council,Independent Sector Placements,,Services,06/03/2017 00:00,30115478,880,Revenue,Goldhay Arts,Adult Services & Communities - Adults
Peterborough,http://opendatacommunities.org/id/unitary-authority/peterborough,Peterborough City Council,Independent Sector Placements,,Services,06/03/2017 00:00,30115479,506,Revenue,Goldhay Arts,Adult Services & Communities - Adults
Peterborough,http://opendatacommunities.org/id/unitary-authority/peterborough,Peterborough City Council,Independent Sector Placements,,Services,06/03/2017 00:00,30115484,780,Revenue,Goldhay Arts,Adult Services & Communities - Adults
Peterborough,http://opendatacommunities.org/id/unitary-authority/peterborough,Peterborough City Council,Access to Resources & Specialist Commissioning,,Services,06/03/2017 00:00,30115771,1680,Revenue,PC Homes,Children's & Safeguarding
Peterborough,http://opendatacommunities.org/id/unitary-authority/peterborough,Peterborough City Council,Pupil Referral Unit,,Agency Staff,06/03/2017 00:00,30115843,895,Revenue,Mana Resourcing Ltd,Education
Peterborough,http://opendatacommunities.org/id/unitary-authority/peterborough,Peterborough City Council,Independent Sector Placements,,Services,06/03/2017 00:00,30116059,622.8,Revenue,Cross Keys Homes,Adult Services & Communities - Adults
Peterborough,http://opendatacommunities.org/id/unitary-authority/peterborough,Peterborough City Council,Various,,Services,06/03/2017 00:00,30116140,1874.63,Revenue,Whistl UK Ltd,Various
Peterborough,http://opendatacommunities.org/id/unitary-authority/peterborough,Peterborough City Council,Legal Services,,Services,06/03/2017 00:00,30116142,700,Revenue,"Bramwell, Mr Christopher",Legal & Democratic
Peterborough,http://opendatacommunities.org/id/unitary-authority/peterborough,Peterborough City Council,ICT,,Services,06/03/2017 00:00,30116460,7180,Revenue,Pinsent Masons,ICT
Peterborough,http://opendatacommunities.org/id/unitary-authority/peterborough,Peterborough City Council,Therapy/Reablement/Community Equipment,,"Tools, Equipment, Furniture & Materials",06/03/2017 00:00,30116468,685.45,Revenue,Action on Hearing Loss,Adult Services & Communities - Adults
Peterborough,http://opendatacommunities.org/id/unitary-authority/peterborough,Peterborough City Council,Commercial Propety,,Services,06/03/2017 00:00,30116469,15000,Revenue,Barker Storey Matthews,Corporate Property
Peterborough,http://opendatacommunities.org/id/unitary-authority/peterborough,Peterborough City Council,Corporate,,Non Revenue,06/03/2017 00:00,30116479,4041.31,Capital,UK Power Networks (operations) Ltd,Corporate
Peterborough,http://opendatacommunities.org/id/unitary-authority/peterborough,Peterborough City Council,Housing & Strategic Planning,,Services,06/03/2017 00:00,30116780,3000,Revenue,Opportunity Peterborough T/A OP Ltd,Sustainable Growth Strategy
Peterborough,http://opendatacommunities.org/id/unitary-authority/peterborough,Peterborough City Council,Commissioning,,Services,06/03/2017 00:00,30116797,8250,Revenue,NewArk Play Association Ltd,Business Management and Commercial Operations
Peterborough,http://opendatacommunities.org/id/unitary-authority/peterborough,Peterborough City Council,Corporate,,Non Revenue,06/03/2017 00:00,30116842,60115.2,Capital,Arcus Global ltd,Corporate
Peterborough,http://opendatacommunities.org/id/unitary-authority/peterborough,Peterborough City Council,Westcombe Engineering,,Services,06/03/2017 00:00,30116854,547.4,Revenue,Barron Clark Castings Ltd,Westcombe Engineering
Peterborough,http://opendatacommunities.org/id/unitary-authority/peterborough,Peterborough City Council,Child Health,,Repair & Maintenance of Buildings,06/03/2017 00:00,30116908,1354,Revenue,ArjoHuntleigh UK Ltd,Children's & Safeguarding
Peterborough,http://opendatacommunities.org/id/unitary-authority/peterborough,Peterborough City Council,Clare Lodge,,Agency Staff,06/03/2017 00:00,30116945,880,Revenue,Wrixon Care Services,Business Management and Commercial Operations
Peterborough,http://opendatacommunities.org/id/unitary-authority/peterborough,Peterborough City Council,Clare Lodge,,Agency Staff,06/03/2017 00:00,30116955,2440,Revenue,Wrixon Care Services,Business Management and Commercial Operations
Peterborough,http://opendatacommunities.org/id/unitary-authority/peterborough,Peterborough City Council,Clare Lodge,,Agency Staff,06/03/2017 00:00,30116956,1136,Revenue,Wrixon Care Services,Business Management and Commercial Operations
Peterborough,http://opendatacommunities.org/id/unitary-authority/peterborough,Peterborough City Council,Resources - ICT,,Services,06/03/2017 00:00,30116962,10700,Revenue,E2BN,Education
Peterborough,http://opendatacommunities.org/id/unitary-authority/peterborough,Peterborough City Council,Regulatory Services,,Services,06/03/2017 00:00,30117176,500,Revenue,Access Independent Limited,City Servs & Communications
Peterborough,http://opendatacommunities.org/id/unitary-authority/peterborough,Peterborough City Council,Finance,,Agency Staff,06/03/2017 00:00,30117215,33325,Revenue,Patten Resource Management,Adult Services & Communities - Adults
Peterborough,http://opendatacommunities.org/id/unitary-authority/peterborough,Peterborough City Council,Community Safety,,Services,06/03/2017 00:00,30117311,8372.33,Revenue,Geowise Limited,Adults and Communities - Communities
Peterborough,http://opendatacommunities.org/id/unitary-authority/peterborough,Peterborough City Council,Bereavement Service,,Repair & Maintenance of Buildings,06/03/2017 00:00,30117480,863.7,Revenue,Facultatieve Technologies Ltd,"Cemeteries, Cremation & Registrars"
Peterborough,http://opendatacommunities.org/id/unitary-authority/peterborough,Peterborough City Council,Service Director - Adults & Communities,,Third Party Payments,06/03/2017 00:00,30117543,515,Revenue,Peterborough Citizens Advice Bureau,Adults and Communities - Communities
Peterborough,http://opendatacommunities.org/id/unitary-authority/peterborough,Peterborough City Council,Access to Resources & Specialist Commissioning,,Services,06/03/2017 00:00,30117638,2003.14,Revenue,PC Homes,Children's & Safeguarding
Peterborough,http://opendatacommunities.org/id/unitary-authority/peterborough,Peterborough City Council,Corporate,,Non Revenue,06/03/2017 00:00,30117703,4000,Capital,Environment Agency,Corporate
Peterborough,http://opendatacommunities.org/id/unitary-authority/peterborough,Peterborough City Council,Transport & Infrastructure Commissioning,,Services,06/03/2017 00:00,30117706,181566.66,Revenue,Stagecoach in Peterborough,Peterborough Highway Services
Peterborough,http://opendatacommunities.org/id/unitary-authority/peterborough,Peterborough City Council,Transport & Infrastructure Commissioning,,Services,06/03/2017 00:00,30117707,7828.48,Revenue,Stagecoach in Peterborough,Peterborough Highway Services
Peterborough,http://opendatacommunities.org/id/unitary-authority/peterborough,Peterborough City Council,Block Contracts,,Third Party Payments,06/03/2017 00:00,30117761,119613.53,Revenue,Turning Point Services Ltd,Adult Services & Communities - Adults
Peterborough,http://opendatacommunities.org/id/unitary-authority/peterborough,Peterborough City Council,Strategic Client Services,,Services,06/03/2017 00:00,30117780,6277.19,Revenue,GE Capital Equipment Finance,Commercial Group
Peterborough,http://opendatacommunities.org/id/unitary-authority/peterborough,Peterborough City Council,Commercial Propety,,Customer and client receipts - Rents,06/03/2017 00:00,30118145,530,Revenue,Redacted Personal Information,Corporate Property
Peterborough,http://opendatacommunities.org/id/unitary-authority/peterborough,Peterborough City Council,Commercial Propety,,Customer and client receipts - Rents,06/03/2017 00:00,30118146,17770,Revenue,Oxfam,Corporate Property
Peterborough,http://opendatacommunities.org/id/unitary-authority/peterborough,Peterborough City Council,Independent Sector Placements,,Services,06/03/2017 00:00,30118174,1894.15,Revenue,Park Vista Care Home,Adult Services & Communities - Adults
Peterborough,http://opendatacommunities.org/id/unitary-authority/peterborough,Peterborough City Council,Independent Sector Placements,,Services,06/03/2017 00:00,30118187,5251.12,Revenue,PJ Care Ltd,Adult Services & Communities - Adults
Peterborough,http://opendatacommunities.org/id/unitary-authority/peterborough,Peterborough City Council,Independent Sector Placements,,Services,06/03/2017 00:00,30118193,1722.6,Revenue,Cozy Care,Adult Services & Communities - Adults
Peterborough,http://opendatacommunities.org/id/unitary-authority/peterborough,Peterborough City Council,Corporate,,Non Revenue,06/03/2017 00:00,30118209,5642.7,Capital,A.F.Construction Services Ltd,Corporate
Peterborough,http://opendatacommunities.org/id/unitary-authority/peterborough,Peterborough City Council,Corporate,,Non Revenue,06/03/2017 00:00,30118217,5863.2,Capital,A.F.Construction Services Ltd,Corporate
Peterborough,http://opendatacommunities.org/id/unitary-authority/peterborough,Peterborough City Council,Corporate,,Non Revenue,06/03/2017 00:00,30118222,11620,Capital,Richard Masham Building Services,Corporate
Peterborough,http://opendatacommunities.org/id/unitary-authority/peterborough,Peterborough City Council,Corporate,,Non Revenue,06/03/2017 00:00,30118224,936,Capital,M J Greaves,Corporate
Peterborough,http://opendatacommunities.org/id/unitary-authority/peterborough,Peterborough City Council,Corporate,,Non Revenue,06/03/2017 00:00,30118225,5880,Capital,A.F.Construction Services Ltd,Corporate
Peterborough,http://opendatacommunities.org/id/unitary-authority/peterborough,Peterborough City Council,Corporate,,Non Revenue,06/03/2017 00:00,30118228,1660,Capital,Dolphin Mobility East Midlands Ltd,Corporate
Peterborough,http://opendatacommunities.org/id/unitary-authority/peterborough,Peterborough City Council,Corporate,,Non Revenue,06/03/2017 00:00,30118229,3320.63,Capital,Allworks Home Improvements Ltd,Corporate
Peterborough,http://opendatacommunities.org/id/unitary-authority/peterborough,Peterborough City Council,Corporate,,Non Revenue,06/03/2017 00:00,30118234,5507.25,Capital,A.F.Construction Services Ltd,Corporate
Peterborough,http://opendatacommunities.org/id/unitary-authority/peterborough,Peterborough City Council,Corporate,,Non Revenue,06/03/2017 00:00,30118236,555.9,Capital,A.F.Construction Services Ltd,Corporate
Peterborough,http://opendatacommunities.org/id/unitary-authority/peterborough,Peterborough City Council,Independent Sector Placements,,Services,06/03/2017 00:00,30118238,7966.72,Revenue,NEW BOUNDARIES COMMUNITY SERVICES LTD,Adult Services & Communities - Adults
Peterborough,http://opendatacommunities.org/id/unitary-authority/peterborough,Peterborough City Council,Independent Sector Placements,,Services,06/03/2017 00:00,30118239,914.1,Revenue,Sahara Community Care Services,Adult Services & Communities - Adults
Peterborough,http://opendatacommunities.org/id/unitary-authority/peterborough,Peterborough City Council,Corporate,,Non Revenue,06/03/2017 00:00,30118256,4924.4,Capital,Rawheat Heating & Plumbing Eng.,Corporate
Peterborough,http://opendatacommunities.org/id/unitary-authority/peterborough,Peterborough City Council,Corporate,,Non Revenue,06/03/2017 00:00,30118258,5458,Capital,Gaswise Services Ltd,Corporate
Peterborough,http://opendatacommunities.org/id/unitary-authority/peterborough,Peterborough City Council,Corporate,,Non Revenue,06/03/2017 00:00,30118259,4953.9,Capital,Gaswise Services Ltd,Corporate
Peterborough,http://opendatacommunities.org/id/unitary-authority/peterborough,Peterborough City Council,Access to Resources & Specialist Commissioning,,Services,06/03/2017 00:00,30118273,1456.28,Revenue,PC Homes,Children's & Safeguarding
Peterborough,http://opendatacommunities.org/id/unitary-authority/peterborough,Peterborough City Council,Access to Resources & Specialist Commissioning,,Services,06/03/2017 00:00,30118320,9660,Revenue,Sixteen Plus Limited,Children's & Safeguarding
Peterborough,http://opendatacommunities.org/id/unitary-authority/peterborough,Peterborough City Council,Access to Resources & Specialist Commissioning,,Services,06/03/2017 00:00,30118321,9660,Revenue,Sixteen Plus Limited,Children's & Safeguarding
Peterborough,http://opendatacommunities.org/id/unitary-authority/peterborough,Peterborough City Council,Access to Resources & Specialist Commissioning,,Services,06/03/2017 00:00,30118326,1500,Revenue,Sixteen Plus Limited,Children's & Safeguarding
Peterborough,http://opendatacommunities.org/id/unitary-authority/peterborough,Peterborough City Council,Access to Resources & Specialist Commissioning,,Services,06/03/2017 00:00,30118329,8060,Revenue,Sixteen Plus Limited,Children's & Safeguarding
Peterborough,http://opendatacommunities.org/id/unitary-authority/peterborough,Peterborough City Council,Independent Sector Placements,,Services,06/03/2017 00:00,30118344,748.88,Revenue,PRESTIGE NURSING LIMITED,Adult Services & Communities - Adults
Peterborough,http://opendatacommunities.org/id/unitary-authority/peterborough,Peterborough City Council,Independent Sector Placements,,Services,06/03/2017 00:00,30118350,563.42,Revenue,PRESTIGE NURSING LIMITED,Adult Services & Communities - Adults
Peterborough,http://opendatacommunities.org/id/unitary-authority/peterborough,Peterborough City Council,Access to Resources & Specialist Commissioning,,Services,06/03/2017 00:00,30118353,1900,Revenue,Sixteen Plus Limited,Children's & Safeguarding
Peterborough,http://opendatacommunities.org/id/unitary-authority/peterborough,Peterborough City Council,Independent Sector Placements,,Services,06/03/2017 00:00,30118378,842.14,Revenue,Voyage,Adult Services & Communities - Adults
Peterborough,http://opendatacommunities.org/id/unitary-authority/peterborough,Peterborough City Council,Pupil Referral Unit,,Agency Staff,06/03/2017 00:00,30118412,504.4,Revenue,Vision for Education Ltd,Education
Peterborough,http://opendatacommunities.org/id/unitary-authority/peterborough,Peterborough City Council,Pupil Referral Unit,,Agency Staff,06/03/2017 00:00,30118414,514.72,Revenue,Vision for Education Ltd,Education
Peterborough,http://opendatacommunities.org/id/unitary-authority/peterborough,Peterborough City Council,Pupil Referral Unit,,Agency Staff,06/03/2017 00:00,30118418,825,Revenue,Vision for Education Ltd,Education
Peterborough,http://opendatacommunities.org/id/unitary-authority/peterborough,Peterborough City Council,Pupil Referral Unit,,Agency Staff,06/03/2017 00:00,30118422,650,Revenue,Vision for Education Ltd,Education
Peterborough,http://opendatacommunities.org/id/unitary-authority/peterborough,Peterborough City Council,Pupil Referral Unit,,Agency Staff,06/03/2017 00:00,30118423,520,Revenue,Vision for Education Ltd,Education
Peterborough,http://opendatacommunities.org/id/unitary-authority/peterborough,Peterborough City Council,Clare Lodge,,Services,06/03/2017 00:00,30118433,1390,Revenue,Redacted Personal Information,Business Management and Commercial Operations
Peterborough,http://opendatacommunities.org/id/unitary-authority/peterborough,Peterborough City Council,Independent Sector Placements,,Services,06/03/2017 00:00,30118450,1017.06,Revenue,PRESTIGE NURSING LIMITED,Adult Services & Communities - Adults
Peterborough,http://opendatacommunities.org/id/unitary-authority/peterborough,Peterborough City Council,Housing and Health,,Agency Staff,06/03/2017 00:00,30118530,1258,Revenue,Oyster Partnership Ltd,Adults and Communities - Communities
Peterborough,http://opendatacommunities.org/id/unitary-authority/peterborough,Peterborough City Council,Housing and Health,,Agency Staff,06/03/2017 00:00,30118554,1258,Revenue,Oyster Partnership Ltd,Adults and Communities - Communities
Peterborough,http://opendatacommunities.org/id/unitary-authority/peterborough,Peterborough City Council,Housing and Health,,Agency Staff,06/03/2017 00:00,30118555,1006.4,Revenue,Oyster Partnership Ltd,Adults and Communities - Communities
Peterborough,http://opendatacommunities.org/id/unitary-authority/peterborough,Peterborough City Council,Housing and Health,,Agency Staff,06/03/2017 00:00,30118557,1006.4,Revenue,Oyster Partnership Ltd,Adults and Communities - Communities
Peterborough,http://opendatacommunities.org/id/unitary-authority/peterborough,Peterborough City Council,Housing and Health,,Agency Staff,06/03/2017 00:00,30118558,1258,Revenue,Oyster Partnership Ltd,Adults and Communities - Communities
Peterborough,http://opendatacommunities.org/id/unitary-authority/peterborough,Peterborough City Council,Housing and Health,,Agency Staff,06/03/2017 00:00,30118560,1258,Revenue,Oyster Partnership Ltd,Adults and Communities - Communities
Peterborough,http://opendatacommunities.org/id/unitary-authority/peterborough,Peterborough City Council,Housing and Health,,Agency Staff,06/03/2017 00:00,30118561,1258,Revenue,Oyster Partnership Ltd,Adults and Communities - Communities
Peterborough,http://opendatacommunities.org/id/unitary-authority/peterborough,Peterborough City Council,Youth / Youth Offending,,Services,07/03/2017 00:00,30120998,1800,Revenue,Cambridgeshire County Council,Adults and Communities - Communities
Peterborough,http://opendatacommunities.org/id/unitary-authority/peterborough,Peterborough City Council,Insurance,,Services,08/03/2017 00:00,30106576,810,Revenue,Clyde & Co LLP,Financial Services
Peterborough,http://opendatacommunities.org/id/unitary-authority/peterborough,Peterborough City Council,Block Contracts,,Third Party Payments,08/03/2017 00:00,30108128,2394.35,Revenue,Cross Keys Homes,Adult Services & Communities - Adults
Peterborough,http://opendatacommunities.org/id/unitary-authority/peterborough,Peterborough City Council,Access to Resources & Specialist Commissioning,,Services,08/03/2017 00:00,30110988,16220,Revenue,Halliwell Homes Ltd,Children's & Safeguarding
Peterborough,http://opendatacommunities.org/id/unitary-authority/peterborough,Peterborough City Council,Commissioning,,Services,08/03/2017 00:00,30111781,1626.02,Revenue,Redacted Personal Information,Business Management and Commercial Operations
Peterborough,http://opendatacommunities.org/id/unitary-authority/peterborough,Peterborough City Council,Access to Resources & Specialist Commissioning,,Services,08/03/2017 00:00,30112112,16739.8,Revenue,Dove Adolescent Services Ltd,Children's & Safeguarding
Peterborough,http://opendatacommunities.org/id/unitary-authority/peterborough,Peterborough City Council,Access to Resources & Specialist Commissioning,,Services,08/03/2017 00:00,30112304,18600,Revenue,Oracle Care Ltd (Region 2),Children's & Safeguarding
Peterborough,http://opendatacommunities.org/id/unitary-authority/peterborough,Peterborough City Council,Block Contracts,,Third Party Payments,08/03/2017 00:00,30112614,1576.24,Revenue,Pilgrim Havens,Adult Services & Communities - Adults
Peterborough,http://opendatacommunities.org/id/unitary-authority/peterborough,Peterborough City Council,Office Accomodation,,Premises Insurances,08/03/2017 00:00,30112617,1684.62,Revenue,Alps Group Ltd,Corporate Property
Peterborough,http://opendatacommunities.org/id/unitary-authority/peterborough,Peterborough City Council,Commissioning,,Services,08/03/2017 00:00,30112673,966.5,Revenue,Wrixon Care Services,Business Management and Commercial Operations
Peterborough,http://opendatacommunities.org/id/unitary-authority/peterborough,Peterborough City Council,Access to Resources & Specialist Commissioning,,Services,08/03/2017 00:00,30113190,13800,Revenue,Meadows Care Ltd,Children's & Safeguarding
Peterborough,http://opendatacommunities.org/id/unitary-authority/peterborough,Peterborough City Council,Access to Resources & Specialist Commissioning,,Services,08/03/2017 00:00,30113191,13800,Revenue,Meadows Care Ltd,Children's & Safeguarding
Peterborough,http://opendatacommunities.org/id/unitary-authority/peterborough,Peterborough City Council,Business Management and Commercial Operations,,Agency Staff,08/03/2017 00:00,30113412,633.75,Revenue,Reed Specialist Recruitment,Business Management and Commercial Operations
Peterborough,http://opendatacommunities.org/id/unitary-authority/peterborough,Peterborough City Council,Independent Sector Placements,,Services,08/03/2017 00:00,30114004,930,Revenue,Midco Care Limited,Adult Services & Communities - Adults
Peterborough,http://opendatacommunities.org/id/unitary-authority/peterborough,Peterborough City Council,Independent Sector Placements,,Services,08/03/2017 00:00,30114049,532.36,Revenue,Avery House (Peterborough) t/a Brighterkind,Adult Services & Communities - Adults
Peterborough,http://opendatacommunities.org/id/unitary-authority/peterborough,Peterborough City Council,Access to Resources & Specialist Commissioning,,Services,08/03/2017 00:00,30114138,15800.12,Revenue,Cambian Childcare Ltd,Children's & Safeguarding
Peterborough,http://opendatacommunities.org/id/unitary-authority/peterborough,Peterborough City Council,Access to Resources & Specialist Commissioning,,Services,08/03/2017 00:00,30114328,14000,Revenue,Glebe House,Children's & Safeguarding
Peterborough,http://opendatacommunities.org/id/unitary-authority/peterborough,Peterborough City Council,Access to Resources & Specialist Commissioning,,Services,08/03/2017 00:00,30114505,21000,Revenue,Care 4 Children Residential Services Ltd,Children's & Safeguarding
Peterborough,http://opendatacommunities.org/id/unitary-authority/peterborough,Peterborough City Council,Access to Resources & Specialist Commissioning,,Services,08/03/2017 00:00,30114566,17957.86,Revenue,Halliwell Homes Ltd,Children's & Safeguarding
Peterborough,http://opendatacommunities.org/id/unitary-authority/peterborough,Peterborough City Council,Legal Services,,Agency Staff,08/03/2017 00:00,30114942,1890.45,Revenue,Sellick Partnership Group Limited,Legal & Democratic
Peterborough,http://opendatacommunities.org/id/unitary-authority/peterborough,Peterborough City Council,Access to Resources & Specialist Commissioning,,Services,08/03/2017 00:00,30115076,17492.99,Revenue,Cambian Childcare Ltd,Children's & Safeguarding
Peterborough,http://opendatacommunities.org/id/unitary-authority/peterborough,Peterborough City Council,"Markets, Tourism & Events",,Services,08/03/2017 00:00,30115364,564.3,Revenue,Chapter of Peterborough Cathedral,City Servs & Communications
Peterborough,http://opendatacommunities.org/id/unitary-authority/peterborough,Peterborough City Council,Chief Executive,,Interview & Training Expenses,08/03/2017 00:00,30115417,2515,Revenue,Cambridge Marketing College,Chief Executive
Peterborough,http://opendatacommunities.org/id/unitary-authority/peterborough,Peterborough City Council,Natural & Historic Environment,,"Tools, Equipment, Furniture & Materials",08/03/2017 00:00,30115419,848.95,Revenue,Sorbus International Ltd,Sustainable Growth Strategy
Peterborough,http://opendatacommunities.org/id/unitary-authority/peterborough,Peterborough City Council,Commissioning,,Services,08/03/2017 00:00,30115447,599,Revenue,Cellmark,Business Management and Commercial Operations
Peterborough,http://opendatacommunities.org/id/unitary-authority/peterborough,Peterborough City Council,Independent Sector Placements,,Services,08/03/2017 00:00,30115583,1279.56,Revenue,Maxey House Res Home,Adult Services & Communities - Adults
Peterborough,http://opendatacommunities.org/id/unitary-authority/peterborough,Peterborough City Council,Independent Sector Placements,,Services,08/03/2017 00:00,30115590,1250.4,Revenue,Maxey House Res Home,Adult Services & Communities - Adults
Peterborough,http://opendatacommunities.org/id/unitary-authority/peterborough,Peterborough City Council,Independent Sector Placements,,Services,08/03/2017 00:00,30115593,1299.08,Revenue,Maxey House Res Home,Adult Services & Communities - Adults
Peterborough,http://opendatacommunities.org/id/unitary-authority/peterborough,Peterborough City Council,Independent Sector Placements,,Services,08/03/2017 00:00,30115596,987.16,Revenue,Maxey House Res Home,Adult Services & Communities - Adults
Peterborough,http://opendatacommunities.org/id/unitary-authority/peterborough,Peterborough City Council,Independent Sector Placements,,Services,08/03/2017 00:00,30115602,1123.68,Revenue,Maxey House Res Home,Adult Services & Communities - Adults
Peterborough,http://opendatacommunities.org/id/unitary-authority/peterborough,Peterborough City Council,Commissioning,,Interview & Training Expenses,08/03/2017 00:00,30115638,1750,Revenue,Redacted Personal Information,Business Management and Commercial Operations
Peterborough,http://opendatacommunities.org/id/unitary-authority/peterborough,Peterborough City Council,Commissioning,,Interview & Training Expenses,08/03/2017 00:00,30115639,2000,Revenue,Redacted Personal Information,Business Management and Commercial Operations
Peterborough,http://opendatacommunities.org/id/unitary-authority/peterborough,Peterborough City Council,Access to Resources & Specialist Commissioning,,Services,08/03/2017 00:00,30115643,14000,Revenue,Barford Children's Services,Children's & Safeguarding
Peterborough,http://opendatacommunities.org/id/unitary-authority/peterborough,Peterborough City Council,Access to Resources & Specialist Commissioning,,Services,08/03/2017 00:00,30115644,14000,Revenue,Barford Children's Services,Children's & Safeguarding
Peterborough,http://opendatacommunities.org/id/unitary-authority/peterborough,Peterborough City Council,Day Opportunities / In House,,Agency Staff,08/03/2017 00:00,30115651,710.4,Revenue,Medicare First,Adult Services & Communities - Adults
Peterborough,http://opendatacommunities.org/id/unitary-authority/peterborough,Peterborough City Council,Day Opportunities / In House,,Agency Staff,08/03/2017 00:00,30115655,1221,Revenue,Medicare First,Adult Services & Communities - Adults
Peterborough,http://opendatacommunities.org/id/unitary-authority/peterborough,Peterborough City Council,Independent Sector Placements,,Services,08/03/2017 00:00,30115668,873.28,Revenue,Maxey House Res Home,Adult Services & Communities - Adults
Peterborough,http://opendatacommunities.org/id/unitary-authority/peterborough,Peterborough City Council,Independent Sector Placements,,Services,08/03/2017 00:00,30115669,1821.88,Revenue,Maxey House Res Home,Adult Services & Communities - Adults
Peterborough,http://opendatacommunities.org/id/unitary-authority/peterborough,Peterborough City Council,Independent Sector Placements,,Services,08/03/2017 00:00,30115675,1053.44,Revenue,Maxey House Res Home,Adult Services & Communities - Adults
Peterborough,http://opendatacommunities.org/id/unitary-authority/peterborough,Peterborough City Council,Independent Sector Placements,,Services,08/03/2017 00:00,30115677,733.64,Revenue,Maxey House Res Home,Adult Services & Communities - Adults
Peterborough,http://opendatacommunities.org/id/unitary-authority/peterborough,Peterborough City Council,Independent Sector Placements,,Services,08/03/2017 00:00,30115679,1676.24,Revenue,Maxey House Res Home,Adult Services & Communities - Adults
Peterborough,http://opendatacommunities.org/id/unitary-authority/peterborough,Peterborough City Council,Development Management,,Services,08/03/2017 00:00,30115721,602,Revenue,Johnston Press Midlands Division,Development and Construction
Peterborough,http://opendatacommunities.org/id/unitary-authority/peterborough,Peterborough City Council,"Markets, Tourism & Events",,Rents,08/03/2017 00:00,30115735,1834.47,Revenue,Jones Lang LaSalle,City Servs & Communications
Peterborough,http://opendatacommunities.org/id/unitary-authority/peterborough,Peterborough City Council,Independent Sector Placements,,Services,08/03/2017 00:00,30115738,1042.48,Revenue,Maxey House Res Home,Adult Services & Communities - Adults
Peterborough,http://opendatacommunities.org/id/unitary-authority/peterborough,Peterborough City Council,Independent Sector Placements,,Services,08/03/2017 00:00,30115739,1299.08,Revenue,Maxey House Res Home,Adult Services & Communities - Adults
Peterborough,http://opendatacommunities.org/id/unitary-authority/peterborough,Peterborough City Council,Legal Services,,Agency Staff,08/03/2017 00:00,30115809,1591,Revenue,Venn Group Ltd,Legal & Democratic
Peterborough,http://opendatacommunities.org/id/unitary-authority/peterborough,Peterborough City Council,Independent Sector Placements,,Services,08/03/2017 00:00,30115918,6334.04,Revenue,NORTH EAST AUTISM SOCIETY,Adult Services & Communities - Adults
Peterborough,http://opendatacommunities.org/id/unitary-authority/peterborough,Peterborough City Council,Independent Sector Placements,,Services,08/03/2017 00:00,30115920,6334.04,Revenue,NORTH EAST AUTISM SOCIETY,Adult Services & Communities - Adults
Peterborough,http://opendatacommunities.org/id/unitary-authority/peterborough,Peterborough City Council,Independent Sector Placements,,Services,08/03/2017 00:00,30116033,2400,Revenue,FIELD HOUSE (EYE) LTD,Adult Services & Communities - Adults
Peterborough,http://opendatacommunities.org/id/unitary-authority/peterborough,Peterborough City Council,Independent Sector Placements,,Services,08/03/2017 00:00,30116034,1285.71,Revenue,FIELD HOUSE (EYE) LTD,Adult Services & Communities - Adults
Peterborough,http://opendatacommunities.org/id/unitary-authority/peterborough,Peterborough City Council,Independent Sector Placements,,Services,08/03/2017 00:00,30116035,685.71,Revenue,FIELD HOUSE (EYE) LTD,Adult Services & Communities - Adults
Peterborough,http://opendatacommunities.org/id/unitary-authority/peterborough,Peterborough City Council,Access to Resources & Specialist Commissioning,,Services,08/03/2017 00:00,30116046,11388,Revenue,Positive Steps (Care Services) Ltd,Children's & Safeguarding
Peterborough,http://opendatacommunities.org/id/unitary-authority/peterborough,Peterborough City Council,Westcombe Engineering,,Services,08/03/2017 00:00,30116097,655.41,Revenue,M O 8 Specialities Ltd,Westcombe Engineering
Peterborough,http://opendatacommunities.org/id/unitary-authority/peterborough,Peterborough City Council,Access to Resources & Specialist Commissioning,,Services,08/03/2017 00:00,30116098,11304,Revenue,Positive Steps (Care Services) Ltd,Children's & Safeguarding
Peterborough,http://opendatacommunities.org/id/unitary-authority/peterborough,Peterborough City Council,Service Director Education,,Services,08/03/2017 00:00,30116137,40000,Revenue,City College Peterborough,Education
Peterborough,http://opendatacommunities.org/id/unitary-authority/peterborough,Peterborough City Council,Commissioning,,Services,08/03/2017 00:00,30116138,3983.06,Revenue,BDP Social Care Ltd,Business Management and Commercial Operations
Peterborough,http://opendatacommunities.org/id/unitary-authority/peterborough,Peterborough City Council,School Improvement,,"Tools, Equipment, Furniture & Materials",08/03/2017 00:00,30116157,975,Revenue,Edge Hill University,Education
Peterborough,http://opendatacommunities.org/id/unitary-authority/peterborough,Peterborough City Council,Highway & Drainage Control,,Agency Staff,08/03/2017 00:00,30116163,1110,Revenue,Matchtech,Peterborough Highway Services
Peterborough,http://opendatacommunities.org/id/unitary-authority/peterborough,Peterborough City Council,Independent Sector Placements,,Services,08/03/2017 00:00,30116203,2657.14,Revenue,FIELD HOUSE (EYE) LTD,Adult Services & Communities - Adults
Peterborough,http://opendatacommunities.org/id/unitary-authority/peterborough,Peterborough City Council,Legal Services,,Services,08/03/2017 00:00,30116213,2300,Revenue,"Bramwell, Mr Christopher",Legal & Democratic
Peterborough,http://opendatacommunities.org/id/unitary-authority/peterborough,Peterborough City Council,Legal Services,,Services,08/03/2017 00:00,30116232,882,Revenue,Blandford Consultancy,Legal & Democratic
Peterborough,http://opendatacommunities.org/id/unitary-authority/peterborough,Peterborough City Council,Independent Sector Placements,,Services,08/03/2017 00:00,30116264,4168.57,Revenue,Avery House (Peterborough) t/a Brighterkind,Adult Services & Communities - Adults
Peterborough,http://opendatacommunities.org/id/unitary-authority/peterborough,Peterborough City Council,Independent Sector Placements,,Services,08/03/2017 00:00,30116284,1053.44,Revenue,Pilgrim Havens,Adult Services & Communities - Adults
Peterborough,http://opendatacommunities.org/id/unitary-authority/peterborough,Peterborough City Council,Independent Sector Placements,,Services,08/03/2017 00:00,30116285,1331.08,Revenue,Pilgrim Havens,Adult Services & Communities - Adults
Peterborough,http://opendatacommunities.org/id/unitary-authority/peterborough,Peterborough City Council,Independent Sector Placements,,Services,08/03/2017 00:00,30116286,913.32,Revenue,Pilgrim Havens,Adult Services & Communities - Adults
Peterborough,http://opendatacommunities.org/id/unitary-authority/peterborough,Peterborough City Council,Independent Sector Placements,,Services,08/03/2017 00:00,30116287,928.04,Revenue,Pilgrim Havens,Adult Services & Communities - Adults
Peterborough,http://opendatacommunities.org/id/unitary-authority/peterborough,Peterborough City Council,Independent Sector Placements,,Services,08/03/2017 00:00,30116288,834.8,Revenue,Pilgrim Havens,Adult Services & Communities - Adults
Peterborough,http://opendatacommunities.org/id/unitary-authority/peterborough,Peterborough City Council,Independent Sector Placements,,Services,08/03/2017 00:00,30116289,1299.08,Revenue,Pilgrim Havens,Adult Services & Communities - Adults
Peterborough,http://opendatacommunities.org/id/unitary-authority/peterborough,Peterborough City Council,Pupil Referral Unit,,Agency Staff,08/03/2017 00:00,30116338,1136.4,Revenue,Teaching Personnel Ltd,Education
Peterborough,http://opendatacommunities.org/id/unitary-authority/peterborough,Peterborough City Council,Clare Lodge,,Services,08/03/2017 00:00,30116341,585,Revenue,SLB Securing School Improvement Ltd,Business Management and Commercial Operations
Peterborough,http://opendatacommunities.org/id/unitary-authority/peterborough,Peterborough City Council,Child Health,,"Tools, Equipment, Furniture & Materials",08/03/2017 00:00,30116342,1493.48,Revenue,Specialised Orthotic Services,Children's & Safeguarding
Peterborough,http://opendatacommunities.org/id/unitary-authority/peterborough,Peterborough City Council,Service Director - Adults & Communities,,Public Transport,08/03/2017 00:00,30116458,1848,Revenue,PARCA,Adults and Communities - Communities
Peterborough,http://opendatacommunities.org/id/unitary-authority/peterborough,Peterborough City Council,Access to Resources & Specialist Commissioning,,Services,08/03/2017 00:00,30116472,19572,Revenue,Childhood First,Children's & Safeguarding
Peterborough,http://opendatacommunities.org/id/unitary-authority/peterborough,Peterborough City Council,Marketing & Communications,,Services,08/03/2017 00:00,30116476,610,Revenue,XL Press Ltd,City Servs & Communications
Peterborough,http://opendatacommunities.org/id/unitary-authority/peterborough,Peterborough City Council,Transport & Infrastructure Commissioning,,Services,08/03/2017 00:00,30116546,7050.45,Revenue,Stagecoach in Peterborough,Peterborough Highway Services
Peterborough,http://opendatacommunities.org/id/unitary-authority/peterborough,Peterborough City Council,Housing and Health,,Agency Staff,08/03/2017 00:00,30116709,511.68,Revenue,Reed Specialist Recruitment,Adults and Communities - Communities
Peterborough,http://opendatacommunities.org/id/unitary-authority/peterborough,Peterborough City Council,Performance & Information,,Agency Staff,08/03/2017 00:00,30116712,601.5,Revenue,Reed Specialist Recruitment,Performance & Information
Peterborough,http://opendatacommunities.org/id/unitary-authority/peterborough,Peterborough City Council,Finance,,Agency Staff,08/03/2017 00:00,30116737,851,Revenue,Reed Specialist Recruitment,Financial Services
Peterborough,http://opendatacommunities.org/id/unitary-authority/peterborough,Peterborough City Council,Finance,,Agency Staff,08/03/2017 00:00,30116739,668.85,Revenue,Reed Specialist Recruitment,Financial Services
Peterborough,http://opendatacommunities.org/id/unitary-authority/peterborough,Peterborough City Council,Independent Sector Placements,,Services,08/03/2017 00:00,30116749,1395,Revenue,Midco Care Limited,Adult Services & Communities - Adults
Peterborough,http://opendatacommunities.org/id/unitary-authority/peterborough,Peterborough City Council,Independent Sector Placements,,Services,08/03/2017 00:00,30116756,1299.08,Revenue,Maxey House Res Home,Adult Services & Communities - Adults
Peterborough,http://opendatacommunities.org/id/unitary-authority/peterborough,Peterborough City Council,Independent Sector Placements,,Services,08/03/2017 00:00,30116758,1941.21,Revenue,Cambridgeshire County Council,Adult Services & Communities - Adults
Peterborough,http://opendatacommunities.org/id/unitary-authority/peterborough,Peterborough City Council,Housing and Health,,Services,08/03/2017 00:00,30116778,1267.2,Revenue,Bryan Lecoche Ltd,Adults and Communities - Communities
Peterborough,http://opendatacommunities.org/id/unitary-authority/peterborough,Peterborough City Council,Special Educational Needs / Inclusion,,Services,08/03/2017 00:00,30116810,950,Revenue,Redacted Personal Information,Education
Peterborough,http://opendatacommunities.org/id/unitary-authority/peterborough,Peterborough City Council,Block Contracts,,Third Party Payments,08/03/2017 00:00,30116822,1576.24,Revenue,Pilgrim Havens,Adult Services & Communities - Adults
Peterborough,http://opendatacommunities.org/id/unitary-authority/peterborough,Peterborough City Council,Public Health,,Third Party Payments,08/03/2017 00:00,30116825,77434.05,Revenue,Cambridgeshire County Council,Public Health
Peterborough,http://opendatacommunities.org/id/unitary-authority/peterborough,Peterborough City Council,Corporate,,Non Revenue,08/03/2017 00:00,30116879,50877.25,Capital,Blakedown Sport & Play,Corporate
Peterborough,http://opendatacommunities.org/id/unitary-authority/peterborough,Peterborough City Council,Bereavement Service,,Services,08/03/2017 00:00,30116906,1477,Revenue,Anglia Co-operative Funerals,"Cemeteries, Cremation & Registrars"
Peterborough,http://opendatacommunities.org/id/unitary-authority/peterborough,Peterborough City Council,Development Management,,Services,08/03/2017 00:00,30116977,31483.2,Revenue,"Ranatunga, Mr Asitha",Development and Construction
Peterborough,http://opendatacommunities.org/id/unitary-authority/peterborough,Peterborough City Council,Clare Lodge,,Agency Staff,08/03/2017 00:00,30116979,952,Revenue,Wrixon Care Services,Business Management and Commercial Operations
Peterborough,http://opendatacommunities.org/id/unitary-authority/peterborough,Peterborough City Council,Highway Mtce & Scheme Commissioning,,Services,08/03/2017 00:00,30117027,5950,Revenue,W D M Ltd,Peterborough Highway Services
Peterborough,http://opendatacommunities.org/id/unitary-authority/peterborough,Peterborough City Council,Cultural Services,,"Tools, Equipment, Furniture & Materials",08/03/2017 00:00,30117029,7541.67,Revenue,Markson Pianos,Vivacity/Cultural Services
Peterborough,http://opendatacommunities.org/id/unitary-authority/peterborough,Peterborough City Council,Marketing & Communications,,Services,08/03/2017 00:00,30117037,1013,Revenue,G P Print,City Servs & Communications
Peterborough,http://opendatacommunities.org/id/unitary-authority/peterborough,Peterborough City Council,Service Director - Adults & Communities,,Third Party Payments,08/03/2017 00:00,30117184,7500,Revenue,AGE UK,Adults and Communities - Communities
Peterborough,http://opendatacommunities.org/id/unitary-authority/peterborough,Peterborough City Council,Pupil Referral Unit,,Agency Staff,08/03/2017 00:00,30117241,5310,Revenue,Vision for Education Ltd,Education
Peterborough,http://opendatacommunities.org/id/unitary-authority/peterborough,Peterborough City Council,Special Educational Needs / Inclusion,,Services,08/03/2017 00:00,30117285,6030,Revenue,NewArk Play Association Ltd,Education
Peterborough,http://opendatacommunities.org/id/unitary-authority/peterborough,Peterborough City Council,Special Educational Needs / Inclusion,,Services,08/03/2017 00:00,30117290,600,Revenue,NewArk Play Association Ltd,Education
Peterborough,http://opendatacommunities.org/id/unitary-authority/peterborough,Peterborough City Council,Therapy/Reablement/Community Equipment,,"Tools, Equipment, Furniture & Materials",08/03/2017 00:00,30117294,960,Revenue,H Walsh & Sons Ltd,Adult Services & Communities - Adults
Peterborough,http://opendatacommunities.org/id/unitary-authority/peterborough,Peterborough City Council,Clare Lodge,,Agency Staff,08/03/2017 00:00,30117398,1170,Revenue,Engage Education,Business Management and Commercial Operations
Peterborough,http://opendatacommunities.org/id/unitary-authority/peterborough,Peterborough City Council,Westcombe Engineering,,Services,08/03/2017 00:00,30117401,644,Revenue,Barron Clark Castings Ltd,Westcombe Engineering
Peterborough,http://opendatacommunities.org/id/unitary-authority/peterborough,Peterborough City Council,Westcombe Engineering,,Services,08/03/2017 00:00,30117404,816.12,Revenue,Barron Clark Castings Ltd,Westcombe Engineering
Peterborough,http://opendatacommunities.org/id/unitary-authority/peterborough,Peterborough City Council,Independent Sector Placements,,Services,08/03/2017 00:00,30117421,-1632.6,Revenue,Avery House (Peterborough) t/a Brighterkind,Adult Services & Communities - Adults
Peterborough,http://opendatacommunities.org/id/unitary-authority/peterborough,Peterborough City Council,Independent Sector Placements,,Services,08/03/2017 00:00,30117500,518.97,Revenue,Avery House (Peterborough) t/a Brighterkind,Adult Services & Communities - Adults
Peterborough,http://opendatacommunities.org/id/unitary-authority/peterborough,Peterborough City Council,Independent Sector Placements,,Services,08/03/2017 00:00,30117650,7966.75,Revenue,NEW BOUNDARIES COMMUNITY SERVICES LTD,Adult Services & Communities - Adults
Peterborough,http://opendatacommunities.org/id/unitary-authority/peterborough,Peterborough City Council,ICT,,Services,08/03/2017 00:00,30117759,5859.47,Revenue,Capita Business Services Ltd,ICT
Peterborough,http://opendatacommunities.org/id/unitary-authority/peterborough,Peterborough City Council,Commissioning,,Services,08/03/2017 00:00,30117818,-887,Revenue,Wrixon Care Services,Business Management and Commercial Operations
Peterborough,http://opendatacommunities.org/id/unitary-authority/peterborough,Peterborough City Council,Independent Sector Placements,,Services,08/03/2017 00:00,30117887,-692.31,Revenue,HEREWARD CARE SERVICES LIMITED,Adult Services & Communities - Adults
Peterborough,http://opendatacommunities.org/id/unitary-authority/peterborough,Peterborough City Council,Independent Sector Placements,,Services,08/03/2017 00:00,30117892,2354,Revenue,"Care in the Community, (Hogganfield Loch)",Adult Services & Communities - Adults
Peterborough,http://opendatacommunities.org/id/unitary-authority/peterborough,Peterborough City Council,Early Years & Quality Improvement,,Services,08/03/2017 00:00,30117925,958.02,Revenue,Redacted Personal Information,Business Management and Commercial Operations
Peterborough,http://opendatacommunities.org/id/unitary-authority/peterborough,Peterborough City Council,Pupil Referral Unit,,Agency Staff,08/03/2017 00:00,30118114,742.5,Revenue,Vision for Education Ltd,Education
Peterborough,http://opendatacommunities.org/id/unitary-authority/peterborough,Peterborough City Council,Pupil Referral Unit,,Agency Staff,08/03/2017 00:00,30118117,536.16,Revenue,Vision for Education Ltd,Education
Peterborough,http://opendatacommunities.org/id/unitary-authority/peterborough,Peterborough City Council,Pupil Referral Unit,,Agency Staff,08/03/2017 00:00,30118120,825,Revenue,Vision for Education Ltd,Education
Peterborough,http://opendatacommunities.org/id/unitary-authority/peterborough,Peterborough City Council,Independent Sector Placements,,Services,08/03/2017 00:00,30118122,1026.18,Revenue,Four Seasons Health Care,Adult Services & Communities - Adults
Peterborough,http://opendatacommunities.org/id/unitary-authority/peterborough,Peterborough City Council,Pupil Referral Unit,,Agency Staff,08/03/2017 00:00,30118143,520,Revenue,Vision for Education Ltd,Education
Peterborough,http://opendatacommunities.org/id/unitary-authority/peterborough,Peterborough City Council,Independent Sector Placements,,Services,08/03/2017 00:00,30118195,-555.43,Revenue,Mencap,Adult Services & Communities - Adults
Peterborough,http://opendatacommunities.org/id/unitary-authority/peterborough,Peterborough City Council,Corporate,,Non Revenue,08/03/2017 00:00,30118220,4177.16,Capital,Nadeem Construction,Corporate
Peterborough,http://opendatacommunities.org/id/unitary-authority/peterborough,Peterborough City Council,Independent Sector Placements,,Services,08/03/2017 00:00,30118288,-1943.07,Revenue,Avery House (Peterborough) t/a Brighterkind,Adult Services & Communities - Adults
Peterborough,http://opendatacommunities.org/id/unitary-authority/peterborough,Peterborough City Council,Pupil Referral Unit,,Agency Staff,08/03/2017 00:00,30118410,506,Revenue,Vision for Education Ltd,Education
Peterborough,http://opendatacommunities.org/id/unitary-authority/peterborough,Peterborough City Council,Independent Sector Placements,,Services,08/03/2017 00:00,30118503,9346.08,Revenue,Sense,Adult Services & Communities - Adults
Peterborough,http://opendatacommunities.org/id/unitary-authority/peterborough,Peterborough City Council,School Infrastructure,,Agency Staff,08/03/2017 00:00,30118527,2000,Revenue,Baltimore Consulting,Education
Peterborough,http://opendatacommunities.org/id/unitary-authority/peterborough,Peterborough City Council,School Infrastructure,,Agency Staff,08/03/2017 00:00,30118528,4500,Revenue,Baltimore Consulting,Education
Peterborough,http://opendatacommunities.org/id/unitary-authority/peterborough,Peterborough City Council,Finance,,Services,08/03/2017 00:00,30118539,18000,Revenue,Cambs & P'boro NHS Foundation Trust,Adult Services & Communities - Adults
Peterborough,http://opendatacommunities.org/id/unitary-authority/peterborough,Peterborough City Council,Independent Sector Placements,,Services,08/03/2017 00:00,30118545,2499.86,Revenue,Avery House (Peterborough) t/a Brighterkind,Adult Services & Communities - Adults
Peterborough,http://opendatacommunities.org/id/unitary-authority/peterborough,Peterborough City Council,Independent Sector Placements,,Services,08/03/2017 00:00,30118546,3318.8,Revenue,Mencap,Adult Services & Communities - Adults
Peterborough,http://opendatacommunities.org/id/unitary-authority/peterborough,Peterborough City Council,Independent Sector Placements,,Services,08/03/2017 00:00,30118547,2176.24,Revenue,Avery House (Peterborough) t/a Brighterkind,Adult Services & Communities - Adults
Peterborough,http://opendatacommunities.org/id/unitary-authority/peterborough,Peterborough City Council,Independent Sector Placements,,Services,08/03/2017 00:00,30118548,2176.24,Revenue,Avery House (Peterborough) t/a Brighterkind,Adult Services & Communities - Adults
Peterborough,http://opendatacommunities.org/id/unitary-authority/peterborough,Peterborough City Council,Access to Resources & Specialist Commissioning,,Services,08/03/2017 00:00,30118607,1812,Revenue,PC Homes,Children's & Safeguarding
Peterborough,http://opendatacommunities.org/id/unitary-authority/peterborough,Peterborough City Council,Service Director - Adults & Communities,,Agency Staff,08/03/2017 00:00,30118611,1180.8,Revenue,Reed Specialist Recruitment,Adults and Communities - Communities
Peterborough,http://opendatacommunities.org/id/unitary-authority/peterborough,Peterborough City Council,Service Director - Adults & Communities,,Agency Staff,08/03/2017 00:00,30118612,787.2,Revenue,Reed Specialist Recruitment,Adults and Communities - Communities
Peterborough,http://opendatacommunities.org/id/unitary-authority/peterborough,Peterborough City Council,Service Director - Adults & Communities,,Agency Staff,08/03/2017 00:00,30118613,1180.8,Revenue,Reed Specialist Recruitment,Adults and Communities - Communities
Peterborough,http://opendatacommunities.org/id/unitary-authority/peterborough,Peterborough City Council,Performance & Information,,Agency Staff,08/03/2017 00:00,30118623,561.38,Revenue,Reed Specialist Recruitment,Performance & Information
Peterborough,http://opendatacommunities.org/id/unitary-authority/peterborough,Peterborough City Council,Performance & Information,,Agency Staff,08/03/2017 00:00,30118628,742,Revenue,Reed Specialist Recruitment,Performance & Information
Peterborough,http://opendatacommunities.org/id/unitary-authority/peterborough,Peterborough City Council,Access to Resources & Specialist Commissioning,,Services,08/03/2017 00:00,30118658,553.57,Revenue,Locate Accommodation,Children's & Safeguarding
Peterborough,http://opendatacommunities.org/id/unitary-authority/peterborough,Peterborough City Council,Performance & Information,,Agency Staff,08/03/2017 00:00,30118691,553.89,Revenue,Reed Specialist Recruitment,Performance & Information
Peterborough,http://opendatacommunities.org/id/unitary-authority/peterborough,Peterborough City Council,School Infrastructure,,Agency Staff,08/03/2017 00:00,30118694,532.53,Revenue,Reed Specialist Recruitment,Education
Peterborough,http://opendatacommunities.org/id/unitary-authority/peterborough,Peterborough City Council,Transport & Infrastructure Commissioning,,Services,08/03/2017 00:00,30118695,2964.6,Revenue,Tym Huckin Ltd,Peterborough Highway Services
Peterborough,http://opendatacommunities.org/id/unitary-authority/peterborough,Peterborough City Council,Transport & Infrastructure Commissioning,,Services,08/03/2017 00:00,30118696,2770.6,Revenue,Tym Huckin Ltd,Peterborough Highway Services
Peterborough,http://opendatacommunities.org/id/unitary-authority/peterborough,Peterborough City Council,Independent Sector Placements,,Services,08/03/2017 00:00,30118698,3518.32,Revenue,HEREWARD CARE SERVICES LIMITED,Adult Services & Communities - Adults
Peterborough,http://opendatacommunities.org/id/unitary-authority/peterborough,Peterborough City Council,Independent Sector Placements,,Services,08/03/2017 00:00,30118699,3518.32,Revenue,HEREWARD CARE SERVICES LIMITED,Adult Services & Communities - Adults
Peterborough,http://opendatacommunities.org/id/unitary-authority/peterborough,Peterborough City Council,Pupil Referral Unit,,Services,08/03/2017 00:00,30118719,900,Revenue,ACE Training,Education
Peterborough,http://opendatacommunities.org/id/unitary-authority/peterborough,Peterborough City Council,Pupil Referral Unit,,Services,08/03/2017 00:00,30118721,1000,Revenue,ACE Training,Education
Peterborough,http://opendatacommunities.org/id/unitary-authority/peterborough,Peterborough City Council,Environment Capital,,Services,08/03/2017 00:00,30118765,168681.23,Revenue,E.ON Energy Solutions Ltd,Energy
Peterborough,http://opendatacommunities.org/id/unitary-authority/peterborough,Peterborough City Council,Independent Sector Placements,,Services,08/03/2017 00:00,30118768,1321.4,Revenue,PHILIA LODGE REST HOME,Adult Services & Communities - Adults
Peterborough,http://opendatacommunities.org/id/unitary-authority/peterborough,Peterborough City Council,Independent Sector Placements,,Services,08/03/2017 00:00,30118771,1407.36,Revenue,Park Vista Care Home,Adult Services & Communities - Adults
Peterborough,http://opendatacommunities.org/id/unitary-authority/peterborough,Peterborough City Council,Independent Sector Placements,,Services,08/03/2017 00:00,30118782,1821.8,Revenue,Sanctuary Care Limited,Adult Services & Communities - Adults
Peterborough,http://opendatacommunities.org/id/unitary-authority/peterborough,Peterborough City Council,Independent Sector Placements,,Services,08/03/2017 00:00,30118784,1104.68,Revenue,Sanctuary Care Limited,Adult Services & Communities - Adults
Peterborough,http://opendatacommunities.org/id/unitary-authority/peterborough,Peterborough City Council,Pupil Referral Unit,,Services,08/03/2017 00:00,30118803,996,Revenue,Pearson Education,Education
Peterborough,http://opendatacommunities.org/id/unitary-authority/peterborough,Peterborough City Council,Pupil Referral Unit,,Services,08/03/2017 00:00,30118815,692.75,Revenue,Pearson Education,Education
Peterborough,http://opendatacommunities.org/id/unitary-authority/peterborough,Peterborough City Council,Pupil Referral Unit,,Services,08/03/2017 00:00,30118830,666.75,Revenue,Pearson Education,Education
Peterborough,http://opendatacommunities.org/id/unitary-authority/peterborough,Peterborough City Council,Pupil Referral Unit,,Services,08/03/2017 00:00,30118834,1317.4,Revenue,Pearson Education,Education
Peterborough,http://opendatacommunities.org/id/unitary-authority/peterborough,Peterborough City Council,Pupil Referral Unit,,Services,08/03/2017 00:00,30118841,1167.3,Revenue,Pearson Education,Education
Peterborough,http://opendatacommunities.org/id/unitary-authority/peterborough,Peterborough City Council,Clare Lodge,,Services,08/03/2017 00:00,30118854,552.2,Revenue,Pearson Education,Business Management and Commercial Operations
Peterborough,http://opendatacommunities.org/id/unitary-authority/peterborough,Peterborough City Council,Environment Capital,,Services,08/03/2017 00:00,30118857,13630.75,Revenue,E.ON Energy Solutions Ltd,Energy
Peterborough,http://opendatacommunities.org/id/unitary-authority/peterborough,Peterborough City Council,Environment Capital,,Services,08/03/2017 00:00,30118859,56146.47,Revenue,E.ON Energy Solutions Ltd,Energy
Peterborough,http://opendatacommunities.org/id/unitary-authority/peterborough,Peterborough City Council,Service Director - Adults & Communities,,Agency Staff,08/03/2017 00:00,30118867,787.2,Revenue,Reed Specialist Recruitment,Adults and Communities - Communities
Peterborough,http://opendatacommunities.org/id/unitary-authority/peterborough,Peterborough City Council,Financing - Resources,,Services,08/03/2017 00:00,30118874,5481.76,Revenue,Sense,Education
Peterborough,http://opendatacommunities.org/id/unitary-authority/peterborough,Peterborough City Council,Financing - Resources,,Services,08/03/2017 00:00,30118877,1857.16,Revenue,Sense,Education
Peterborough,http://opendatacommunities.org/id/unitary-authority/peterborough,Peterborough City Council,Financing - Resources,,Services,08/03/2017 00:00,30118878,1862.28,Revenue,Sense,Education
Peterborough,http://opendatacommunities.org/id/unitary-authority/peterborough,Peterborough City Council,Financing - Resources,,Services,08/03/2017 00:00,30118879,1862.28,Revenue,Sense,Education
Peterborough,http://opendatacommunities.org/id/unitary-authority/peterborough,Peterborough City Council,Financing - Resources,,Services,08/03/2017 00:00,30118882,4114.26,Revenue,Sense,Education
Peterborough,http://opendatacommunities.org/id/unitary-authority/peterborough,Peterborough City Council,Corporate,,Non Revenue,08/03/2017 00:00,30118884,5046.75,Capital,Planning and Design Group (UK) Ltd,Corporate
Peterborough,http://opendatacommunities.org/id/unitary-authority/peterborough,Peterborough City Council,Independent Sector Placements,,Services,08/03/2017 00:00,30118896,3408,Revenue,BROADLEIGH NURSING HOME,Adult Services & Communities - Adults
Peterborough,http://opendatacommunities.org/id/unitary-authority/peterborough,Peterborough City Council,Financing - Resources,,Services,08/03/2017 00:00,30118897,2742.84,Revenue,Sense,Education
Peterborough,http://opendatacommunities.org/id/unitary-authority/peterborough,Peterborough City Council,Financing - Resources,,Services,08/03/2017 00:00,30118898,2742.84,Revenue,Sense,Education
Peterborough,http://opendatacommunities.org/id/unitary-authority/peterborough,Peterborough City Council,Financing - Resources,,Services,08/03/2017 00:00,30118900,2742.84,Revenue,Sense,Education
Peterborough,http://opendatacommunities.org/id/unitary-authority/peterborough,Peterborough City Council,Financing - Resources,,Services,08/03/2017 00:00,30118901,1862.28,Revenue,Sense,Education
Peterborough,http://opendatacommunities.org/id/unitary-authority/peterborough,Peterborough City Council,Financing - Resources,,Services,08/03/2017 00:00,30118902,1862.28,Revenue,Sense,Education
Peterborough,http://opendatacommunities.org/id/unitary-authority/peterborough,Peterborough City Council,Financing - Resources,,Services,08/03/2017 00:00,30118904,2848.76,Revenue,Sense,Education
Peterborough,http://opendatacommunities.org/id/unitary-authority/peterborough,Peterborough City Council,Financing - Resources,,Services,08/03/2017 00:00,30118905,5697.52,Revenue,Sense,Education
Peterborough,http://opendatacommunities.org/id/unitary-authority/peterborough,Peterborough City Council,Schools Finance,,Services,08/03/2017 00:00,30118906,712.19,Revenue,Sense,Education
Peterborough,http://opendatacommunities.org/id/unitary-authority/peterborough,Peterborough City Council,Schools Finance,,Services,08/03/2017 00:00,30118907,14243.8,Revenue,Sense,Education
Peterborough,http://opendatacommunities.org/id/unitary-authority/peterborough,Peterborough City Council,Schools Finance,,Services,08/03/2017 00:00,30118947,2848.76,Revenue,Sense,Education
Peterborough,http://opendatacommunities.org/id/unitary-authority/peterborough,Peterborough City Council,Schools Finance,,Services,08/03/2017 00:00,30118948,2848.76,Revenue,Sense,Education
Peterborough,http://opendatacommunities.org/id/unitary-authority/peterborough,Peterborough City Council,Financing - Resources,,Services,08/03/2017 00:00,30118950,2848.76,Revenue,Sense,Education
Peterborough,http://opendatacommunities.org/id/unitary-authority/peterborough,Peterborough City Council,Financing - Resources,,Services,08/03/2017 00:00,30118952,1151.96,Revenue,Sense,Education
Peterborough,http://opendatacommunities.org/id/unitary-authority/peterborough,Peterborough City Council,Financing - Resources,,Services,08/03/2017 00:00,30118953,2303.92,Revenue,Sense,Education
Peterborough,http://opendatacommunities.org/id/unitary-authority/peterborough,Peterborough City Council,Financing - Resources,,Services,08/03/2017 00:00,30118954,1151.96,Revenue,Sense,Education
Peterborough,http://opendatacommunities.org/id/unitary-authority/peterborough,Peterborough City Council,Service Director Education,,Employers Superannuation Contributions,08/03/2017 00:00,30118963,26123.99,Revenue,Teachers Pensions,Education
Peterborough,http://opendatacommunities.org/id/unitary-authority/peterborough,Peterborough City Council,Pupil Referral Unit,,Services,08/03/2017 00:00,30118965,3080,Revenue,Tops Academy,Education
Peterborough,http://opendatacommunities.org/id/unitary-authority/peterborough,Peterborough City Council,Pupil Referral Unit,,Services,08/03/2017 00:00,30118968,3780,Revenue,Tops Academy,Education
Peterborough,http://opendatacommunities.org/id/unitary-authority/peterborough,Peterborough City Council,Pupil Referral Unit,,Services,08/03/2017 00:00,30118971,3500,Revenue,Tops Academy,Education
Peterborough,http://opendatacommunities.org/id/unitary-authority/peterborough,Peterborough City Council,Pupil Referral Unit,,Services,08/03/2017 00:00,30118972,5390,Revenue,Tops Academy,Education
Peterborough,http://opendatacommunities.org/id/unitary-authority/peterborough,Peterborough City Council,Pupil Referral Unit,,Services,08/03/2017 00:00,30118973,2940,Revenue,Tops Academy,Education
Peterborough,http://opendatacommunities.org/id/unitary-authority/peterborough,Peterborough City Council,Child Health,,Services,08/03/2017 00:00,30118978,666.69,Revenue,Cherry Lodge (Imprest),Children's & Safeguarding
Peterborough,http://opendatacommunities.org/id/unitary-authority/peterborough,Peterborough City Council,Child Health,,Services,08/03/2017 00:00,30118979,839.24,Revenue,Cherry Lodge (Imprest),Children's & Safeguarding
Peterborough,http://opendatacommunities.org/id/unitary-authority/peterborough,Peterborough City Council,Independent Sector Placements,,Services,08/03/2017 00:00,30119017,2935.44,Revenue,Boulevard Care Limited,Adult Services & Communities - Adults
Peterborough,http://opendatacommunities.org/id/unitary-authority/peterborough,Peterborough City Council,Independent Sector Placements,,Services,08/03/2017 00:00,30119028,758.97,Revenue,FIELD HOUSE (EYE) LTD,Adult Services & Communities - Adults
Peterborough,http://opendatacommunities.org/id/unitary-authority/peterborough,Peterborough City Council,Financing - Resources,,Services,08/03/2017 00:00,30119036,1520.54,Revenue,Sense,Education
Peterborough,http://opendatacommunities.org/id/unitary-authority/peterborough,Peterborough City Council,Financing - Resources,,Services,08/03/2017 00:00,30119037,1020.06,Revenue,Sense,Education
Peterborough,http://opendatacommunities.org/id/unitary-authority/peterborough,Peterborough City Council,Financing - Resources,,Services,08/03/2017 00:00,30119050,1520.54,Revenue,Sense,Education
Peterborough,http://opendatacommunities.org/id/unitary-authority/peterborough,Peterborough City Council,Financing - Resources,,Services,08/03/2017 00:00,30119052,2815.75,Revenue,Sense,Education
Peterborough,http://opendatacommunities.org/id/unitary-authority/peterborough,Peterborough City Council,Financing - Resources,,Services,08/03/2017 00:00,30119053,1520.54,Revenue,Sense,Education
Peterborough,http://opendatacommunities.org/id/unitary-authority/peterborough,Peterborough City Council,Financing - Resources,,Services,08/03/2017 00:00,30119055,1520.54,Revenue,Sense,Education
Peterborough,http://opendatacommunities.org/id/unitary-authority/peterborough,Peterborough City Council,Financing - Resources,,Services,08/03/2017 00:00,30119056,1520.54,Revenue,Sense,Education
Peterborough,http://opendatacommunities.org/id/unitary-authority/peterborough,Peterborough City Council,Financing - Resources,,Services,08/03/2017 00:00,30119058,1020.06,Revenue,Sense,Education
Peterborough,http://opendatacommunities.org/id/unitary-authority/peterborough,Peterborough City Council,Financing - Resources,,Services,08/03/2017 00:00,30119060,1520.54,Revenue,Sense,Education
Peterborough,http://opendatacommunities.org/id/unitary-authority/peterborough,Peterborough City Council,Financing - Resources,,Services,08/03/2017 00:00,30119065,1020.06,Revenue,Sense,Education
Peterborough,http://opendatacommunities.org/id/unitary-authority/peterborough,Peterborough City Council,Financing - Resources,,Services,08/03/2017 00:00,30119067,1520.54,Revenue,Sense,Education
Peterborough,http://opendatacommunities.org/id/unitary-authority/peterborough,Peterborough City Council,Financing - Resources,,Services,08/03/2017 00:00,30119068,2040.12,Revenue,Sense,Education
Peterborough,http://opendatacommunities.org/id/unitary-authority/peterborough,Peterborough City Council,Financing - Resources,,Services,08/03/2017 00:00,30119069,1020.06,Revenue,Sense,Education
Peterborough,http://opendatacommunities.org/id/unitary-authority/peterborough,Peterborough City Council,Financing - Resources,,Services,08/03/2017 00:00,30119070,1520.54,Revenue,Sense,Education
Peterborough,http://opendatacommunities.org/id/unitary-authority/peterborough,Peterborough City Council,Housing and Health,,Third Party Payments,08/03/2017 00:00,30119075,8259.08,Revenue,Cross Keys Homes,Adults and Communities - Communities
Peterborough,http://opendatacommunities.org/id/unitary-authority/peterborough,Peterborough City Council,Business Management and Commercial Operations,,Contract Hire and Operating Leases,08/03/2017 00:00,8000083718,1339,Revenue,Peterborough Cars,Business Management and Commercial Operations
Peterborough,http://opendatacommunities.org/id/unitary-authority/peterborough,Peterborough City Council,Business Management and Commercial Operations,,Contract Hire and Operating Leases,08/03/2017 00:00,8000083719,930,Revenue,Peterborough Cars,Business Management and Commercial Operations
Peterborough,http://opendatacommunities.org/id/unitary-authority/peterborough,Peterborough City Council,Business Management and Commercial Operations,,Contract Hire and Operating Leases,08/03/2017 00:00,8000083720,836,Revenue,Peterborough Cars,Business Management and Commercial Operations
Peterborough,http://opendatacommunities.org/id/unitary-authority/peterborough,Peterborough City Council,Business Management and Commercial Operations,,Contract Hire and Operating Leases,08/03/2017 00:00,8000083721,1333,Revenue,Peterborough Cars,Business Management and Commercial Operations
Peterborough,http://opendatacommunities.org/id/unitary-authority/peterborough,Peterborough City Council,Business Management and Commercial Operations,,Contract Hire and Operating Leases,08/03/2017 00:00,8000083722,1332,Revenue,Goldstar Cabs Ltd,Business Management and Commercial Operations
Peterborough,http://opendatacommunities.org/id/unitary-authority/peterborough,Peterborough City Council,Business Management and Commercial Operations,,Contract Hire and Operating Leases,08/03/2017 00:00,8000083723,1523,Revenue,Goldstar Cabs Ltd,Business Management and Commercial Operations
Peterborough,http://opendatacommunities.org/id/unitary-authority/peterborough,Peterborough City Council,Business Management and Commercial Operations,,Contract Hire and Operating Leases,08/03/2017 00:00,8000083724,2924,Revenue,Goldstar Cabs Ltd,Business Management and Commercial Operations
Peterborough,http://opendatacommunities.org/id/unitary-authority/peterborough,Peterborough City Council,Business Management and Commercial Operations,,Contract Hire and Operating Leases,08/03/2017 00:00,8000083725,2639,Revenue,Goldstar Cabs Ltd,Business Management and Commercial Operations
Peterborough,http://opendatacommunities.org/id/unitary-authority/peterborough,Peterborough City Council,Business Management and Commercial Operations,,Contract Hire and Operating Leases,08/03/2017 00:00,8000083726,2652,Revenue,Goldstar Cabs Ltd,Business Management and Commercial Operations
Peterborough,http://opendatacommunities.org/id/unitary-authority/peterborough,Peterborough City Council,Business Management and Commercial Operations,,Contract Hire and Operating Leases,08/03/2017 00:00,8000083727,2545,Revenue,Goldstar Cabs Ltd,Business Management and Commercial Operations
Peterborough,http://opendatacommunities.org/id/unitary-authority/peterborough,Peterborough City Council,Business Management and Commercial Operations,,Contract Hire and Operating Leases,08/03/2017 00:00,8000083728,2692,Revenue,Goldstar Cabs Ltd,Business Management and Commercial Operations
Peterborough,http://opendatacommunities.org/id/unitary-authority/peterborough,Peterborough City Council,Business Management and Commercial Operations,,Contract Hire and Operating Leases,08/03/2017 00:00,8000083734,807.37,Revenue,Redacted Personal Information,Business Management and Commercial Operations
Peterborough,http://opendatacommunities.org/id/unitary-authority/peterborough,Peterborough City Council,Business Management and Commercial Operations,,Contract Hire and Operating Leases,08/03/2017 00:00,8000083735,956.62,Revenue,Redacted Personal Information,Business Management and Commercial Operations
Peterborough,http://opendatacommunities.org/id/unitary-authority/peterborough,Peterborough City Council,Home to School Transport,,Contract Hire and Operating Leases,08/03/2017 00:00,8000083739,549.75,Revenue,Redacted Personal Information,Education
Peterborough,http://opendatacommunities.org/id/unitary-authority/peterborough,Peterborough City Council,Business Management and Commercial Operations,,Contract Hire and Operating Leases,08/03/2017 00:00,8000083741,1531.37,Revenue,Redacted Personal Information,Business Management and Commercial Operations
Peterborough,http://opendatacommunities.org/id/unitary-authority/peterborough,Peterborough City Council,Home to School Transport,,Contract Hire and Operating Leases,08/03/2017 00:00,8000083752,835.4,Revenue,A2B Euro Cars,Education
Peterborough,http://opendatacommunities.org/id/unitary-authority/peterborough,Peterborough City Council,Home to School Transport,,Contract Hire and Operating Leases,08/03/2017 00:00,8000083753,640,Revenue,A2B Euro Cars,Education
Peterborough,http://opendatacommunities.org/id/unitary-authority/peterborough,Peterborough City Council,Home to School Transport,,Contract Hire and Operating Leases,08/03/2017 00:00,8000083754,1400,Revenue,A2B Euro Cars,Education
Peterborough,http://opendatacommunities.org/id/unitary-authority/peterborough,Peterborough City Council,Home to School Transport,,Contract Hire and Operating Leases,08/03/2017 00:00,8000083755,1700,Revenue,A2B Euro Cars,Education
Peterborough,http://opendatacommunities.org/id/unitary-authority/peterborough,Peterborough City Council,Home to School Transport,,Contract Hire and Operating Leases,08/03/2017 00:00,8000083756,1224,Revenue,A2B Euro Cars,Education
Peterborough,http://opendatacommunities.org/id/unitary-authority/peterborough,Peterborough City Council,Home to School Transport,,Contract Hire and Operating Leases,08/03/2017 00:00,8000083757,1000,Revenue,A2B Euro Cars,Education
Peterborough,http://opendatacommunities.org/id/unitary-authority/peterborough,Peterborough City Council,Home to School Transport,,Contract Hire and Operating Leases,08/03/2017 00:00,8000083758,1239,Revenue,R T Enterprises Ltd T/A Royal Taxis,Education
Peterborough,http://opendatacommunities.org/id/unitary-authority/peterborough,Peterborough City Council,Home to School Transport,,Contract Hire and Operating Leases,08/03/2017 00:00,8000083759,1155,Revenue,R T Enterprises Ltd T/A Royal Taxis,Education
Peterborough,http://opendatacommunities.org/id/unitary-authority/peterborough,Peterborough City Council,Home to School Transport,,Contract Hire and Operating Leases,08/03/2017 00:00,8000083760,1491.2,Revenue,Goldstar Cabs Ltd,Education
Peterborough,http://opendatacommunities.org/id/unitary-authority/peterborough,Peterborough City Council,Home to School Transport,,Contract Hire and Operating Leases,08/03/2017 00:00,8000083761,815.88,Revenue,Goldstar Cabs Ltd,Education
Peterborough,http://opendatacommunities.org/id/unitary-authority/peterborough,Peterborough City Council,Home to School Transport,,Contract Hire and Operating Leases,08/03/2017 00:00,8000083762,671.5,Revenue,Goldstar Cabs Ltd,Education
Peterborough,http://opendatacommunities.org/id/unitary-authority/peterborough,Peterborough City Council,Home to School Transport,,Contract Hire and Operating Leases,08/03/2017 00:00,8000083763,569.57,Revenue,Goldstar Cabs Ltd,Education
Peterborough,http://opendatacommunities.org/id/unitary-authority/peterborough,Peterborough City Council,Home to School Transport,,Contract Hire and Operating Leases,08/03/2017 00:00,8000083763,417.68,Revenue,Goldstar Cabs Ltd,Education
Peterborough,http://opendatacommunities.org/id/unitary-authority/peterborough,Peterborough City Council,Home to School Transport,,Contract Hire and Operating Leases,08/03/2017 00:00,8000083764,760.05,Revenue,Goldstar Cabs Ltd,Education
Peterborough,http://opendatacommunities.org/id/unitary-authority/peterborough,Peterborough City Council,Home to School Transport,,Contract Hire and Operating Leases,08/03/2017 00:00,8000083765,901.99,Revenue,Goldstar Cabs Ltd,Education
Peterborough,http://opendatacommunities.org/id/unitary-authority/peterborough,Peterborough City Council,Home to School Transport,,Contract Hire and Operating Leases,08/03/2017 00:00,8000083766,1237.99,Revenue,Goldstar Cabs Ltd,Education
Peterborough,http://opendatacommunities.org/id/unitary-authority/peterborough,Peterborough City Council,Home to School Transport,,Contract Hire and Operating Leases,08/03/2017 00:00,8000083767,844.5,Revenue,Goldstar Cabs Ltd,Education
Peterborough,http://opendatacommunities.org/id/unitary-authority/peterborough,Peterborough City Council,Home to School Transport,,Contract Hire and Operating Leases,08/03/2017 00:00,8000083768,1126,Revenue,Goldstar Cabs Ltd,Education
Peterborough,http://opendatacommunities.org/id/unitary-authority/peterborough,Peterborough City Council,Home to School Transport,,Contract Hire and Operating Leases,08/03/2017 00:00,8000083769,600,Revenue,King Cabz,Education
Peterborough,http://opendatacommunities.org/id/unitary-authority/peterborough,Peterborough City Council,Home to School Transport,,Contract Hire and Operating Leases,08/03/2017 00:00,8000083771,741,Revenue,King Cabz,Education
Peterborough,http://opendatacommunities.org/id/unitary-authority/peterborough,Peterborough City Council,Home to School Transport,,Contract Hire and Operating Leases,08/03/2017 00:00,8000083772,1320,Revenue,King Cabz,Education
Peterborough,http://opendatacommunities.org/id/unitary-authority/peterborough,Peterborough City Council,Home to School Transport,,Contract Hire and Operating Leases,08/03/2017 00:00,8000083773,1368,Revenue,King Cabz,Education
Peterborough,http://opendatacommunities.org/id/unitary-authority/peterborough,Peterborough City Council,Home to School Transport,,Contract Hire and Operating Leases,08/03/2017 00:00,8000083774,1370,Revenue,King Cabz,Education
Peterborough,http://opendatacommunities.org/id/unitary-authority/peterborough,Peterborough City Council,Home to School Transport,,Contract Hire and Operating Leases,08/03/2017 00:00,8000083775,743.4,Revenue,King Cabz,Education
Peterborough,http://opendatacommunities.org/id/unitary-authority/peterborough,Peterborough City Council,Home to School Transport,,Contract Hire and Operating Leases,08/03/2017 00:00,8000083776,834,Revenue,King Cabz,Education
Peterborough,http://opendatacommunities.org/id/unitary-authority/peterborough,Peterborough City Council,Independent Sector Placements,,Contract Hire and Operating Leases,08/03/2017 00:00,8000083777,1200,Revenue,King Cabz,Adult Services & Communities - Adults
Peterborough,http://opendatacommunities.org/id/unitary-authority/peterborough,Peterborough City Council,Home to School Transport,,Contract Hire and Operating Leases,08/03/2017 00:00,8000083871,1706,Revenue,A2B Euro Cars,Education
Peterborough,http://opendatacommunities.org/id/unitary-authority/peterborough,Peterborough City Council,Home to School Transport,,Contract Hire and Operating Leases,08/03/2017 00:00,8000083873,1434,Revenue,A2B Euro Cars,Education
Peterborough,http://opendatacommunities.org/id/unitary-authority/peterborough,Peterborough City Council,Home to School Transport,,Contract Hire and Operating Leases,08/03/2017 00:00,8000083874,1278.4,Revenue,A2B Euro Cars,Education
Peterborough,http://opendatacommunities.org/id/unitary-authority/peterborough,Peterborough City Council,Home to School Transport,,Contract Hire and Operating Leases,08/03/2017 00:00,8000083875,1753.6,Revenue,A2B Euro Cars,Education
Peterborough,http://opendatacommunities.org/id/unitary-authority/peterborough,Peterborough City Council,Home to School Transport,,Contract Hire and Operating Leases,08/03/2017 00:00,8000083876,1196.4,Revenue,A2B Euro Cars,Education
Peterborough,http://opendatacommunities.org/id/unitary-authority/peterborough,Peterborough City Council,Home to School Transport,,Contract Hire and Operating Leases,08/03/2017 00:00,8000083877,1595.2,Revenue,A2B Euro Cars,Education
Peterborough,http://opendatacommunities.org/id/unitary-authority/peterborough,Peterborough City Council,Home to School Transport,,Contract Hire and Operating Leases,08/03/2017 00:00,8000083878,756.88,Revenue,A2B Euro Cars,Education
Peterborough,http://opendatacommunities.org/id/unitary-authority/peterborough,Peterborough City Council,Home to School Transport,,Contract Hire and Operating Leases,08/03/2017 00:00,8000083879,1560,Revenue,A2B Euro Cars,Education
Peterborough,http://opendatacommunities.org/id/unitary-authority/peterborough,Peterborough City Council,Home to School Transport,,Contract Hire and Operating Leases,08/03/2017 00:00,8000083884,764.55,Revenue,A2B Euro Cars,Education
Peterborough,http://opendatacommunities.org/id/unitary-authority/peterborough,Peterborough City Council,Home to School Transport,,Contract Hire and Operating Leases,08/03/2017 00:00,8000083885,858,Revenue,R T Enterprises Ltd T/A Royal Taxis,Education
Peterborough,http://opendatacommunities.org/id/unitary-authority/peterborough,Peterborough City Council,Home to School Transport,,Contract Hire and Operating Leases,08/03/2017 00:00,8000083886,780,Revenue,Peterborough Cars,Education
Peterborough,http://opendatacommunities.org/id/unitary-authority/peterborough,Peterborough City Council,Home to School Transport,,Contract Hire and Operating Leases,08/03/2017 00:00,8000083887,702.42,Revenue,Peterborough Cars,Education
Peterborough,http://opendatacommunities.org/id/unitary-authority/peterborough,Peterborough City Council,Home to School Transport,,Contract Hire and Operating Leases,08/03/2017 00:00,8000083888,836.09,Revenue,Peterborough Cars,Education
Peterborough,http://opendatacommunities.org/id/unitary-authority/peterborough,Peterborough City Council,Home to School Transport,,Contract Hire and Operating Leases,08/03/2017 00:00,8000083889,783.09,Revenue,Peterborough Cars,Education
Peterborough,http://opendatacommunities.org/id/unitary-authority/peterborough,Peterborough City Council,Home to School Transport,,Contract Hire and Operating Leases,08/03/2017 00:00,8000083890,630,Revenue,Peterborough Cars,Education
Peterborough,http://opendatacommunities.org/id/unitary-authority/peterborough,Peterborough City Council,Business Management and Commercial Operations,,Contract Hire and Operating Leases,08/03/2017 00:00,8000083891,606,Revenue,Peterborough Cars,Business Management and Commercial Operations
Peterborough,http://opendatacommunities.org/id/unitary-authority/peterborough,Peterborough City Council,Home to School Transport,,Contract Hire and Operating Leases,08/03/2017 00:00,8000083893,1528,Revenue,Goldstar Cabs Ltd,Education
Peterborough,http://opendatacommunities.org/id/unitary-authority/peterborough,Peterborough City Council,Home to School Transport,,Contract Hire and Operating Leases,08/03/2017 00:00,8000083894,800,Revenue,King Cabz,Education
Peterborough,http://opendatacommunities.org/id/unitary-authority/peterborough,Peterborough City Council,Home to School Transport,,Contract Hire and Operating Leases,08/03/2017 00:00,8000083895,1235,Revenue,King Cabz,Education
Peterborough,http://opendatacommunities.org/id/unitary-authority/peterborough,Peterborough City Council,Home to School Transport,,Contract Hire and Operating Leases,08/03/2017 00:00,8000083897,1266,Revenue,King Cabz,Education
Peterborough,http://opendatacommunities.org/id/unitary-authority/peterborough,Peterborough City Council,Home to School Transport,,Contract Hire and Operating Leases,08/03/2017 00:00,8000083898,1336,Revenue,King Cabz,Education
Peterborough,http://opendatacommunities.org/id/unitary-authority/peterborough,Peterborough City Council,Home to School Transport,,Contract Hire and Operating Leases,08/03/2017 00:00,8000083899,532.4,Revenue,King Cabz,Education
Peterborough,http://opendatacommunities.org/id/unitary-authority/peterborough,Peterborough City Council,Home to School Transport,,Contract Hire and Operating Leases,08/03/2017 00:00,8000083900,680,Revenue,King Cabz,Education
Peterborough,http://opendatacommunities.org/id/unitary-authority/peterborough,Peterborough City Council,Access to Resources & Specialist Commissioning,,Services,08/03/2017 00:00,8000083906,552.44,Revenue,Redacted Personal Information,Children's & Safeguarding
Peterborough,http://opendatacommunities.org/id/unitary-authority/peterborough,Peterborough City Council,Access to Resources & Specialist Commissioning,,Services,08/03/2017 00:00,8000083906,726.88,Revenue,Redacted Personal Information,Children's & Safeguarding
